Workbook

Sheet Export Summary
B3: This document was exported from Numbers. Each table was converted to an Excel worksheet. All other objects on each Numbers sheet were placed on separate worksheets. Please be aware that formula calculations may differ in Excel.
B7: Numbers Sheet Name | C7: Numbers Table Name | D7: Excel Worksheet Name
B9: RawTestData_03-08-2022
C10: simOutcomes_0-3StDevs | D10: RawTestData_03-08-2022 - simOut
B11: Pivottable
C12: simOutcomes_0-3StDevs Pivot | D12: Pivottable - simOutcomes_0-3StD

Sheet RawTestData_03-08-2022 - simOut
A1: simOutcomes_0-3StDevs
B2: Game Number | C2: Game Name | D2: Cost | E2: Longest Losing Streak | F2: Optimal Bankroll | G2: Risk Coefficient | H2: Prize Types | I2: Standard Deviations | J2: Cluster Size | K2: Any Prize Probability | L2: Profit Prize Probability | M2: Number of Tickets | N2: Number of Clusters | O2: Number of Prizes | P2: Number of Profit Prizes | Q2: Observed Prize Frequency | R2: Observed Profit Prize Frequency | S2: Average Cluster Outcome | T2: Median Cluster Outcome | U2: StdDev Ticket Outcome | V2: StdDev Any Prizes | W2: StdDev Profit Prizes | X2: Final Tally | Y2: Prizes Descriptive Stats | AA2: Z-Score Any Prize | AB2: P-value any prize | AC2: Z-Score Profit | AD2: P-value Profit prize | AE2: Amount spent | AF2: Accept/Reject Null Hypothesis Any Prize | AG2: Accept/Reject Null Hypothesis either
A3: 63 | B3: 1799 | C3: GO FOR THE GREEN | D3: 2 | E3: 3 | F3: 12 | G3: 2 | H3: any | I3: -3 | J3: 3 | K3: 0.2141328432 | L3: 0.1087594415 | M3: 1110 | N3: 370 | O3: 345 | P3: 182 | Q3: 0.3108108108 | R3: 0.163963964 | S3: -1.417117117 | T3: -2 | U3: 2.596707349 | V3: 3.371107782 | W3: 3.371107782 | X3: -1573 | Y3: count 345.000000 mean 4.118841 std 3.164174 min 2.000000 25% 2.000000 50% 4.000000 75% 5.000000 max 20.000000 Name: Ticket Outcome, dtype: float64 | AA3: =(Q3-K3)/SQRT((K3*(1-K3))/M3) -> 7.851864392 | AB3: =IF(AA3>0,1-NORMSDIST(AA3),NORMSDIST(AA3)) -> 1.998401444e-15 | AC3: =(R3-L3)/SQRT((L3*(1-L3))/M3) -> 5.907519879 | AD3: =IF(AC3>0,1-NORMSDIST(AC3),NORMSDIST(AC3)) -> 1.73648218e-09 | AE3: =(M3*D3) -> 2220 | AF3: =IF(OR(AB3<-0.05,AB3>0.05),"Accept","Reject") -> Reject | AG3: =IF(OR(OR(AB3<-0.05,AB3>0.05),OR(AD3<-0.05,AD3>0.05)),"Accept","Reject") -> Reject
A4: 231 | B4: 1799 | C4: GO FOR THE GREEN | D4: 2 | E4: 10 | F4: 40 | G4: 2 | H4: profit | I4: -3 | J4: 6 | K4: 0.2141328432 | L4: 0.1087594415 | M4: 1110 | N4: 185 | O4: 243 | P4: 135 | Q4: 0.2189189189 | R4: 0.1216216216 | S4: -2.845045045 | T4: -4 | U4: 5.629719281 | V4: 14.4329984 | W4: 14.4329984 | X4: -3158 | Y4: count 243.000000 mean 5.234568 std 11.124322 min 2.000000 25% 2.000000 50% 4.000000 75% 5.000000 max 100.000000 Name: Ticket Outcome, dtype: float64 | AA4: =(Q4-K4)/SQRT((K4*(1-K4))/M4) -> 0.3887092249 | AB4: =IF(AA4>0,1-NORMSDIST(AA4),NORMSDIST(AA4)) -> 0.3487456287 | AC4: =(R4-L4)/SQRT((L4*(1-L4))/M4) -> 1.376401453 | AD4: =IF(AC4>0,1-NORMSDIST(AC4),NORMSDIST(AC4)) -> 0.08434868925 | AE4: =(M4*D4) -> 2220 | AF4: =IF(OR(AB4<-0.05,AB4>0.05),"Accept","Reject") -> Accept | AG4: =IF(OR(OR(AB4<-0.05,AB4>0.05),OR(AD4<-0.05,AD4>0.05)),"Accept","Reject") -> Accept
A5: 147 | B5: 1799 | C5: GO FOR THE GREEN | D5: 2 | E5: 11 | F5: 44 | G5: 2 | H5: profit | I5: -2 | J5: 7 | K5: 0.2141328432 | L5: 0.1087594415 | M5: 1113 | N5: 159 | O5: 264 | P5: 103 | Q5: 0.2371967655 | R5: 0.09254267745 | S5: 2.375561545 | T5: -4 | U5: 11.59164899 | V5: 32.21806943 | W5: 32.21806943 | X5: 2644 | Y5: count 264.000000 mean 9.712121 std 22.268677 min 2.000000 25% 2.000000 50% 2.000000 75% 4.000000 max 100.000000 Name: Ticket Outcome, dtype: float64 | AA5: =(Q5-K5)/SQRT((K5*(1-K5))/M5) -> 1.875705009 | AB5: =IF(AA5>0,1-NORMSDIST(AA5),NORMSDIST(AA5)) -> 0.03034789889 | AC5: =(R5-L5)/SQRT((L5*(1-L5))/M5) -> -1.737724098 | AD5: =IF(AC5>0,1-NORMSDIST(AC5),NORMSDIST(AC5)) -> 0.04112972021 | AE5: =(M5*D5) -> 2226 | AF5: =IF(OR(AB5<-0.05,AB5>0.05),"Accept","Reject") -> Reject | AG5: =IF(OR(OR(AB5<-0.05,AB5>0.05),OR(AD5<-0.05,AD5>0.05)),"Accept","Reject") -> Reject
A6: 63 | B6: 1799 | C6: GO FOR THE GREEN | D6: 2 | E6: 4 | F6: 16 | G6: 2 | H6: any | I6: -2 | J6: 4 | K6: 0.2141328432 | L6: 0.1087594415 | M6: 1112 | N6: 278 | O6: 260 | P6: 85 | Q6: 0.2338129496 | R6: 0.07643884892 | S6: -1.495503597 | T6: -3 | U6: 9.146810868 | V6: 29.4039194 | W6: 29.4039194 | X6: -1663 | Y6: count 260.000000 mean 6.642308 std 18.026336 min 2.000000 25% 2.000000 50% 2.000000 75% 4.000000 max 100.000000 Name: Ticket Outcome, dtype: float64 | AA6: =(Q6-K6)/SQRT((K6*(1-K6))/M6) -> 1.599792389 | AB6: =IF(AA6>0,1-NORMSDIST(AA6),NORMSDIST(AA6)) -> 0.05482232386 | AC6: =(R6-L6)/SQRT((L6*(1-L6))/M6) -> -3.461790267 | AD6: =IF(AC6>0,1-NORMSDIST(AC6),NORMSDIST(AC6)) -> 0.0002682975693 | AE6: =(M6*D6) -> 2224 | AF6: =IF(OR(AB6<-0.05,AB6>0.05),"Accept","Reject") -> Accept | AG6: =IF(OR(OR(AB6<-0.05,AB6>0.05),OR(AD6<-0.05,AD6>0.05)),"Accept","Reject") -> Accept
A7: 63 | B7: 1799 | C7: GO FOR THE GREEN | D7: 2 | E7: 4 | F7: 16 | G7: 2 | H7: any | I7: -1 | J7: 4 | K7: 0.2141328432 | L7: 0.1087594415 | M7: 1112 | N7: 278 | O7: 185 | P7: 115 | Q7: 0.1663669065 | R7: 0.1034172662 | S7: -3.478417266 | T7: -4 | U7: 1.431321682 | V7: 0.5012570012 | W7: 0.5012570012 | X7: -3868 | Y7: count 185.000000 mean 3.572973 std 1.292253 min 2.000000 25% 2.000000 50% 4.000000 75% 5.000000 max 5.000000 Name: Ticket Outcome, dtype: float64 | AA7: =(Q7-K7)/SQRT((K7*(1-K7))/M7) -> -3.882884578 | AB7: =IF(AA7>0,1-NORMSDIST(AA7),NORMSDIST(AA7)) -> 5.16122869e-05 | AC7: =(R7-L7)/SQRT((L7*(1-L7))/M7) -> -0.5721890884 | AD7: =IF(AC7>0,1-NORMSDIST(AC7),NORMSDIST(AC7)) -> 0.2835969395 | AE7: =(M7*D7) -> 2224 | AF7: =IF(OR(AB7<-0.05,AB7>0.05),"Accept","Reject") -> Reject | AG7: =IF(OR(OR(AB7<-0.05,AB7>0.05),OR(AD7<-0.05,AD7>0.05)),"Accept","Reject") -> Accept
A8: 63 | B8: 1799 | C8: GO FOR THE GREEN | D8: 2 | E8: 12 | F8: 48 | G8: 2 | H8: profit | I8: -1 | J8: 8 | K8: 0.2141328432 | L8: 0.1087594415 | M8: 1112 | N8: 139 | O8: 315 | P8: 158 | Q8: 0.2832733813 | R8: 0.1420863309 | S8: -4.146582734 | T8: -4 | U8: 2.268114065 | V8: 2.902761782 | W8: 2.902761782 | X8: -4611 | Y8: count 315.00000 mean 3.84127 std 2.75546 min 2.00000 25% 2.00000 50% 4.00000 75% 5.00000 max 20.00000 Name: Ticket Outcome, dtype: float64 | AA8: =(Q8-K8)/SQRT((K8*(1-K8))/M8) -> 5.620422166 | AB8: =IF(AA8>0,1-NORMSDIST(AA8),NORMSDIST(AA8)) -> 9.524569911e-09 | AC8: =(R8-L8)/SQRT((L8*(1-L8))/M8) -> 3.569572601 | AD8: =IF(AC8>0,1-NORMSDIST(AC8),NORMSDIST(AC8)) -> 0.0001787820582 | AE8: =(M8*D8) -> 2224 | AF8: =IF(OR(AB8<-0.05,AB8>0.05),"Accept","Reject") -> Reject | AG8: =IF(OR(OR(AB8<-0.05,AB8>0.05),OR(AD8<-0.05,AD8>0.05)),"Accept","Reject") -> Reject
A9: 63 | B9: 1799 | C9: GO FOR THE GREEN | D9: 2 | E9: 4 | F9: 16 | G9: 2 | H9: any | I9: 0 | J9: 5 | K9: 0.2141328432 | L9: 0.1087594415 | M9: 1110 | N9: 222 | O9: 218 | P9: 73 | Q9: 0.1963963964 | R9: 0.06576576577 | S9: -0.4351351351 | T9: -4 | U9: 12.39030947 | V9: 43.62232403 | W9: 43.62232403 | X9: -483 | Y9: count 218.000000 mean 8.761468 std 26.881340 min 2.000000 25% 2.000000 50% 2.000000 75% 5.000000 max 200.000000 Name: Ticket Outcome, dtype: float64 | AA9: =(Q9-K9)/SQRT((K9*(1-K9))/M9) -> -1.440495473 | AB9: =IF(AA9>0,1-NORMSDIST(AA9),NORMSDIST(AA9)) -> 0.07486363496 | AC9: =(R9-L9)/SQRT((L9*(1-L9))/M9) -> -4.600818599 | AD9: =IF(AC9>0,1-NORMSDIST(AC9),NORMSDIST(AC9)) -> 2.104169017e-06 | AE9: =(M9*D9) -> 2220 | AF9: =IF(OR(AB9<-0.05,AB9>0.05),"Accept","Reject") -> Accept | AG9: =IF(OR(OR(AB9<-0.05,AB9>0.05),OR(AD9<-0.05,AD9>0.05)),"Accept","Reject") -> Accept
A10: 63 | B10: 1799 | C10: GO FOR THE GREEN | D10: 2 | E10: 13 | F10: 52 | G10: 2 | H10: profit | I10: 0 | J10: 9 | K10: 0.2141328432 | L10: 0.1087594415 | M10: 1107 | N10: 123 | O10: 236 | P10: 145 | Q10: 0.2131887986 | R10: 0.1309846432 | S10: -0.6088527552 | T10: -4 | U10: 9.531216571 | V10: 22.90227239 | W10: 22.90227239 | X10: -674 | Y10: count 236.000000 mean 9.474576 std 18.884289 min 2.000000 25% 2.000000 50% 4.000000 75% 6.250000 max 100.000000 Name: Ticket Outcome, dtype: float64 | AA10: =(Q10-K10)/SQRT((K10*(1-K10))/M10) -> -0.07656849507 | AB10: =IF(AA10>0,1-NORMSDIST(AA10),NORMSDIST(AA10)) -> 0.4694834113 | AC10: =(R10-L10)/SQRT((L10*(1-L10))/M10) -> 2.37513646 | AD10: =IF(AC10>0,1-NORMSDIST(AC10),NORMSDIST(AC10)) -> 0.00877123172 | AE10: =(M10*D10) -> 2214 | AF10: =IF(OR(AB10<-0.05,AB10>0.05),"Accept","Reject") -> Accept | AG10: =IF(OR(OR(AB10<-0.05,AB10>0.05),OR(AD10<-0.05,AD10>0.05)),"Accept","Reject") -> Accept
A11: 147 | B11: 1799 | C11: GO FOR THE GREEN | D11: 2 | E11: 5 | F11: 20 | G11: 2 | H11: any | I11: 1 | J11: 6 | K11: 0.2141328432 | L11: 0.1087594415 | M11: 1110 | N11: 185 | O11: 280 | P11: 169 | Q11: 0.2522522523 | R11: 0.1522522523 | S11: -0.01081081081 | T11: -4 | U11: 9.312439739 | V11: 21.57765599 | W11: 21.57765599 | X11: -12 | Y11: count 280.000000 mean 7.617857 std 17.354011 min 2.000000 25% 2.000000 50% 4.000000 75% 5.000000 max 100.000000 Name: Ticket Outcome, dtype: float64 | AA11: =(Q11-K11)/SQRT((K11*(1-K11))/M11) -> 3.095932178 | AB11: =IF(AA11>0,1-NORMSDIST(AA11),NORMSDIST(AA11)) -> 0.0009809761567 | AC11: =(R11-L11)/SQRT((L11*(1-L11))/M11) -> 4.654231804 | AD11: =IF(AC11>0,1-NORMSDIST(AC11),NORMSDIST(AC11)) -> 1.625954016e-06 | AE11: =(M11*D11) -> 2220 | AF11: =IF(OR(AB11<-0.05,AB11>0.05),"Accept","Reject") -> Reject | AG11: =IF(OR(OR(AB11<-0.05,AB11>0.05),OR(AD11<-0.05,AD11>0.05)),"Accept","Reject") -> Reject
A12: 147 | B12: 1799 | C12: GO FOR THE GREEN | D12: 2 | E12: 14 | F12: 56 | G12: 2 | H12: profit | I12: 1 | J12: 11 | K12: 0.2141328432 | L12: 0.1087594415 | M12: 1111 | N12: 101 | O12: 223 | P12: 107 | Q12: 0.200720072 | R12: 0.09630963096 | S12: -6.088208821 | T12: -6 | U12: 2.974189099 | V12: 6.090266161 | W12: 6.090266161 | X12: -6764 | Y12: count 223.000000 mean 4.762332 std 5.100964 min 2.000000 25% 2.000000 50% 2.000000 75% 5.000000 max 20.000000 Name: Ticket Outcome, dtype: float64 | AA12: =(Q12-K12)/SQRT((K12*(1-K12))/M12) -> -1.089831441 | AB12: =IF(AA12>0,1-NORMSDIST(AA12),NORMSDIST(AA12)) -> 0.1378937007 | AC12: =(R12-L12)/SQRT((L12*(1-L12))/M12) -> -1.332873137 | AD12: =IF(AC12>0,1-NORMSDIST(AC12),NORMSDIST(AC12)) -> 0.09128671969 | AE12: =(M12*D12) -> 2222 | AF12: =IF(OR(AB12<-0.05,AB12>0.05),"Accept","Reject") -> Accept | AG12: =IF(OR(OR(AB12<-0.05,AB12>0.05),OR(AD12<-0.05,AD12>0.05)),"Accept","Reject") -> Accept
A13: 231 | B13: 1799 | C13: GO FOR THE GREEN | D13: 2 | E13: 5 | F13: 20 | G13: 2 | H13: any | I13: 2 | J13: 7 | K13: 0.2141328432 | L13: 0.1087594415 | M13: 1113 | N13: 159 | O13: 249 | P13: 118 | Q13: 0.2237196765 | R13: 0.1060197664 | S13: -3.339622642 | T13: -4 | U13: 4.172228378 | V13: 9.65070465 | W13: 9.65070465 | X13: -3717 | Y13: count 249.000000 mean 5.305221 std 7.491071 min 2.000000 25% 2.000000 50% 2.000000 75% 4.000000 max 40.000000 Name: Ticket Outcome, dtype: float64 | AA13: =(Q13-K13)/SQRT((K13*(1-K13))/M13) -> 0.7796623293 | AB13: =IF(AA13>0,1-NORMSDIST(AA13),NORMSDIST(AA13)) -> 0.2177948289 | AC13: =(R13-L13)/SQRT((L13*(1-L13))/M13) -> -0.2935727118 | AD13: =IF(AC13>0,1-NORMSDIST(AC13),NORMSDIST(AC13)) -> 0.3845422151 | AE13: =(M13*D13) -> 2226 | AF13: =IF(OR(AB13<-0.05,AB13>0.05),"Accept","Reject") -> Accept | AG13: =IF(OR(OR(AB13<-0.05,AB13>0.05),OR(AD13<-0.05,AD13>0.05)),"Accept","Reject") -> Accept
A14: 231 | B14: 1799 | C14: GO FOR THE GREEN | D14: 2 | E14: 15 | F14: 60 | G14: 2 | H14: profit | I14: 2 | J14: 13 | K14: 0.2141328432 | L14: 0.1087594415 | M14: 1105 | N14: 85 | O14: 236 | P14: 102 | Q14: 0.2135746606 | R14: 0.09230769231 | S14: -9.133936652 | T14: -8 | U14: 1.774941244 | V14: 2.219313926 | W14: 2.219313926 | X14: -10093 | Y14: count 236.000000 mean 3.504237 std 2.258785 min 2.000000 25% 2.000000 50% 2.000000 75% 4.000000 max 10.000000 Name: Ticket Outcome, dtype: float64 | AA14: =(Q14-K14)/SQRT((K14*(1-K14))/M14) -> -0.04523151768 | AB14: =IF(AA14>0,1-NORMSDIST(AA14),NORMSDIST(AA14)) -> 0.4819613862 | AC14: =(R14-L14)/SQRT((L14*(1-L14))/M14) -> -1.756557063 | AD14: =IF(AC14>0,1-NORMSDIST(AC14),NORMSDIST(AC14)) -> 0.03949666847 | AE14: =(M14*D14) -> 2210 | AF14: =IF(OR(AB14<-0.05,AB14>0.05),"Accept","Reject") -> Accept | AG14: =IF(OR(OR(AB14<-0.05,AB14>0.05),OR(AD14<-0.05,AD14>0.05)),"Accept","Reject") -> Accept
A15: 315 | B15: 1799 | C15: GO FOR THE GREEN | D15: 2 | E15: 6 | F15: 24 | G15: 2 | H15: any | I15: 3 | J15: 9 | K15: 0.2141328432 | L15: 0.1087594415 | M15: 1107 | N15: 123 | O15: 266 | P15: 131 | Q15: 0.2402890696 | R15: 0.11833785 | S15: -5.129177958 | T15: -5 | U15: 2.709935188 | V15: 4.401595824 | W15: 4.401595824 | X15: -5678 | Y15: count 266.000000 mean 4.436090 std 3.955132 min 2.000000 25% 2.000000 50% 2.000000 75% 5.000000 max 20.000000 Name: Ticket Outcome, dtype: float64 | AA15: =(Q15-K15)/SQRT((K15*(1-K15))/M15) -> 2.121449446 | AB15: =IF(AA15>0,1-NORMSDIST(AA15),NORMSDIST(AA15)) -> 0.01694199896 | AC15: =(R15-L15)/SQRT((L15*(1-L15))/M15) -> 1.023613992 | AD15: =IF(AC15>0,1-NORMSDIST(AC15),NORMSDIST(AC15)) -> 0.153008817 | AE15: =(M15*D15) -> 2214 | AF15: =IF(OR(AB15<-0.05,AB15>0.05),"Accept","Reject") -> Reject | AG15: =IF(OR(OR(AB15<-0.05,AB15>0.05),OR(AD15<-0.05,AD15>0.05)),"Accept","Reject") -> Accept
A16: 315 | B16: 1799 | C16: GO FOR THE GREEN | D16: 2 | E16: 16 | F16: 64 | G16: 2 | H16: profit | I16: 3 | J16: 17 | K16: 0.2141328432 | L16: 0.1087594415 | M16: 1105 | N16: 65 | O16: 200 | P16: 106 | Q16: 0.1809954751 | R16: 0.09592760181 | S16: -6.666968326 | T16: -6 | U16: 3.971634663 | V16: 6.925012285 | W16: 6.925012285 | X16: -7367 | Y16: count 200.000000 mean 6.980000 std 6.885248 min 2.000000 25% 2.000000 50% 4.000000 75% 10.000000 max 20.000000 Name: Ticket Outcome, dtype: float64 | AA16: =(Q16-K16)/SQRT((K16*(1-K16))/M16) -> -2.685238956 | AB16: =IF(AA16>0,1-NORMSDIST(AA16),NORMSDIST(AA16)) -> 0.003623898365 | AC16: =(R16-L16)/SQRT((L16*(1-L16))/M16) -> -1.370058488 | AD16: =IF(AC16>0,1-NORMSDIST(AC16),NORMSDIST(AC16)) -> 0.08533432234 | AE16: =(M16*D16) -> 2210 | AF16: =IF(OR(AB16<-0.05,AB16>0.05),"Accept","Reject") -> Reject | AG16: =IF(OR(OR(AB16<-0.05,AB16>0.05),OR(AD16<-0.05,AD16>0.05)),"Accept","Reject") -> Accept
A17: 47 | B17: 1821 | C17: WINNING HAND | D17: 5 | E17: 3 | F17: 30 | G17: 2 | H17: any | I17: -3 | J17: 3 | K17: 0.2341921252 | L17: 0.1312664683 | M17: 1110 | N17: 370 | O17: 245 | P17: 143 | Q17: 0.2207207207 | R17: 0.1288288288 | S17: -4.63963964 | T17: -5 | U17: 6.460631412 | V17: 6.12884894 | W17: 6.12884894 | X17: -5150 | Y17: count 245.000000 mean 12.673469 std 8.002018 min 5.000000 25% 5.000000 50% 10.000000 75% 15.000000 max 25.000000 Name: Ticket Outcome, dtype: float64 | AA17: =(Q17-K17)/SQRT((K17*(1-K17))/M17) -> -1.059810717 | AB17: =IF(AA17>0,1-NORMSDIST(AA17),NORMSDIST(AA17)) -> 0.1446153602 | AC17: =(R17-L17)/SQRT((L17*(1-L17))/M17) -> -0.2404976138 | AD17: =IF(AC17>0,1-NORMSDIST(AC17),NORMSDIST(AC17)) -> 0.4049722564 | AE17: =(M17*D17) -> 5550 | AF17: =IF(OR(AB17<-0.05,AB17>0.05),"Accept","Reject") -> Accept | AG17: =IF(OR(OR(AB17<-0.05,AB17>0.05),OR(AD17<-0.05,AD17>0.05)),"Accept","Reject") -> Accept
A18: 215 | B18: 1821 | C18: WINNING HAND | D18: 5 | E18: 8 | F18: 80 | G18: 2 | H18: profit | I18: -3 | J18: 5 | K18: 0.2341921252 | L18: 0.1312664683 | M18: 1110 | N18: 222 | O18: 332 | P18: 99 | Q18: 0.2990990991 | R18: 0.08918918919 | S18: -7.720720721 | T18: -10 | U18: 4.73066837 | V18: 6.015252379 | W18: 6.015252379 | X18: -8570 | Y18: count 332.000000 mean 7.921687 std 5.555532 min 5.000000 25% 5.000000 50% 5.000000 75% 10.000000 max 25.000000 Name: Ticket Outcome, dtype: float64 | AA18: =(Q18-K18)/SQRT((K18*(1-K18))/M18) -> 5.106305494 | AB18: =IF(AA18>0,1-NORMSDIST(AA18),NORMSDIST(AA18)) -> 1.642592142e-07 | AC18: =(R18-L18)/SQRT((L18*(1-L18))/M18) -> -4.15134613 | AD18: =IF(AC18>0,1-NORMSDIST(AC18),NORMSDIST(AC18)) -> 1.652627236e-05 | AE18: =(M18*D18) -> 5550 | AF18: =IF(OR(AB18<-0.05,AB18>0.05),"Accept","Reject") -> Reject | AG18: =IF(OR(OR(AB18<-0.05,AB18>0.05),OR(AD18<-0.05,AD18>0.05)),"Accept","Reject") -> Reject
A19: 131 | B19: 1821 | C19: WINNING HAND | D19: 5 | E19: 8 | F19: 80 | G19: 2 | H19: profit | I19: -2 | J19: 6 | K19: 0.2341921252 | L19: 0.1312664683 | M19: 1110 | N19: 185 | O19: 257 | P19: 171 | Q19: 0.2315315315 | R19: 0.1540540541 | S19: -3.63963964 | T19: -5 | U19: 9.493787841 | V19: 13.25084131 | W19: 13.25084131 | X19: -4040 | Y19: count 257.000000 mean 16.420233 std 13.507321 min 5.000000 25% 5.000000 50% 10.000000 75% 25.000000 max 50.000000 Name: Ticket Outcome, dtype: float64 | AA19: =(Q19-K19)/SQRT((K19*(1-K19))/M19) -> -0.2093119289 | AB19: =IF(AA19>0,1-NORMSDIST(AA19),NORMSDIST(AA19)) -> 0.4171023701 | AC19: =(R19-L19)/SQRT((L19*(1-L19))/M19) -> 2.248224169 | AD19: =IF(AC19>0,1-NORMSDIST(AC19),NORMSDIST(AC19)) -> 0.01228094963 | AE19: =(M19*D19) -> 5550 | AF19: =IF(OR(AB19<-0.05,AB19>0.05),"Accept","Reject") -> Accept | AG19: =IF(OR(OR(AB19<-0.05,AB19>0.05),OR(AD19<-0.05,AD19>0.05)),"Accept","Reject") -> Accept
A20: 47 | B20: 1821 | C20: WINNING HAND | D20: 5 | E20: 3 | F20: 30 | G20: 2 | H20: any | I20: -2 | J20: 3 | K20: 0.2341921252 | L20: 0.1312664683 | M20: 1110 | N20: 370 | O20: 126 | P20: 0 | Q20: 0.1135135135 | R20: 0 | S20: -8.783783784 | T20: -10 | U20: 1.58681232 | X20: -9750 | Y20: count 126.0 mean 5.0 std 0.0 min 5.0 25% 5.0 50% 5.0 75% 5.0 max 5.0 Name: Ticket Outcome, dtype: float64 | AA20: =(Q20-K20)/SQRT((K20*(1-K20))/M20) -> -9.493923694 | AB20: =IF(AA20>0,1-NORMSDIST(AA20),NORMSDIST(AA20)) -> 0 | AC20: =(R20-L20)/SQRT((L20*(1-L20))/M20) -> -12.95075529 | AD20: =IF(AC20>0,1-NORMSDIST(AC20),NORMSDIST(AC20)) -> 0 | AE20: =(M20*D20) -> 5550 | AF20: =IF(OR(AB20<-0.05,AB20>0.05),"Accept","Reject") -> Reject | AG20: =IF(OR(OR(AB20<-0.05,AB20>0.05),OR(AD20<-0.05,AD20>0.05)),"Accept","Reject") -> Reject
A21: 47 | B21: 1821 | C21: WINNING HAND | D21: 5 | E21: 9 | F21: 90 | G21: 2 | H21: profit | I21: -1 | J21: 7 | K21: 0.2341921252 | L21: 0.1312664683 | M21: 1113 | N21: 159 | O21: 201 | P21: 131 | Q21: 0.1805929919 | R21: 0.1176999102 | S21: -6.19047619 | T21: -10 | U21: 9.369076855 | V21: 15.20972971 | W21: 15.20972971 | X21: -6890 | Y21: count 201.000000 mean 17.537313 std 15.322528 min 5.000000 25% 5.000000 50% 15.000000 75% 25.000000 max 50.000000 Name: Ticket Outcome, dtype: float64 | AA21: =(Q21-K21)/SQRT((K21*(1-K21))/M21) -> -4.222399206 | AB21: =IF(AA21>0,1-NORMSDIST(AA21),NORMSDIST(AA21)) -> 1.20857751e-05 | AC21: =(R21-L21)/SQRT((L21*(1-L21))/M21) -> -1.340284732 | AD21: =IF(AC21>0,1-NORMSDIST(AC21),NORMSDIST(AC21)) -> 0.09007639672 | AE21: =(M21*D21) -> 5565 | AF21: =IF(OR(AB21<-0.05,AB21>0.05),"Accept","Reject") -> Reject | AG21: =IF(OR(OR(AB21<-0.05,AB21>0.05),OR(AD21<-0.05,AD21>0.05)),"Accept","Reject") -> Accept
A22: 47 | B22: 1821 | C22: WINNING HAND | D22: 5 | E22: 3 | F22: 30 | G22: 2 | H22: any | I22: -1 | J22: 4 | K22: 0.2341921252 | L22: 0.1312664683 | M22: 1112 | N22: 278 | O22: 191 | P22: 87 | Q22: 0.1717625899 | R22: 0.07823741007 | S22: -7.090827338 | T22: -10 | U22: 6.013301987 | V22: 4.741373235 | W22: 4.741373235 | X22: -7885 | Y22: count 191.000000 mean 12.591623 std 8.912483 min 5.000000 25% 5.000000 50% 5.000000 75% 25.000000 max 25.000000 Name: Ticket Outcome, dtype: float64 | AA22: =(Q22-K22)/SQRT((K22*(1-K22))/M22) -> -4.915825269 | AB22: =IF(AA22>0,1-NORMSDIST(AA22),NORMSDIST(AA22)) -> 4.42046131e-07 | AC22: =(R22-L22)/SQRT((L22*(1-L22))/M22) -> -5.236560376 | AD22: =IF(AC22>0,1-NORMSDIST(AC22),NORMSDIST(AC22)) -> 8.179837108e-08 | AE22: =(M22*D22) -> 5560 | AF22: =IF(OR(AB22<-0.05,AB22>0.05),"Accept","Reject") -> Reject | AG22: =IF(OR(OR(AB22<-0.05,AB22>0.05),OR(AD22<-0.05,AD22>0.05)),"Accept","Reject") -> Reject
A23: 47 | B23: 1821 | C23: WINNING HAND | D23: 5 | E23: 10 | F23: 100 | G23: 2 | H23: profit | I23: 0 | J23: 8 | K23: 0.2341921252 | L23: 0.1312664683 | M23: 1112 | N23: 139 | O23: 237 | P23: 153 | Q23: 0.2131294964 | R23: 0.1375899281 | S23: -6.991906475 | T23: -10 | U23: 7.809262364 | V23: 6.189724832 | W23: 6.189724832 | X23: -7775 | Y23: count 237.000000 mean 15.822785 std 9.447571 min 5.000000 25% 5.000000 50% 25.000000 75% 25.000000 max 25.000000 Name: Ticket Outcome, dtype: float64 | AA23: =(Q23-K23)/SQRT((K23*(1-K23))/M23) -> -1.658513111 | AB23: =IF(AA23>0,1-NORMSDIST(AA23),NORMSDIST(AA23)) -> 0.04860697168 | AC23: =(R23-L23)/SQRT((L23*(1-L23))/M23) -> 0.6244345997 | AD23: =IF(AC23>0,1-NORMSDIST(AC23),NORMSDIST(AC23)) -> 0.2661711041 | AE23: =(M23*D23) -> 5560 | AF23: =IF(OR(AB23<-0.05,AB23>0.05),"Accept","Reject") -> Reject | AG23: =IF(OR(OR(AB23<-0.05,AB23>0.05),OR(AD23<-0.05,AD23>0.05)),"Accept","Reject") -> Accept
A24: 47 | B24: 1821 | C24: WINNING HAND | D24: 5 | E24: 3 | F24: 30 | G24: 2 | H24: any | I24: 0 | J24: 4 | K24: 0.2341921252 | L24: 0.1312664683 | M24: 1112 | N24: 278 | O24: 159 | P24: 96 | Q24: 0.1429856115 | R24: 0.08633093525 | S24: -9.118705036 | T24: -10 | U24: 3.462955424 | V24: 2.369395511 | W24: 2.369395511 | X24: -10140 | Y24: count 159.000000 mean 9.025157 std 3.751708 min 5.000000 25% 5.000000 50% 10.000000 75% 10.000000 max 15.000000 Name: Ticket Outcome, dtype: float64 | AA24: =(Q24-K24)/SQRT((K24*(1-K24))/M24) -> -7.181781553 | AB24: =IF(AA24>0,1-NORMSDIST(AA24),NORMSDIST(AA24)) -> 3.440581153e-13 | AC24: =(R24-L24)/SQRT((L24*(1-L24))/M24) -> -4.437333788 | AD24: =IF(AC24>0,1-NORMSDIST(AC24),NORMSDIST(AC24)) -> 4.554000066e-06 | AE24: =(M24*D24) -> 5560 | AF24: =IF(OR(AB24<-0.05,AB24>0.05),"Accept","Reject") -> Reject | AG24: =IF(OR(OR(AB24<-0.05,AB24>0.05),OR(AD24<-0.05,AD24>0.05)),"Accept","Reject") -> Reject
A25: 131 | B25: 1821 | C25: WINNING HAND | D25: 5 | E25: 10 | F25: 100 | G25: 2 | H25: profit | I25: 1 | J25: 9 | K25: 0.2341921252 | L25: 0.1312664683 | M25: 1107 | N25: 123 | O25: 251 | P25: 169 | Q25: 0.2267389341 | R25: 0.15266486 | S25: -3.220415537 | T25: -5 | U25: 9.734093134 | V25: 11.91694572 | W25: 11.91694572 | X25: -3565 | Y25: count 251.000000 mean 17.749004 std 13.214112 min 5.000000 25% 5.000000 50% 15.000000 75% 25.000000 max 50.000000 Name: Ticket Outcome, dtype: float64 | AA25: =(Q25-K25)/SQRT((K25*(1-K25))/M25) -> -0.5855581232 | AB25: =IF(AA25>0,1-NORMSDIST(AA25),NORMSDIST(AA25)) -> 0.2790862484 | AC25: =(R25-L25)/SQRT((L25*(1-L25))/M25) -> 2.108311366 | AD25: =IF(AC25>0,1-NORMSDIST(AC25),NORMSDIST(AC25)) -> 0.01750203272 | AE25: =(M25*D25) -> 5535 | AF25: =IF(OR(AB25<-0.05,AB25>0.05),"Accept","Reject") -> Accept | AG25: =IF(OR(OR(AB25<-0.05,AB25>0.05),OR(AD25<-0.05,AD25>0.05)),"Accept","Reject") -> Accept
A26: 131 | B26: 1821 | C26: WINNING HAND | D26: 5 | E26: 4 | F26: 40 | G26: 2 | H26: any | I26: 1 | J26: 5 | K26: 0.2341921252 | L26: 0.1312664683 | M26: 1110 | N26: 222 | O26: 274 | P26: 146 | Q26: 0.2468468468 | R26: 0.1315315315 | S26: -7.851351351 | T26: -10 | U26: 4.913950157 | V26: 5.925852665 | W26: 5.925852665 | X26: -8715 | Y26: count 274.000000 mean 9.197080 std 5.843928 min 5.000000 25% 5.000000 50% 10.000000 75% 10.000000 max 25.000000 Name: Ticket Outcome, dtype: float64 | AA26: =(Q26-K26)/SQRT((K26*(1-K26))/M26) -> 0.9955613537 | AB26: =IF(AA26>0,1-NORMSDIST(AA26),NORMSDIST(AA26)) -> 0.15973166 | AC26: =(R26-L26)/SQRT((L26*(1-L26))/M26) -> 0.02615114866 | AD26: =IF(AC26>0,1-NORMSDIST(AC26),NORMSDIST(AC26)) -> 0.4895683901 | AE26: =(M26*D26) -> 5550 | AF26: =IF(OR(AB26<-0.05,AB26>0.05),"Accept","Reject") -> Accept | AG26: =IF(OR(OR(AB26<-0.05,AB26>0.05),OR(AD26<-0.05,AD26>0.05)),"Accept","Reject") -> Accept
A27: 215 | B27: 1821 | C27: WINNING HAND | D27: 5 | E27: 4 | F27: 40 | G27: 2 | H27: any | I27: 2 | J27: 6 | K27: 0.2341921252 | L27: 0.1312664683 | M27: 1110 | N27: 185 | O27: 405 | P27: 203 | Q27: 0.3648648649 | R27: 0.1828828829 | S27: -1.004504505 | T27: -5 | U27: 9.446492709 | V27: 12.79311745 | W27: 12.79311745 | X27: -1115 | Y27: count 405.000000 mean 12.740741 std 11.899723 min 5.000000 25% 5.000000 50% 10.000000 75% 15.000000 max 50.000000 Name: Ticket Outcome, dtype: float64 | AA27: =(Q27-K27)/SQRT((K27*(1-K27))/M27) -> 10.28017312 | AB27: =IF(AA27>0,1-NORMSDIST(AA27),NORMSDIST(AA27)) -> 0 | AC27: =(R27-L27)/SQRT((L27*(1-L27))/M27) -> 5.092477636 | AD27: =IF(AC27>0,1-NORMSDIST(AC27),NORMSDIST(AC27)) -> 1.767072062e-07 | AE27: =(M27*D27) -> 5550 | AF27: =IF(OR(AB27<-0.05,AB27>0.05),"Accept","Reject") -> Reject | AG27: =IF(OR(OR(AB27<-0.05,AB27>0.05),OR(AD27<-0.05,AD27>0.05)),"Accept","Reject") -> Reject
A28: 215 | B28: 1821 | C28: WINNING HAND | D28: 5 | E28: 11 | F28: 110 | G28: 2 | H28: profit | I28: 2 | J28: 11 | K28: 0.2341921252 | L28: 0.1312664683 | M28: 1111 | N28: 101 | O28: 249 | P28: 193 | Q28: 0.2241224122 | R28: 0.1737173717 | S28: -11.84518452 | T28: -10 | U28: 6.585429168 | V28: 6.352357008 | W28: 6.352357008 | X28: -13160 | Y28: count 249.000000 mean 13.493976 std 7.229041 min 5.000000 25% 10.000000 50% 10.000000 75% 15.000000 max 25.000000 Name: Ticket Outcome, dtype: float64 | AA28: =(Q28-K28)/SQRT((K28*(1-K28))/M28) -> -0.7925525386 | AB28: =IF(AA28>0,1-NORMSDIST(AA28),NORMSDIST(AA28)) -> 0.214019285 | AC28: =(R28-L28)/SQRT((L28*(1-L28))/M28) -> 4.190094076 | AD28: =IF(AC28>0,1-NORMSDIST(AC28),NORMSDIST(AC28)) -> 1.394194119e-05 | AE28: =(M28*D28) -> 5555 | AF28: =IF(OR(AB28<-0.05,AB28>0.05),"Accept","Reject") -> Accept | AG28: =IF(OR(OR(AB28<-0.05,AB28>0.05),OR(AD28<-0.05,AD28>0.05)),"Accept","Reject") -> Accept
A29: 299 | B29: 1821 | C29: WINNING HAND | D29: 5 | E29: 5 | F29: 50 | G29: 2 | H29: any | I29: 3 | J29: 7 | K29: 0.2341921252 | L29: 0.1312664683 | M29: 1113 | N29: 159 | O29: 237 | P29: 107 | Q29: 0.2129380054 | R29: 0.09613656783 | S29: -13.13566936 | T29: -10 | U29: 3.876570979 | V29: 3.625109828 | W29: 3.625109828 | X29: -14620 | Y29: count 237.000000 mean 8.164557 std 4.256890 min 5.000000 25% 5.000000 50% 5.000000 75% 10.000000 max 25.000000 Name: Ticket Outcome, dtype: float64 | AA29: =(Q29-K29)/SQRT((K29*(1-K29))/M29) -> -1.674343838 | AB29: =IF(AA29>0,1-NORMSDIST(AA29),NORMSDIST(AA29)) -> 0.0470315218 | AC29: =(R29-L29)/SQRT((L29*(1-L29))/M29) -> -3.470597972 | AD29: =IF(AC29>0,1-NORMSDIST(AC29),NORMSDIST(AC29)) -> 0.0002596504305 | AE29: =(M29*D29) -> 5565 | AF29: =IF(OR(AB29<-0.05,AB29>0.05),"Accept","Reject") -> Reject | AG29: =IF(OR(OR(AB29<-0.05,AB29>0.05),OR(AD29<-0.05,AD29>0.05)),"Accept","Reject") -> Reject
A30: 299 | B30: 1821 | C30: WINNING HAND | D30: 5 | E30: 12 | F30: 120 | G30: 2 | H30: profit | I30: 3 | J30: 14 | K30: 0.2341921252 | L30: 0.1312664683 | M30: 1106 | N30: 79 | O30: 232 | P30: 152 | Q30: 0.2097649186 | R30: 0.1374321881 | S30: -18.39963834 | T30: -15 | U30: 6.129061765 | V30: 7.356149219 | W30: 7.356149219 | X30: -20350 | Y30: count 232.000000 mean 12.155172 std 7.901563 min 5.000000 25% 5.000000 50% 10.000000 75% 25.000000 max 25.000000 Name: Ticket Outcome, dtype: float64 | AA30: =(Q30-K30)/SQRT((K30*(1-K30))/M30) -> -1.918250457 | AB30: =IF(AA30>0,1-NORMSDIST(AA30),NORMSDIST(AA30)) -> 0.02753963056 | AC30: =(R30-L30)/SQRT((L30*(1-L30))/M30) -> 0.6072131272 | AD30: =IF(AC30>0,1-NORMSDIST(AC30),NORMSDIST(AC30)) -> 0.2718547408 | AE30: =(M30*D30) -> 5530 | AF30: =IF(OR(AB30<-0.05,AB30>0.05),"Accept","Reject") -> Reject | AG30: =IF(OR(OR(AB30<-0.05,AB30>0.05),OR(AD30<-0.05,AD30>0.05)),"Accept","Reject") -> Accept
A31: 10 | B31: 1828 | C31: $5 MILLION DOLLAR SERIES | D31: 20 | E31: 1 | F31: 40 | G31: 2 | H31: any | I31: -3 | J31: 2 | K31: 0.3278689239 | L31: 0.2125298221 | M31: 1110 | N31: 555 | O31: 373 | P31: 319 | Q31: 0.336036036 | R31: 0.2873873874 | S31: -10.13513514 | T31: -20 | U31: 24.01571704 | V31: 27.45335746 | W31: 27.45335746 | X31: -11250 | Y31: count 373.000000 mean 39.021448 std 26.564884 min 20.000000 25% 25.000000 50% 25.000000 75% 50.000000 max 100.000000 Name: Ticket Outcome, dtype: float64 | AA31: =(Q31-K31)/SQRT((K31*(1-K31))/M31) -> 0.5796327207 | AB31: =IF(AA31>0,1-NORMSDIST(AA31),NORMSDIST(AA31)) -> 0.2810811613 | AC31: =(R31-L31)/SQRT((L31*(1-L31))/M31) -> 6.096354177 | AD31: =IF(AC31>0,1-NORMSDIST(AC31),NORMSDIST(AC31)) -> 5.425742078e-10 | AE31: =(M31*D31) -> 22200 | AF31: =IF(OR(AB31<-0.05,AB31>0.05),"Accept","Reject") -> Accept | AG31: =IF(OR(OR(AB31<-0.05,AB31>0.05),OR(AD31<-0.05,AD31>0.05)),"Accept","Reject") -> Accept
A32: 178 | B32: 1828 | C32: $5 MILLION DOLLAR SERIES | D32: 20 | E32: 3 | F32: 120 | G32: 2 | H32: profit | I32: -3 | J32: 3 | K32: 0.3278689239 | L32: 0.2125298221 | M32: 1110 | N32: 370 | O32: 295 | P32: 274 | Q32: 0.2657657658 | R32: 0.2468468468 | S32: -20.48648649 | T32: -20 | U32: 19.56606274 | V32: 22.39762709 | W32: 22.39762709 | X32: -22740 | Y32: count 295.000000 mean 36.067797 std 22.038050 min 20.000000 25% 25.000000 50% 25.000000 75% 40.000000 max 100.000000 Name: Ticket Outcome, dtype: float64 | AA32: =(Q32-K32)/SQRT((K32*(1-K32))/M32) -> -4.407558241 | AB32: =IF(AA32>0,1-NORMSDIST(AA32),NORMSDIST(AA32)) -> 5.227124733e-06 | AC32: =(R32-L32)/SQRT((L32*(1-L32))/M32) -> 2.794757436 | AD32: =IF(AC32>0,1-NORMSDIST(AC32),NORMSDIST(AC32)) -> 0.00259693347 | AE32: =(M32*D32) -> 22200 | AF32: =IF(OR(AB32<-0.05,AB32>0.05),"Accept","Reject") -> Reject | AG32: =IF(OR(OR(AB32<-0.05,AB32>0.05),OR(AD32<-0.05,AD32>0.05)),"Accept","Reject") -> Reject
A33: 10 | B33: 1828 | C33: $5 MILLION DOLLAR SERIES | D33: 20 | E33: 1 | F33: 40 | G33: 2 | H33: any | I33: -2 | J33: 2 | K33: 0.3278689239 | L33: 0.2125298221 | M33: 1110 | N33: 555 | O33: 286 | P33: 175 | Q33: 0.2576576577 | R33: 0.1576576577 | S33: -20.25225225 | T33: -20 | U33: 11.24957858 | V33: 2.316145941 | W33: 2.316145941 | X33: -22480 | Y33: count 286.000000 mean 25.174825 std 4.507794 min 20.000000 25% 20.000000 50% 25.000000 75% 30.000000 max 30.000000 Name: Ticket Outcome, dtype: float64 | AA33: =(Q33-K33)/SQRT((K33*(1-K33))/M33) -> -4.983003352 | AB33: =IF(AA33>0,1-NORMSDIST(AA33),NORMSDIST(AA33)) -> 3.130243278e-07 | AC33: =(R33-L33)/SQRT((L33*(1-L33))/M33) -> -4.468755395 | AD33: =IF(AC33>0,1-NORMSDIST(AC33),NORMSDIST(AC33)) -> 3.933801819e-06 | AE33: =(M33*D33) -> 22200 | AF33: =IF(OR(AB33<-0.05,AB33>0.05),"Accept","Reject") -> Reject | AG33: =IF(OR(OR(AB33<-0.05,AB33>0.05),OR(AD33<-0.05,AD33>0.05)),"Accept","Reject") -> Reject
A34: 94 | B34: 1828 | C34: $5 MILLION DOLLAR SERIES | D34: 20 | E34: 4 | F34: 160 | G34: 2 | H34: profit | I34: -2 | J34: 4 | K34: 0.3278689239 | L34: 0.2125298221 | M34: 1112 | N34: 278 | O34: 245 | P34: 103 | Q34: 0.220323741 | R34: 0.09262589928 | S34: -37.8147482 | T34: -40 | U34: 9.698218378 | V34: 2.477770963 | W34: 2.477770963 | X34: -42050 | Y34: count 245.000000 mean 22.979592 std 3.854366 min 20.000000 25% 20.000000 50% 20.000000 75% 25.000000 max 30.000000 Name: Ticket Outcome, dtype: float64 | AA34: =(Q34-K34)/SQRT((K34*(1-K34))/M34) -> -7.639522962 | AB34: =IF(AA34>0,1-NORMSDIST(AA34),NORMSDIST(AA34)) -> 1.088018564e-14 | AC34: =(R34-L34)/SQRT((L34*(1-L34))/M34) -> -9.773695136 | AD34: =IF(AC34>0,1-NORMSDIST(AC34),NORMSDIST(AC34)) -> 0 | AE34: =(M34*D34) -> 22240 | AF34: =IF(OR(AB34<-0.05,AB34>0.05),"Accept","Reject") -> Reject | AG34: =IF(OR(OR(AB34<-0.05,AB34>0.05),OR(AD34<-0.05,AD34>0.05)),"Accept","Reject") -> Reject
A35: 10 | B35: 1828 | C35: $5 MILLION DOLLAR SERIES | D35: 20 | E35: 4 | F35: 160 | G35: 2 | H35: profit | I35: -1 | J35: 4 | K35: 0.3278689239 | L35: 0.2125298221 | M35: 1112 | N35: 278 | O35: 416 | P35: 260 | Q35: 0.3741007194 | R35: 0.2338129496 | S35: -18.84892086 | T35: -20 | U35: 23.55309187 | V35: 31.1318989 | W35: 31.1318989 | X35: -20960 | Y35: count 416.000000 mean 34.615385 std 27.080356 min 20.000000 25% 20.000000 50% 25.000000 75% 30.000000 max 100.000000 Name: Ticket Outcome, dtype: float64 | AA35: =(Q35-K35)/SQRT((K35*(1-K35))/M35) -> 3.284097476 | AB35: =IF(AA35>0,1-NORMSDIST(AA35),NORMSDIST(AA35)) -> 0.0005115476493 | AC35: =(R35-L35)/SQRT((L35*(1-L35))/M35) -> 1.734845662 | AD35: =IF(AC35>0,1-NORMSDIST(AC35),NORMSDIST(AC35)) -> 0.04138407298 | AE35: =(M35*D35) -> 22240 | AF35: =IF(OR(AB35<-0.05,AB35>0.05),"Accept","Reject") -> Reject | AG35: =IF(OR(OR(AB35<-0.05,AB35>0.05),OR(AD35<-0.05,AD35>0.05)),"Accept","Reject") -> Reject
A36: 10 | B36: 1828 | C36: $5 MILLION DOLLAR SERIES | D36: 20 | E36: 2 | F36: 80 | G36: 2 | H36: any | I36: -1 | J36: 3 | K36: 0.3278689239 | L36: 0.2125298221 | M36: 1110 | N36: 370 | O36: 321 | P36: 256 | Q36: 0.2891891892 | R36: 0.2306306306 | S36: -18.99099099 | T36: -20 | U36: 22.43176189 | V36: 27.65572553 | W36: 27.65572553 | X36: -21080 | Y36: count 321.000000 mean 38.348910 std 26.367293 min 20.000000 25% 25.000000 50% 25.000000 75% 40.000000 max 100.000000 Name: Ticket Outcome, dtype: float64 | AA36: =(Q36-K36)/SQRT((K36*(1-K36))/M36) -> -2.745161254 | AB36: =IF(AA36>0,1-NORMSDIST(AA36),NORMSDIST(AA36)) -> 0.003024058557 | AC36: =(R36-L36)/SQRT((L36*(1-L36))/M36) -> 1.474118739 | AD36: =IF(AC36>0,1-NORMSDIST(AC36),NORMSDIST(AC36)) -> 0.07022481193 | AE36: =(M36*D36) -> 22200 | AF36: =IF(OR(AB36<-0.05,AB36>0.05),"Accept","Reject") -> Reject | AG36: =IF(OR(OR(AB36<-0.05,AB36>0.05),OR(AD36<-0.05,AD36>0.05)),"Accept","Reject") -> Accept
A37: 10 | B37: 1828 | C37: $5 MILLION DOLLAR SERIES | D37: 20 | E37: 2 | F37: 80 | G37: 2 | H37: any | I37: 0 | J37: 3 | K37: 0.3278689239 | L37: 0.2125298221 | M37: 1110 | N37: 370 | O37: 288 | P37: 202 | Q37: 0.2594594595 | R37: 0.181981982 | S37: -26.42342342 | T37: -20 | U37: 12.85982522 | V37: 11.53409374 | W37: 11.53409374 | X37: -29330 | Y37: count 288.000000 mean 26.631944 std 10.581192 min 20.000000 25% 20.000000 50% 25.000000 75% 30.000000 max 100.000000 Name: Ticket Outcome, dtype: float64 | AA37: =(Q37-K37)/SQRT((K37*(1-K37))/M37) -> -4.855126661 | AB37: =IF(AA37>0,1-NORMSDIST(AA37),NORMSDIST(AA37)) -> 6.015490934e-07 | AC37: =(R37-L37)/SQRT((L37*(1-L37))/M37) -> -2.48779735 | AD37: =IF(AC37>0,1-NORMSDIST(AC37),NORMSDIST(AC37)) -> 0.006426847598 | AE37: =(M37*D37) -> 22200 | AF37: =IF(OR(AB37<-0.05,AB37>0.05),"Accept","Reject") -> Reject | AG37: =IF(OR(OR(AB37<-0.05,AB37>0.05),OR(AD37<-0.05,AD37>0.05)),"Accept","Reject") -> Reject
A38: 10 | B38: 1828 | C38: $5 MILLION DOLLAR SERIES | D38: 20 | E38: 5 | F38: 200 | G38: 2 | H38: profit | I38: 0 | J38: 5 | K38: 0.3278689239 | L38: 0.2125298221 | M38: 1110 | N38: 222 | O38: 171 | P38: 113 | Q38: 0.1540540541 | R38: 0.1018018018 | S38: -49.0990991 | T38: -50 | U38: 9.114415374 | V38: 2.506313141 | W38: 2.506313141 | X38: -54500 | Y38: count 171.000000 mean 24.853801 std 4.037577 min 20.000000 25% 20.000000 50% 25.000000 75% 30.000000 max 30.000000 Name: Ticket Outcome, dtype: float64 | AA38: =(Q38-K38)/SQRT((K38*(1-K38))/M38) -> -12.3359131 | AB38: =IF(AA38>0,1-NORMSDIST(AA38),NORMSDIST(AA38)) -> 0 | AC38: =(R38-L38)/SQRT((L38*(1-L38))/M38) -> -9.017622016 | AD38: =IF(AC38>0,1-NORMSDIST(AC38),NORMSDIST(AC38)) -> 0 | AE38: =(M38*D38) -> 22200 | AF38: =IF(OR(AB38<-0.05,AB38>0.05),"Accept","Reject") -> Reject | AG38: =IF(OR(OR(AB38<-0.05,AB38>0.05),OR(AD38<-0.05,AD38>0.05)),"Accept","Reject") -> Reject
A39: 94 | B39: 1828 | C39: $5 MILLION DOLLAR SERIES | D39: 20 | E39: 2 | F39: 80 | G39: 2 | H39: any | I39: 1 | J39: 3 | K39: 0.3278689239 | L39: 0.2125298221 | M39: 1110 | N39: 370 | O39: 299 | P39: 189 | Q39: 0.2693693694 | R39: 0.1702702703 | S39: 35.15765766 | T39: -20 | U39: 178.9237325 | V39: 379.9942175 | W39: 379.9942175 | X39: 39025 | Y39: count 299.000000 mean 154.448161 std 318.827729 min 20.000000 25% 20.000000 50% 40.000000 75% 50.000000 max 1000.000000 Name: Ticket Outcome, dtype: float64 | AA39: =(Q39-K39)/SQRT((K39*(1-K39))/M39) -> -4.151804859 | AB39: =IF(AA39>0,1-NORMSDIST(AA39),NORMSDIST(AA39)) -> 1.649317394e-05 | AC39: =(R39-L39)/SQRT((L39*(1-L39))/M39) -> -3.441591964 | AD39: =IF(AC39>0,1-NORMSDIST(AC39),NORMSDIST(AC39)) -> 0.0002891509286 | AE39: =(M39*D39) -> 22200 | AF39: =IF(OR(AB39<-0.05,AB39>0.05),"Accept","Reject") -> Reject | AG39: =IF(OR(OR(AB39<-0.05,AB39>0.05),OR(AD39<-0.05,AD39>0.05)),"Accept","Reject") -> Reject
A40: 94 | B40: 1828 | C40: $5 MILLION DOLLAR SERIES | D40: 20 | E40: 5 | F40: 200 | G40: 2 | H40: profit | I40: 1 | J40: 5 | K40: 0.3278689239 | L40: 0.2125298221 | M40: 1110 | N40: 222 | O40: 437 | P40: 295 | Q40: 0.3936936937 | R40: 0.2657657658 | S40: -17.77477477 | T40: -20 | U40: 25.57699017 | V40: 32.85530051 | W40: 32.85530051 | X40: -19730 | Y40: count 437.000000 mean 36.418764 std 29.290947 min 20.000000 25% 20.000000 50% 25.000000 75% 25.000000 max 100.000000 Name: Ticket Outcome, dtype: float64 | AA40: =(Q40-K40)/SQRT((K40*(1-K40))/M40) -> 4.671686843 | AB40: =IF(AA40>0,1-NORMSDIST(AA40),NORMSDIST(AA40)) -> 1.493680891e-06 | AC40: =(R40-L40)/SQRT((L40*(1-L40))/M40) -> 4.335502582 | AD40: =IF(AC40>0,1-NORMSDIST(AC40),NORMSDIST(AC40)) -> 7.271373378e-06 | AE40: =(M40*D40) -> 22200 | AF40: =IF(OR(AB40<-0.05,AB40>0.05),"Accept","Reject") -> Reject | AG40: =IF(OR(OR(AB40<-0.05,AB40>0.05),OR(AD40<-0.05,AD40>0.05)),"Accept","Reject") -> Reject
A41: 178 | B41: 1828 | C41: $5 MILLION DOLLAR SERIES | D41: 20 | E41: 2 | F41: 80 | G41: 2 | H41: any | I41: 2 | J41: 4 | K41: 0.3278689239 | L41: 0.2125298221 | M41: 1112 | N41: 278 | O41: 497 | P41: 226 | Q41: 0.446942446 | R41: 0.2032374101 | S41: -22.79676259 | T41: -20 | U41: 11.96893799 | V41: 2.505451284 | W41: 2.505451284 | X41: -25350 | Y41: count 497.000000 mean 23.420523 std 4.111626 min 20.000000 25% 20.000000 50% 20.000000 75% 25.000000 max 30.000000 Name: Ticket Outcome, dtype: float64 | AA41: =(Q41-K41)/SQRT((K41*(1-K41))/M41) -> 8.458444 | AB41: =IF(AA41>0,1-NORMSDIST(AA41),NORMSDIST(AA41)) -> 0 | AC41: =(R41-L41)/SQRT((L41*(1-L41))/M41) -> -0.7574497977 | AD41: =IF(AC41>0,1-NORMSDIST(AC41),NORMSDIST(AC41)) -> 0.2243902158 | AE41: =(M41*D41) -> 22240 | AF41: =IF(OR(AB41<-0.05,AB41>0.05),"Accept","Reject") -> Reject | AG41: =IF(OR(OR(AB41<-0.05,AB41>0.05),OR(AD41<-0.05,AD41>0.05)),"Accept","Reject") -> Accept
A42: 178 | B42: 1828 | C42: $5 MILLION DOLLAR SERIES | D42: 20 | E42: 5 | F42: 200 | G42: 2 | H42: profit | I42: 2 | J42: 6 | K42: 0.3278689239 | L42: 0.2125298221 | M42: 1110 | N42: 185 | O42: 138 | P42: 23 | Q42: 0.1243243243 | R42: 0.02072072072 | S42: -58.27927928 | T42: -60 | U42: 8.621362925 | V42: 9.409439378 | W42: 9.409439378 | X42: -64690 | Y42: count 138.000000 mean 23.985507 std 9.706635 min 20.000000 25% 20.000000 50% 20.000000 75% 20.000000 max 50.000000 Name: Ticket Outcome, dtype: float64 | AA42: =(Q42-K42)/SQRT((K42*(1-K42))/M42) -> -14.44587851 | AB42: =IF(AA42>0,1-NORMSDIST(AA42),NORMSDIST(AA42)) -> 0 | AC42: =(R42-L42)/SQRT((L42*(1-L42))/M42) -> -15.6208155 | AD42: =IF(AC42>0,1-NORMSDIST(AC42),NORMSDIST(AC42)) -> 0 | AE42: =(M42*D42) -> 22200 | AF42: =IF(OR(AB42<-0.05,AB42>0.05),"Accept","Reject") -> Reject | AG42: =IF(OR(OR(AB42<-0.05,AB42>0.05),OR(AD42<-0.05,AD42>0.05)),"Accept","Reject") -> Reject
A43: 262 | B43: 1828 | C43: $5 MILLION DOLLAR SERIES | D43: 20 | E43: 3 | F43: 120 | G43: 2 | H43: any | I43: 3 | J43: 5 | K43: 0.3278689239 | L43: 0.2125298221 | M43: 1110 | N43: 222 | O43: 446 | P43: 322 | Q43: 0.4018018018 | R43: 0.2900900901 | S43: 29.22972973 | T43: -30 | U43: 88.58853479 | V43: 142.7582033 | W43: 142.7582033 | X43: 32445 | Y43: count 446.000000 mean 77.354260 std 126.374937 min 20.000000 25% 20.000000 50% 25.000000 75% 40.000000 max 400.000000 Name: Ticket Outcome, dtype: float64 | AA43: =(Q43-K43)/SQRT((K43*(1-K43))/M43) -> 5.247131954 | AB43: =IF(AA43>0,1-NORMSDIST(AA43),NORMSDIST(AA43)) -> 7.724262707e-08 | AC43: =(R43-L43)/SQRT((L43*(1-L43))/M43) -> 6.316460626 | AD43: =IF(AC43>0,1-NORMSDIST(AC43),NORMSDIST(AC43)) -> 1.338108513e-10 | AE43: =(M43*D43) -> 22200 | AF43: =IF(OR(AB43<-0.05,AB43>0.05),"Accept","Reject") -> Reject | AG43: =IF(OR(OR(AB43<-0.05,AB43>0.05),OR(AD43<-0.05,AD43>0.05)),"Accept","Reject") -> Reject
A44: 262 | B44: 1828 | C44: $5 MILLION DOLLAR SERIES | D44: 20 | E44: 6 | F44: 240 | G44: 2 | H44: profit | I44: 3 | J44: 8 | K44: 0.3278689239 | L44: 0.2125298221 | M44: 1112 | N44: 139 | O44: 283 | P44: 123 | Q44: 0.2544964029 | R44: 0.1106115108 | S44: -49.60881295 | T44: -40 | U44: 24.13866461 | V44: 34.81759748 | W44: 34.81759748 | X44: -55165 | Y44: count 283.000000 mean 40.459364 std 32.724418 min 20.000000 25% 20.000000 50% 20.000000 75% 50.000000 max 100.000000 Name: Ticket Outcome, dtype: float64 | AA44: =(Q44-K44)/SQRT((K44*(1-K44))/M44) -> -5.212051754 | AB44: =IF(AA44>0,1-NORMSDIST(AA44),NORMSDIST(AA44)) -> 9.338171314e-08 | AC44: =(R44-L44)/SQRT((L44*(1-L44))/M44) -> -8.307638983 | AD44: =IF(AC44>0,1-NORMSDIST(AC44),NORMSDIST(AC44)) -> 0 | AE44: =(M44*D44) -> 22240 | AF44: =IF(OR(AB44<-0.05,AB44>0.05),"Accept","Reject") -> Reject | AG44: =IF(OR(OR(AB44<-0.05,AB44>0.05),OR(AD44<-0.05,AD44>0.05)),"Accept","Reject") -> Reject
A45: 171 | B45: 1841 | C45: EXTREME MILLIONS | D45: 30 | E45: 4 | F45: 240 | G45: 2 | H45: profit | I45: -3 | J45: 4 | K45: 0.3367003815 | L45: 0.1901817274 | M45: 1112 | N45: 278 | O45: 411 | P45: 372 | Q45: 0.3696043165 | R45: 0.3345323741 | S45: -13.80395683 | T45: -20 | U45: 38.20243361 | V45: 27.80318038 | W45: 27.80318038 | X45: -15350 | Y45: count 411.000000 mean 69.902676 std 29.441803 min 30.000000 25% 40.000000 50% 60.000000 75% 100.000000 max 100.000000 Name: Ticket Outcome, dtype: float64 | AA45: =(Q45-K45)/SQRT((K45*(1-K45))/M45) -> 2.321793305 | AB45: =IF(AA45>0,1-NORMSDIST(AA45),NORMSDIST(AA45)) -> 0.01012203397 | AC45: =(R45-L45)/SQRT((L45*(1-L45))/M45) -> 12.26571721 | AD45: =IF(AC45>0,1-NORMSDIST(AC45),NORMSDIST(AC45)) -> 0 | AE45: =(M45*D45) -> 33360 | AF45: =IF(OR(AB45<-0.05,AB45>0.05),"Accept","Reject") -> Reject | AG45: =IF(OR(OR(AB45<-0.05,AB45>0.05),OR(AD45<-0.05,AD45>0.05)),"Accept","Reject") -> Reject
A46: 3 | B46: 1841 | C46: EXTREME MILLIONS | D46: 30 | E46: 1 | F46: 60 | G46: 2 | H46: any | I46: -3 | J46: 2 | K46: 0.3367003815 | L46: 0.1901817274 | M46: 1112 | N46: 556 | O46: 235 | P46: 138 | Q46: 0.2113309353 | R46: 0.1241007194 | S46: -32.01438849 | T46: -30 | U46: 18.59567045 | V46: 9.79640411 | W46: 9.79640411 | X46: -35600 | Y46: count 235.000000 mean 43.021277 std 13.261810 min 30.000000 25% 30.000000 50% 40.000000 75% 60.000000 max 60.000000 Name: Ticket Outcome, dtype: float64 | AA46: =(Q46-K46)/SQRT((K46*(1-K46))/M46) -> -8.846417329 | AB46: =IF(AA46>0,1-NORMSDIST(AA46),NORMSDIST(AA46)) -> 0 | AC46: =(R46-L46)/SQRT((L46*(1-L46))/M46) -> -5.615014381 | AD46: =IF(AC46>0,1-NORMSDIST(AC46),NORMSDIST(AC46)) -> 9.827294978e-09 | AE46: =(M46*D46) -> 33360 | AF46: =IF(OR(AB46<-0.05,AB46>0.05),"Accept","Reject") -> Reject | AG46: =IF(OR(OR(AB46<-0.05,AB46>0.05),OR(AD46<-0.05,AD46>0.05)),"Accept","Reject") -> Reject
A47: 87 | B47: 1841 | C47: EXTREME MILLIONS | D47: 30 | E47: 4 | F47: 240 | G47: 2 | H47: profit | I47: -2 | J47: 4 | K47: 0.3367003815 | L47: 0.1901817274 | M47: 1112 | N47: 278 | O47: 482 | P47: 371 | Q47: 0.4334532374 | R47: 0.3336330935 | S47: 1.007194245 | T47: -10 | U47: 38.67927283 | V47: 25.74091851 | W47: 25.74091851 | X47: 1120 | Y47: count 482.000000 mean 66.867220 std 30.285183 min 30.000000 25% 40.000000 50% 60.000000 75% 100.000000 max 100.000000 Name: Ticket Outcome, dtype: float64 | AA47: =(Q47-K47)/SQRT((K47*(1-K47))/M47) -> 6.827151004 | AB47: =IF(AA47>0,1-NORMSDIST(AA47),NORMSDIST(AA47)) -> 4.330868997e-12 | AC47: =(R47-L47)/SQRT((L47*(1-L47))/M47) -> 12.18930383 | AD47: =IF(AC47>0,1-NORMSDIST(AC47),NORMSDIST(AC47)) -> 0 | AE47: =(M47*D47) -> 33360 | AF47: =IF(OR(AB47<-0.05,AB47>0.05),"Accept","Reject") -> Reject | AG47: =IF(OR(OR(AB47<-0.05,AB47>0.05),OR(AD47<-0.05,AD47>0.05)),"Accept","Reject") -> Reject
A48: 3 | B48: 1841 | C48: EXTREME MILLIONS | D48: 30 | E48: 1 | F48: 60 | G48: 2 | H48: any | I48: -2 | J48: 2 | K48: 0.3367003815 | L48: 0.1901817274 | M48: 1112 | N48: 556 | O48: 433 | P48: 325 | Q48: 0.3893884892 | R48: 0.2922661871 | S48: -1.007194245 | T48: -30 | U48: 48.38114534 | V48: 44.68528761 | W48: 44.68528761 | X48: -1120 | Y48: count 433.000000 mean 78.244804 std 47.674292 min 30.000000 25% 40.000000 50% 100.000000 75% 100.000000 max 200.000000 Name: Ticket Outcome, dtype: float64 | AA48: =(Q48-K48)/SQRT((K48*(1-K48))/M48) -> 3.717819634 | AB48: =IF(AA48>0,1-NORMSDIST(AA48),NORMSDIST(AA48)) -> 0.000100474827 | AC48: =(R48-L48)/SQRT((L48*(1-L48))/M48) -> 8.674288214 | AD48: =IF(AC48>0,1-NORMSDIST(AC48),NORMSDIST(AC48)) -> 0 | AE48: =(M48*D48) -> 33360 | AF48: =IF(OR(AB48<-0.05,AB48>0.05),"Accept","Reject") -> Reject | AG48: =IF(OR(OR(AB48<-0.05,AB48>0.05),OR(AD48<-0.05,AD48>0.05)),"Accept","Reject") -> Reject
A49: 3 | B49: 1841 | C49: EXTREME MILLIONS | D49: 30 | E49: 2 | F49: 120 | G49: 2 | H49: any | I49: -1 | J49: 3 | K49: 0.3367003815 | L49: 0.1901817274 | M49: 1110 | N49: 370 | O49: 411 | P49: 234 | Q49: 0.3702702703 | R49: 0.2108108108 | S49: -16.68468468 | T49: -30 | U49: 35.21434886 | V49: 24.88022001 | W49: 24.88022001 | X49: -18520 | Y49: count 411.000000 mean 60.389294 std 32.435215 min 30.000000 25% 30.000000 50% 50.000000 75% 100.000000 max 100.000000 Name: Ticket Outcome, dtype: float64 | AA49: =(Q49-K49)/SQRT((K49*(1-K49))/M49) -> 2.366653694 | AB49: =IF(AA49>0,1-NORMSDIST(AA49),NORMSDIST(AA49)) -> 0.008974859845 | AC49: =(R49-L49)/SQRT((L49*(1-L49))/M49) -> 1.751310861 | AD49: =IF(AC49>0,1-NORMSDIST(AC49),NORMSDIST(AC49)) -> 0.03994618895 | AE49: =(M49*D49) -> 33300 | AF49: =IF(OR(AB49<-0.05,AB49>0.05),"Accept","Reject") -> Reject | AG49: =IF(OR(OR(AB49<-0.05,AB49>0.05),OR(AD49<-0.05,AD49>0.05)),"Accept","Reject") -> Reject
A50: 3 | B50: 1841 | C50: EXTREME MILLIONS | D50: 30 | E50: 5 | F50: 300 | G50: 2 | H50: profit | I50: -1 | J50: 5 | K50: 0.3367003815 | L50: 0.1901817274 | M50: 1110 | N50: 222 | O50: 255 | P50: 189 | Q50: 0.2297297297 | R50: 0.1702702703 | S50: -33.00900901 | T50: -60 | U50: 37.19321227 | V50: 7.215659606 | W50: 7.215659606 | X50: -36640 | Y50: count 255.000000 mean 81.098039 std 30.885396 min 30.000000 25% 30.000000 50% 100.000000 75% 100.000000 max 100.000000 Name: Ticket Outcome, dtype: float64 | AA50: =(Q50-K50)/SQRT((K50*(1-K50))/M50) -> -7.541356186 | AB50: =IF(AA50>0,1-NORMSDIST(AA50),NORMSDIST(AA50)) -> 2.320366121e-14 | AC50: =(R50-L50)/SQRT((L50*(1-L50))/M50) -> -1.690387813 | AD50: =IF(AC50>0,1-NORMSDIST(AC50),NORMSDIST(AC50)) -> 0.04547689249 | AE50: =(M50*D50) -> 33300 | AF50: =IF(OR(AB50<-0.05,AB50>0.05),"Accept","Reject") -> Reject | AG50: =IF(OR(OR(AB50<-0.05,AB50>0.05),OR(AD50<-0.05,AD50>0.05)),"Accept","Reject") -> Reject
A51: 3 | B51: 1841 | C51: EXTREME MILLIONS | D51: 30 | E51: 2 | F51: 120 | G51: 2 | H51: any | I51: 0 | J51: 3 | K51: 0.3367003815 | L51: 0.1901817274 | M51: 1110 | N51: 370 | O51: 426 | P51: 169 | Q51: 0.3837837838 | R51: 0.1522522523 | S51: -19.96396396 | T51: -30 | U51: 31.32336926 | V51: 19.26809564 | W51: 19.26809564 | X51: -22160 | Y51: count 426.000000 mean 52.042254 std 29.788400 min 30.000000 25% 30.000000 50% 30.000000 75% 100.000000 max 100.000000 Name: Ticket Outcome, dtype: float64 | AA51: =(Q51-K51)/SQRT((K51*(1-K51))/M51) -> 3.319346951 | AB51: =IF(AA51>0,1-NORMSDIST(AA51),NORMSDIST(AA51)) -> 0.0004511412456 | AC51: =(R51-L51)/SQRT((L51*(1-L51))/M51) -> -3.220031669 | AD51: =IF(AC51>0,1-NORMSDIST(AC51),NORMSDIST(AC51)) -> 0.0006408821811 | AE51: =(M51*D51) -> 33300 | AF51: =IF(OR(AB51<-0.05,AB51>0.05),"Accept","Reject") -> Reject | AG51: =IF(OR(OR(AB51<-0.05,AB51>0.05),OR(AD51<-0.05,AD51>0.05)),"Accept","Reject") -> Reject
A52: 3 | B52: 1841 | C52: EXTREME MILLIONS | D52: 30 | E52: 5 | F52: 300 | G52: 2 | H52: profit | I52: 0 | J52: 5 | K52: 0.3367003815 | L52: 0.1901817274 | M52: 1110 | N52: 222 | O52: 197 | P52: 130 | Q52: 0.1774774775 | R52: 0.1171171171 | S52: -60.84684685 | T52: -60 | U52: 23.39845709 | V52: 18.87551411 | W52: 18.87551411 | X52: -67540 | Y52: count 197.000000 mean 55.329949 std 23.808714 min 30.000000 25% 30.000000 50% 60.000000 75% 60.000000 max 100.000000 Name: Ticket Outcome, dtype: float64 | AA52: =(Q52-K52)/SQRT((K52*(1-K52))/M52) -> -11.22510345 | AB52: =IF(AA52>0,1-NORMSDIST(AA52),NORMSDIST(AA52)) -> 0 | AC52: =(R52-L52)/SQRT((L52*(1-L52))/M52) -> -6.202837186 | AD52: =IF(AC52>0,1-NORMSDIST(AC52),NORMSDIST(AC52)) -> 2.77270984e-10 | AE52: =(M52*D52) -> 33300 | AF52: =IF(OR(AB52<-0.05,AB52>0.05),"Accept","Reject") -> Reject | AG52: =IF(OR(OR(AB52<-0.05,AB52>0.05),OR(AD52<-0.05,AD52>0.05)),"Accept","Reject") -> Reject
A53: 87 | B53: 1841 | C53: EXTREME MILLIONS | D53: 30 | E53: 2 | F53: 120 | G53: 2 | H53: any | I53: 1 | J53: 3 | K53: 0.3367003815 | L53: 0.1901817274 | M53: 1110 | N53: 370 | O53: 182 | P53: 182 | Q53: 0.163963964 | R53: 0.163963964 | S53: -34.72072072 | T53: -30 | U53: 32.59624536 | V53: 27.1800103 | W53: 27.1800103 | X53: -38540 | Y53: count 182.000000 mean 82.857143 std 27.180010 min 40.000000 25% 40.000000 50% 100.000000 75% 100.000000 max 100.000000 Name: Ticket Outcome, dtype: float64 | AA53: =(Q53-K53)/SQRT((K53*(1-K53))/M53) -> -12.17779671 | AB53: =IF(AA53>0,1-NORMSDIST(AA53),NORMSDIST(AA53)) -> 0 | AC53: =(R53-L53)/SQRT((L53*(1-L53))/M53) -> -2.225763163 | AD53: =IF(AC53>0,1-NORMSDIST(AC53),NORMSDIST(AC53)) -> 0.01301502473 | AE53: =(M53*D53) -> 33300 | AF53: =IF(OR(AB53<-0.05,AB53>0.05),"Accept","Reject") -> Reject | AG53: =IF(OR(OR(AB53<-0.05,AB53>0.05),OR(AD53<-0.05,AD53>0.05)),"Accept","Reject") -> Reject
A54: 87 | B54: 1841 | C54: EXTREME MILLIONS | D54: 30 | E54: 6 | F54: 360 | G54: 2 | H54: profit | I54: 1 | J54: 6 | K54: 0.3367003815 | L54: 0.1901817274 | M54: 1110 | N54: 185 | O54: 256 | P54: 62 | Q54: 0.2306306306 | R54: 0.05585585586 | S54: -47.72072072 | T54: -60 | U54: 45.824805 | V54: 12.7000127 | W54: 12.7000127 | X54: -52970 | Y54: count 256.000000 mean 70.781250 std 72.545962 min 30.000000 25% 30.000000 50% 30.000000 75% 30.000000 max 200.000000 Name: Ticket Outcome, dtype: float64 | AA54: =(Q54-K54)/SQRT((K54*(1-K54))/M54) -> -7.477843302 | AB54: =IF(AA54>0,1-NORMSDIST(AA54),NORMSDIST(AA54)) -> 3.774758284e-14 | AC54: =(R54-L54)/SQRT((L54*(1-L54))/M54) -> -11.40362629 | AD54: =IF(AC54>0,1-NORMSDIST(AC54),NORMSDIST(AC54)) -> 0 | AE54: =(M54*D54) -> 33300 | AF54: =IF(OR(AB54<-0.05,AB54>0.05),"Accept","Reject") -> Reject | AG54: =IF(OR(OR(AB54<-0.05,AB54>0.05),OR(AD54<-0.05,AD54>0.05)),"Accept","Reject") -> Reject
A55: 171 | B55: 1841 | C55: EXTREME MILLIONS | D55: 30 | E55: 6 | F55: 360 | G55: 2 | H55: profit | I55: 2 | J55: 7 | K55: 0.3367003815 | L55: 0.1901817274 | M55: 1113 | N55: 159 | O55: 478 | P55: 184 | Q55: 0.4294699012 | R55: 0.1653189578 | S55: -16.7115903 | T55: -50 | U55: 54.96054325 | V55: 100.9126652 | W55: 100.9126652 | X55: -18600 | Y55: count 478.000000 mean 57.719665 std 71.673825 min 30.000000 25% 30.000000 50% 30.000000 75% 50.000000 max 300.000000 Name: Ticket Outcome, dtype: float64 | AA55: =(Q55-K55)/SQRT((K55*(1-K55))/M55) -> 6.549018421 | AB55: =IF(AA55>0,1-NORMSDIST(AA55),NORMSDIST(AA55)) -> 2.895828022e-11 | AC55: =(R55-L55)/SQRT((L55*(1-L55))/M55) -> -2.11358106 | AD55: =IF(AC55>0,1-NORMSDIST(AC55),NORMSDIST(AC55)) -> 0.01727553244 | AE55: =(M55*D55) -> 33390 | AF55: =IF(OR(AB55<-0.05,AB55>0.05),"Accept","Reject") -> Reject | AG55: =IF(OR(OR(AB55<-0.05,AB55>0.05),OR(AD55<-0.05,AD55>0.05)),"Accept","Reject") -> Reject
A56: 171 | B56: 1841 | C56: EXTREME MILLIONS | D56: 30 | E56: 2 | F56: 120 | G56: 2 | H56: any | I56: 2 | J56: 4 | K56: 0.3367003815 | L56: 0.1901817274 | M56: 1112 | N56: 278 | O56: 241 | P56: 146 | Q56: 0.2167266187 | R56: 0.131294964 | S56: -41.58273381 | T56: -30 | U56: 26.84787118 | V56: 27.34340479 | W56: 27.34340479 | X56: -46240 | Y56: count 241.000000 mean 55.809129 std 29.781651 min 30.000000 25% 30.000000 50% 40.000000 75% 100.000000 max 100.000000 Name: Ticket Outcome, dtype: float64 | AA56: =(Q56-K56)/SQRT((K56*(1-K56))/M56) -> -8.465682875 | AB56: =IF(AA56>0,1-NORMSDIST(AA56),NORMSDIST(AA56)) -> 0 | AC56: =(R56-L56)/SQRT((L56*(1-L56))/M56) -> -5.003707318 | AD56: =IF(AC56>0,1-NORMSDIST(AC56),NORMSDIST(AC56)) -> 2.811906131e-07 | AE56: =(M56*D56) -> 33360 | AF56: =IF(OR(AB56<-0.05,AB56>0.05),"Accept","Reject") -> Reject | AG56: =IF(OR(OR(AB56<-0.05,AB56>0.05),OR(AD56<-0.05,AD56>0.05)),"Accept","Reject") -> Reject
A57: 255 | B57: 1841 | C57: EXTREME MILLIONS | D57: 30 | E57: 7 | F57: 420 | G57: 2 | H57: profit | I57: 3 | J57: 9 | K57: 0.3367003815 | L57: 0.1901817274 | M57: 1107 | N57: 123 | O57: 640 | P57: 275 | Q57: 0.5781391147 | R57: 0.2484191509 | S57: 33.60433604 | T57: 30 | U57: 50.04705294 | V57: 48.83288133 | W57: 48.83288133 | X57: 37200 | Y57: count 640.000000 mean 64.312500 std 50.868782 min 30.000000 25% 30.000000 50% 30.000000 75% 100.000000 max 200.000000 Name: Ticket Outcome, dtype: float64 | AA57: =(Q57-K57)/SQRT((K57*(1-K57))/M57) -> 16.99824467 | AB57: =IF(AA57>0,1-NORMSDIST(AA57),NORMSDIST(AA57)) -> 0 | AC57: =(R57-L57)/SQRT((L57*(1-L57))/M57) -> 4.937393979 | AD57: =IF(AC57>0,1-NORMSDIST(AC57),NORMSDIST(AC57)) -> 3.958671141e-07 | AE57: =(M57*D57) -> 33210 | AF57: =IF(OR(AB57<-0.05,AB57>0.05),"Accept","Reject") -> Reject | AG57: =IF(OR(OR(AB57<-0.05,AB57>0.05),OR(AD57<-0.05,AD57>0.05)),"Accept","Reject") -> Reject
A58: 255 | B58: 1841 | C58: EXTREME MILLIONS | D58: 30 | E58: 3 | F58: 180 | G58: 2 | H58: any | I58: 3 | J58: 5 | K58: 0.3367003815 | L58: 0.1901817274 | M58: 1110 | N58: 222 | O58: 459 | P58: 300 | Q58: 0.4135135135 | R58: 0.2702702703 | S58: -10.35135135 | T58: -20 | U58: 37.78062262 | V58: 24.81871844 | W58: 24.81871844 | X58: -11490 | Y58: count 459.000000 mean 64.291939 std 32.042714 min 30.000000 25% 30.000000 50% 60.000000 75% 100.000000 max 100.000000 Name: Ticket Outcome, dtype: float64 | AA58: =(Q58-K58)/SQRT((K58*(1-K58))/M58) -> 5.415272118 | AB58: =IF(AA58>0,1-NORMSDIST(AA58),NORMSDIST(AA58)) -> 3.059778286e-08 | AC58: =(R58-L58)/SQRT((L58*(1-L58))/M58) -> 6.799135583 | AD58: =IF(AC58>0,1-NORMSDIST(AC58),NORMSDIST(AC58)) -> 5.262457137e-12 | AE58: =(M58*D58) -> 33300 | AF58: =IF(OR(AB58<-0.05,AB58>0.05),"Accept","Reject") -> Reject | AG58: =IF(OR(OR(AB58<-0.05,AB58>0.05),OR(AD58<-0.05,AD58>0.05)),"Accept","Reject") -> Reject
A59: 12 | B59: 1874 | C59: SUPER CASH FRENZY | D59: 20 | E59: 3 | F59: 120 | G59: 2 | H59: any | I59: -3 | J59: 3 | K59: 0.2237137008 | L59: 0.2237137008 | M59: 1110 | N59: 370 | O59: 289 | P59: 289 | Q59: 0.2603603604 | R59: 0.2603603604 | S59: -4.576576577 | T59: -20 | U59: 46.15368054 | V59: 67.22272068 | W59: 67.22272068 | X59: -5080 | Y59: count 289.000000 mean 70.449827 std 67.222721 min 30.000000 25% 30.000000 50% 30.000000 75% 50.000000 max 200.000000 Name: Ticket Outcome, dtype: float64 | AA59: =(Q59-K59)/SQRT((K59*(1-K59))/M59) -> 2.929804431 | AB59: =IF(AA59>0,1-NORMSDIST(AA59),NORMSDIST(AA59)) -> 0.001695876978 | AC59: =(R59-L59)/SQRT((L59*(1-L59))/M59) -> 2.929804431 | AD59: =IF(AC59>0,1-NORMSDIST(AC59),NORMSDIST(AC59)) -> 0.001695876978 | AE59: =(M59*D59) -> 22200 | AF59: =IF(OR(AB59<-0.05,AB59>0.05),"Accept","Reject") -> Reject | AG59: =IF(OR(OR(AB59<-0.05,AB59>0.05),OR(AD59<-0.05,AD59>0.05)),"Accept","Reject") -> Reject
A60: 180 | B60: 1874 | C60: SUPER CASH FRENZY | D60: 20 | E60: 3 | F60: 120 | G60: 2 | H60: profit | I60: -3 | J60: 3 | K60: 0.2237137008 | L60: 0.2237137008 | M60: 1110 | N60: 370 | O60: 156 | P60: 156 | Q60: 0.1405405405 | R60: 0.1405405405 | S60: -27.0990991 | T60: -30 | U60: 18.71573452 | V60: 28.35670228 | W60: 28.35670228 | X60: -30080 | Y60: count 156.000000 mean 44.358974 std 28.356702 min 30.000000 25% 30.000000 50% 30.000000 75% 30.000000 max 100.000000 Name: Ticket Outcome, dtype: float64 | AA60: =(Q60-K60)/SQRT((K60*(1-K60))/M60) -> -6.649476276 | AB60: =IF(AA60>0,1-NORMSDIST(AA60),NORMSDIST(AA60)) -> 1.470690236e-11 | AC60: =(R60-L60)/SQRT((L60*(1-L60))/M60) -> -6.649476276 | AD60: =IF(AC60>0,1-NORMSDIST(AC60),NORMSDIST(AC60)) -> 1.470690236e-11 | AE60: =(M60*D60) -> 22200 | AF60: =IF(OR(AB60<-0.05,AB60>0.05),"Accept","Reject") -> Reject | AG60: =IF(OR(OR(AB60<-0.05,AB60>0.05),OR(AD60<-0.05,AD60>0.05)),"Accept","Reject") -> Reject
A61: 96 | B61: 1874 | C61: SUPER CASH FRENZY | D61: 20 | E61: 3 | F61: 120 | G61: 2 | H61: profit | I61: -2 | J61: 3 | K61: 0.2237137008 | L61: 0.2237137008 | M61: 1110 | N61: 370 | O61: 228 | P61: 228 | Q61: 0.2054054054 | R61: 0.2054054054 | S61: -25.36036036 | T61: -20 | U61: 14.92064648 | V61: 8.963175301 | W61: 8.963175301 | X61: -28150 | Y61: count 228.000000 mean 35.526316 std 8.963175 min 30.000000 25% 30.000000 50% 30.000000 75% 50.000000 max 50.000000 Name: Ticket Outcome, dtype: float64 | AA61: =(Q61-K61)/SQRT((K61*(1-K61))/M61) -> -1.463700254 | AB61: =IF(AA61>0,1-NORMSDIST(AA61),NORMSDIST(AA61)) -> 0.07163793297 | AC61: =(R61-L61)/SQRT((L61*(1-L61))/M61) -> -1.463700254 | AD61: =IF(AC61>0,1-NORMSDIST(AC61),NORMSDIST(AC61)) -> 0.07163793297 | AE61: =(M61*D61) -> 22200 | AF61: =IF(OR(AB61<-0.05,AB61>0.05),"Accept","Reject") -> Accept | AG61: =IF(OR(OR(AB61<-0.05,AB61>0.05),OR(AD61<-0.05,AD61>0.05)),"Accept","Reject") -> Accept
A62: 12 | B62: 1874 | C62: SUPER CASH FRENZY | D62: 20 | E62: 3 | F62: 120 | G62: 2 | H62: any | I62: -2 | J62: 3 | K62: 0.2237137008 | L62: 0.2237137008 | M62: 1110 | N62: 370 | O62: 119 | P62: 119 | Q62: 0.1072072072 | R62: 0.1072072072 | S62: -31.44144144 | T62: -30 | U62: 13.03074531 | V62: 10.01352169 | W62: 10.01352169 | X62: -34900 | Y62: count 119.000000 mean 40.756303 std 10.013522 min 30.000000 25% 30.000000 50% 50.000000 75% 50.000000 max 50.000000 Name: Ticket Outcome, dtype: float64 | AA62: =(Q62-K62)/SQRT((K62*(1-K62))/M62) -> -9.314388954 | AB62: =IF(AA62>0,1-NORMSDIST(AA62),NORMSDIST(AA62)) -> 0 | AC62: =(R62-L62)/SQRT((L62*(1-L62))/M62) -> -9.314388954 | AD62: =IF(AC62>0,1-NORMSDIST(AC62),NORMSDIST(AC62)) -> 0 | AE62: =(M62*D62) -> 22200 | AF62: =IF(OR(AB62<-0.05,AB62>0.05),"Accept","Reject") -> Reject | AG62: =IF(OR(OR(AB62<-0.05,AB62>0.05),OR(AD62<-0.05,AD62>0.05)),"Accept","Reject") -> Reject
A63: 12 | B63: 1874 | C63: SUPER CASH FRENZY | D63: 20 | E63: 3 | F63: 120 | G63: 2 | H63: any | I63: -1 | J63: 4 | K63: 0.2237137008 | L63: 0.2237137008 | M63: 1112 | N63: 278 | O63: 329 | P63: 329 | Q63: 0.2958633094 | R63: 0.2958633094 | S63: -17.77877698 | T63: -20 | U63: 25.13956633 | V63: 25.28014144 | W63: 25.28014144 | X63: -19770 | Y63: count 329.000000 mean 46.109422 std 25.280141 min 30.000000 25% 30.000000 50% 30.000000 75% 50.000000 max 100.000000 Name: Ticket Outcome, dtype: float64 | AA63: =(Q63-K63)/SQRT((K63*(1-K63))/M63) -> 5.77336641 | AB63: =IF(AA63>0,1-NORMSDIST(AA63),NORMSDIST(AA63)) -> 3.885160749e-09 | AC63: =(R63-L63)/SQRT((L63*(1-L63))/M63) -> 5.77336641 | AD63: =IF(AC63>0,1-NORMSDIST(AC63),NORMSDIST(AC63)) -> 3.885160749e-09 | AE63: =(M63*D63) -> 22240 | AF63: =IF(OR(AB63<-0.05,AB63>0.05),"Accept","Reject") -> Reject | AG63: =IF(OR(OR(AB63<-0.05,AB63>0.05),OR(AD63<-0.05,AD63>0.05)),"Accept","Reject") -> Reject
A64: 12 | B64: 1874 | C64: SUPER CASH FRENZY | D64: 20 | E64: 3 | F64: 120 | G64: 2 | H64: profit | I64: -1 | J64: 4 | K64: 0.2237137008 | L64: 0.2237137008 | M64: 1112 | N64: 278 | O64: 194 | P64: 194 | Q64: 0.1744604317 | R64: 0.1744604317 | S64: -19.42446043 | T64: -30 | U64: 33.38634563 | V64: 47.5396764 | W64: 47.5396764 | X64: -21600 | Y64: count 194.000000 mean 70.773196 std 47.539676 min 30.000000 25% 30.000000 50% 50.000000 75% 100.000000 max 200.000000 Name: Ticket Outcome, dtype: float64 | AA64: =(Q64-K64)/SQRT((K64*(1-K64))/M64) -> -3.941215694 | AB64: =IF(AA64>0,1-NORMSDIST(AA64),NORMSDIST(AA64)) -> 4.053484226e-05 | AC64: =(R64-L64)/SQRT((L64*(1-L64))/M64) -> -3.941215694 | AD64: =IF(AC64>0,1-NORMSDIST(AC64),NORMSDIST(AC64)) -> 4.053484226e-05 | AE64: =(M64*D64) -> 22240 | AF64: =IF(OR(AB64<-0.05,AB64>0.05),"Accept","Reject") -> Reject | AG64: =IF(OR(OR(AB64<-0.05,AB64>0.05),OR(AD64<-0.05,AD64>0.05)),"Accept","Reject") -> Reject
A65: 12 | B65: 1874 | C65: SUPER CASH FRENZY | D65: 20 | E65: 3 | F65: 120 | G65: 2 | H65: any | I65: 0 | J65: 4 | K65: 0.2237137008 | L65: 0.2237137008 | M65: 1112 | N65: 278 | O65: 334 | P65: 334 | Q65: 0.3003597122 | R65: 0.3003597122 | S65: 14.51438849 | T65: -20 | U65: 49.92630586 | V65: 55.69843076 | W65: 55.69843076 | X65: 16140 | Y65: count 334.000000 mean 86.197605 std 55.698431 min 30.000000 25% 50.000000 50% 60.000000 75% 100.000000 max 200.000000 Name: Ticket Outcome, dtype: float64 | AA65: =(Q65-K65)/SQRT((K65*(1-K65))/M65) -> 6.133165747 | AB65: =IF(AA65>0,1-NORMSDIST(AA65),NORMSDIST(AA65)) -> 4.307365575e-10 | AC65: =(R65-L65)/SQRT((L65*(1-L65))/M65) -> 6.133165747 | AD65: =IF(AC65>0,1-NORMSDIST(AC65),NORMSDIST(AC65)) -> 4.307365575e-10 | AE65: =(M65*D65) -> 22240 | AF65: =IF(OR(AB65<-0.05,AB65>0.05),"Accept","Reject") -> Reject | AG65: =IF(OR(OR(AB65<-0.05,AB65>0.05),OR(AD65<-0.05,AD65>0.05)),"Accept","Reject") -> Reject
A66: 12 | B66: 1874 | C66: SUPER CASH FRENZY | D66: 20 | E66: 3 | F66: 120 | G66: 2 | H66: profit | I66: 0 | J66: 4 | K66: 0.2237137008 | L66: 0.2237137008 | M66: 1112 | N66: 278 | O66: 368 | P66: 368 | Q66: 0.3309352518 | R66: 0.3309352518 | S66: -18.4442446 | T66: -20 | U66: 18.64563665 | V66: 9.76185454 | W66: 9.76185454 | X66: -20510 | Y66: count 368.000000 mean 37.771739 std 9.761855 min 30.000000 25% 30.000000 50% 30.000000 75% 50.000000 max 50.000000 Name: Ticket Outcome, dtype: float64 | AA66: =(Q66-K66)/SQRT((K66*(1-K66))/M66) -> 8.57980124 | AB66: =IF(AA66>0,1-NORMSDIST(AA66),NORMSDIST(AA66)) -> 0 | AC66: =(R66-L66)/SQRT((L66*(1-L66))/M66) -> 8.57980124 | AD66: =IF(AC66>0,1-NORMSDIST(AC66),NORMSDIST(AC66)) -> 0 | AE66: =(M66*D66) -> 22240 | AF66: =IF(OR(AB66<-0.05,AB66>0.05),"Accept","Reject") -> Reject | AG66: =IF(OR(OR(AB66<-0.05,AB66>0.05),OR(AD66<-0.05,AD66>0.05)),"Accept","Reject") -> Reject
A67: 96 | B67: 1874 | C67: SUPER CASH FRENZY | D67: 20 | E67: 4 | F67: 160 | G67: 2 | H67: any | I67: 1 | J67: 5 | K67: 0.2237137008 | L67: 0.2237137008 | M67: 1110 | N67: 222 | O67: 244 | P67: 244 | Q67: 0.2198198198 | R67: 0.2198198198 | S67: -16.18918919 | T67: -20 | U67: 31.53338648 | V67: 30.63154981 | W67: 30.63154981 | X67: -17970 | Y67: count 244.000000 mean 67.786885 std 30.631550 min 30.000000 25% 30.000000 50% 50.000000 75% 100.000000 max 100.000000 Name: Ticket Outcome, dtype: float64 | AA67: =(Q67-K67)/SQRT((K67*(1-K67))/M67) -> -0.311305583 | AB67: =IF(AA67>0,1-NORMSDIST(AA67),NORMSDIST(AA67)) -> 0.3777841617 | AC67: =(R67-L67)/SQRT((L67*(1-L67))/M67) -> -0.311305583 | AD67: =IF(AC67>0,1-NORMSDIST(AC67),NORMSDIST(AC67)) -> 0.3777841617 | AE67: =(M67*D67) -> 22200 | AF67: =IF(OR(AB67<-0.05,AB67>0.05),"Accept","Reject") -> Accept | AG67: =IF(OR(OR(AB67<-0.05,AB67>0.05),OR(AD67<-0.05,AD67>0.05)),"Accept","Reject") -> Accept
A68: 96 | B68: 1874 | C68: SUPER CASH FRENZY | D68: 20 | E68: 4 | F68: 160 | G68: 2 | H68: profit | I68: 1 | J68: 5 | K68: 0.2237137008 | L68: 0.2237137008 | M68: 1110 | N68: 222 | O68: 256 | P68: 256 | Q68: 0.2306306306 | R68: 0.2306306306 | S68: -27.00900901 | T68: -30 | U68: 19.27700751 | V68: 8.891709622 | W68: 8.891709622 | X68: -29980 | Y68: count 256.000000 mean 44.609375 std 8.891710 min 30.000000 25% 30.000000 50% 50.000000 75% 50.000000 max 50.000000 Name: Ticket Outcome, dtype: float64 | AA68: =(Q68-K68)/SQRT((K68*(1-K68))/M68) -> 0.5529904207 | AB68: =IF(AA68>0,1-NORMSDIST(AA68),NORMSDIST(AA68)) -> 0.2901349848 | AC68: =(R68-L68)/SQRT((L68*(1-L68))/M68) -> 0.5529904207 | AD68: =IF(AC68>0,1-NORMSDIST(AC68),NORMSDIST(AC68)) -> 0.2901349848 | AE68: =(M68*D68) -> 22200 | AF68: =IF(OR(AB68<-0.05,AB68>0.05),"Accept","Reject") -> Accept | AG68: =IF(OR(OR(AB68<-0.05,AB68>0.05),OR(AD68<-0.05,AD68>0.05)),"Accept","Reject") -> Accept
A69: 180 | B69: 1874 | C69: SUPER CASH FRENZY | D69: 20 | E69: 5 | F69: 200 | G69: 2 | H69: profit | I69: 2 | J69: 7 | K69: 0.2237137008 | L69: 0.2237137008 | M69: 1113 | N69: 159 | O69: 407 | P69: 407 | Q69: 0.3656783468 | R69: 0.3656783468 | S69: 40.2785265 | T69: 0 | U69: 55.29789281 | V69: 66.75788453 | W69: 66.75788453 | X69: 44830 | Y69: count 407.000000 mean 78.501229 std 66.757885 min 30.000000 25% 30.000000 50% 50.000000 75% 100.000000 max 200.000000 Name: Ticket Outcome, dtype: float64 | AA69: =(Q69-K69)/SQRT((K69*(1-K69))/M69) -> 11.36502864 | AB69: =IF(AA69>0,1-NORMSDIST(AA69),NORMSDIST(AA69)) -> 0 | AC69: =(R69-L69)/SQRT((L69*(1-L69))/M69) -> 11.36502864 | AD69: =IF(AC69>0,1-NORMSDIST(AC69),NORMSDIST(AC69)) -> 0 | AE69: =(M69*D69) -> 22260 | AF69: =IF(OR(AB69<-0.05,AB69>0.05),"Accept","Reject") -> Reject | AG69: =IF(OR(OR(AB69<-0.05,AB69>0.05),OR(AD69<-0.05,AD69>0.05)),"Accept","Reject") -> Reject
A70: 180 | B70: 1874 | C70: SUPER CASH FRENZY | D70: 20 | E70: 5 | F70: 200 | G70: 2 | H70: any | I70: 2 | J70: 7 | K70: 0.2237137008 | L70: 0.2237137008 | M70: 1113 | N70: 159 | O70: 164 | P70: 164 | Q70: 0.1473495058 | R70: 0.1473495058 | S70: -62.15633423 | T70: -60 | U70: 10.63839984 | V70: 0 | W70: 0 | X70: -69180 | Y70: count 164.0 mean 30.0 std 0.0 min 30.0 25% 30.0 50% 30.0 75% 30.0 max 30.0 Name: Ticket Outcome, dtype: float64 | AA70: =(Q70-K70)/SQRT((K70*(1-K70))/M70) -> -6.11336193 | AB70: =IF(AA70>0,1-NORMSDIST(AA70),NORMSDIST(AA70)) -> 4.877689364e-10 | AC70: =(R70-L70)/SQRT((L70*(1-L70))/M70) -> -6.11336193 | AD70: =IF(AC70>0,1-NORMSDIST(AC70),NORMSDIST(AC70)) -> 4.877689364e-10 | AE70: =(M70*D70) -> 22260 | AF70: =IF(OR(AB70<-0.05,AB70>0.05),"Accept","Reject") -> Reject | AG70: =IF(OR(OR(AB70<-0.05,AB70>0.05),OR(AD70<-0.05,AD70>0.05)),"Accept","Reject") -> Reject
A71: 264 | B71: 1874 | C71: SUPER CASH FRENZY | D71: 20 | E71: 5 | F71: 200 | G71: 2 | H71: any | I71: 3 | J71: 10 | K71: 0.2237137008 | L71: 0.2237137008 | M71: 1110 | N71: 111 | O71: 435 | P71: 435 | Q71: 0.3918918919 | R71: 0.3918918919 | S71: 16.44144144 | T71: 0 | U71: 41.9051738 | V71: 48.62806605 | W71: 48.62806605 | X71: 18250 | Y71: count 435.000000 mean 59.011494 std 48.628066 min 30.000000 25% 30.000000 50% 30.000000 75% 100.000000 max 200.000000 Name: Ticket Outcome, dtype: float64 | AA71: =(Q71-K71)/SQRT((K71*(1-K71))/M71) -> 13.44540581 | AB71: =IF(AA71>0,1-NORMSDIST(AA71),NORMSDIST(AA71)) -> 0 | AC71: =(R71-L71)/SQRT((L71*(1-L71))/M71) -> 13.44540581 | AD71: =IF(AC71>0,1-NORMSDIST(AC71),NORMSDIST(AC71)) -> 0 | AE71: =(M71*D71) -> 22200 | AF71: =IF(OR(AB71<-0.05,AB71>0.05),"Accept","Reject") -> Reject | AG71: =IF(OR(OR(AB71<-0.05,AB71>0.05),OR(AD71<-0.05,AD71>0.05)),"Accept","Reject") -> Reject
A72: 264 | B72: 1874 | C72: SUPER CASH FRENZY | D72: 20 | E72: 5 | F72: 200 | G72: 2 | H72: profit | I72: 3 | J72: 10 | K72: 0.2237137008 | L72: 0.2237137008 | M72: 1110 | N72: 111 | O72: 361 | P72: 361 | Q72: 0.3252252252 | R72: 0.3252252252 | S72: -37.57657658 | T72: -40 | U72: 24.83526011 | V72: 24.74010803 | W72: 24.74010803 | X72: -41710 | Y72: count 361.000000 mean 43.628809 std 24.740108 min 30.000000 25% 30.000000 50% 30.000000 75% 50.000000 max 100.000000 Name: Ticket Outcome, dtype: float64 | AA72: =(Q72-K72)/SQRT((K72*(1-K72))/M72) -> 8.115580453 | AB72: =IF(AA72>0,1-NORMSDIST(AA72),NORMSDIST(AA72)) -> 2.220446049e-16 | AC72: =(R72-L72)/SQRT((L72*(1-L72))/M72) -> 8.115580453 | AD72: =IF(AC72>0,1-NORMSDIST(AC72),NORMSDIST(AC72)) -> 2.220446049e-16 | AE72: =(M72*D72) -> 22200 | AF72: =IF(OR(AB72<-0.05,AB72>0.05),"Accept","Reject") -> Reject | AG72: =IF(OR(OR(AB72<-0.05,AB72>0.05),OR(AD72<-0.05,AD72>0.05)),"Accept","Reject") -> Reject
A73: 13 | B73: 1888 | C73: $30,000 CASH PARTY | D73: 20 | E73: 1 | F73: 40 | G73: 2 | H73: any | I73: -3 | J73: 2 | K73: 0.3205128528 | L73: 0.2203148074 | M73: 1110 | N73: 555 | O73: 415 | P73: 373 | Q73: 0.3738738739 | R73: 0.336036036 | S73: 11.37387387 | T73: -20 | U73: 67.60946496 | V73: 99.85522939 | W73: 99.85522939 | X73: 12625 | Y73: count 415.000000 mean 69.265060 std 96.090874 min 20.000000 25% 25.000000 50% 30.000000 75% 40.000000 max 300.000000 Name: Ticket Outcome, dtype: float64 | AA73: =(Q73-K73)/SQRT((K73*(1-K73))/M73) -> 3.809537673 | AB73: =IF(AA73>0,1-NORMSDIST(AA73),NORMSDIST(AA73)) -> 6.961344614e-05 | AC73: =(R73-L73)/SQRT((L73*(1-L73))/M73) -> 9.302357772 | AD73: =IF(AC73>0,1-NORMSDIST(AC73),NORMSDIST(AC73)) -> 0 | AE73: =(M73*D73) -> 22200 | AF73: =IF(OR(AB73<-0.05,AB73>0.05),"Accept","Reject") -> Reject | AG73: =IF(OR(OR(AB73<-0.05,AB73>0.05),OR(AD73<-0.05,AD73>0.05)),"Accept","Reject") -> Reject
A74: 181 | B74: 1888 | C74: $30,000 CASH PARTY | D74: 20 | E74: 3 | F74: 120 | G74: 2 | H74: profit | I74: -3 | J74: 3 | K74: 0.3205128528 | L74: 0.2203148074 | M74: 1110 | N74: 370 | O74: 326 | P74: 277 | Q74: 0.2936936937 | R74: 0.2495495495 | S74: -25.22522523 | T74: -20 | U74: 12.03978477 | V74: 2.484451729 | W74: 2.484451729 | X74: -28000 | Y74: count 326.000000 mean 26.104294 std 3.442921 min 20.000000 25% 25.000000 50% 25.000000 75% 30.000000 max 30.000000 Name: Ticket Outcome, dtype: float64 | AA74: =(Q74-K74)/SQRT((K74*(1-K74))/M74) -> -1.914667203 | AB74: =IF(AA74>0,1-NORMSDIST(AA74),NORMSDIST(AA74)) -> 0.02776747936 | AC74: =(R74-L74)/SQRT((L74*(1-L74))/M74) -> 2.350061731 | AD74: =IF(AC74>0,1-NORMSDIST(AC74),NORMSDIST(AC74)) -> 0.009385148907 | AE74: =(M74*D74) -> 22200 | AF74: =IF(OR(AB74<-0.05,AB74>0.05),"Accept","Reject") -> Reject | AG74: =IF(OR(OR(AB74<-0.05,AB74>0.05),OR(AD74<-0.05,AD74>0.05)),"Accept","Reject") -> Reject
A75: 13 | B75: 1888 | C75: $30,000 CASH PARTY | D75: 20 | E75: 2 | F75: 80 | G75: 2 | H75: any | I75: -2 | J75: 3 | K75: 0.3205128528 | L75: 0.2203148074 | M75: 1110 | N75: 370 | O75: 331 | P75: 93 | Q75: 0.2981981982 | R75: 0.08378378378 | S75: -18.93693694 | T75: -20 | U75: 21.27635131 | V75: 18.79989854 | W75: 18.79989854 | X75: -21020 | Y75: count 331.000000 mean 34.864048 std 25.800451 min 20.000000 25% 20.000000 50% 20.000000 75% 60.000000 max 100.000000 Name: Ticket Outcome, dtype: float64 | AA75: =(Q75-K75)/SQRT((K75*(1-K75))/M75) -> -1.59308266 | AB75: =IF(AA75>0,1-NORMSDIST(AA75),NORMSDIST(AA75)) -> 0.05557082443 | AC75: =(R75-L75)/SQRT((L75*(1-L75))/M75) -> -10.97517235 | AD75: =IF(AC75>0,1-NORMSDIST(AC75),NORMSDIST(AC75)) -> 0 | AE75: =(M75*D75) -> 22200 | AF75: =IF(OR(AB75<-0.05,AB75>0.05),"Accept","Reject") -> Accept | AG75: =IF(OR(OR(AB75<-0.05,AB75>0.05),OR(AD75<-0.05,AD75>0.05)),"Accept","Reject") -> Accept
A76: 97 | B76: 1888 | C76: $30,000 CASH PARTY | D76: 20 | E76: 4 | F76: 160 | G76: 2 | H76: profit | I76: -2 | J76: 4 | K76: 0.3205128528 | L76: 0.2203148074 | M76: 1112 | N76: 278 | O76: 394 | P76: 201 | Q76: 0.3543165468 | R76: 0.1807553957 | S76: -29.46942446 | T76: -20 | U76: 11.34042757 | V76: 2.259309101 | W76: 2.259309101 | X76: -32770 | Y76: count 394.000000 mean 23.274112 std 3.594028 min 20.000000 25% 20.000000 50% 25.000000 75% 25.000000 max 30.000000 Name: Ticket Outcome, dtype: float64 | AA76: =(Q76-K76)/SQRT((K76*(1-K76))/M76) -> 2.41547867 | AB76: =IF(AA76>0,1-NORMSDIST(AA76),NORMSDIST(AA76)) -> 0.00785727143 | AC76: =(R76-L76)/SQRT((L76*(1-L76))/M76) -> -3.182883417 | AD76: =IF(AC76>0,1-NORMSDIST(AC76),NORMSDIST(AC76)) -> 0.0007290815675 | AE76: =(M76*D76) -> 22240 | AF76: =IF(OR(AB76<-0.05,AB76>0.05),"Accept","Reject") -> Reject | AG76: =IF(OR(OR(AB76<-0.05,AB76>0.05),OR(AD76<-0.05,AD76>0.05)),"Accept","Reject") -> Reject
A77: 13 | B77: 1888 | C77: $30,000 CASH PARTY | D77: 20 | E77: 2 | F77: 80 | G77: 2 | H77: any | I77: -1 | J77: 3 | K77: 0.3205128528 | L77: 0.2203148074 | M77: 1110 | N77: 370 | O77: 523 | P77: 354 | Q77: 0.4711711712 | R77: 0.3189189189 | S77: 43.77927928 | T77: -15 | U77: 130.5702176 | V77: 209.4289039 | W77: 209.4289039 | X77: 48595 | Y77: count 523.000000 mean 89.531549 std 178.809710 min 20.000000 25% 20.000000 50% 30.000000 75% 30.000000 max 600.000000 Name: Ticket Outcome, dtype: float64 | AA77: =(Q77-K77)/SQRT((K77*(1-K77))/M77) -> 10.75576381 | AB77: =IF(AA77>0,1-NORMSDIST(AA77),NORMSDIST(AA77)) -> 0 | AC77: =(R77-L77)/SQRT((L77*(1-L77))/M77) -> 7.926382514 | AD77: =IF(AC77>0,1-NORMSDIST(AC77),NORMSDIST(AC77)) -> 1.110223025e-15 | AE77: =(M77*D77) -> 22200 | AF77: =IF(OR(AB77<-0.05,AB77>0.05),"Accept","Reject") -> Reject | AG77: =IF(OR(OR(AB77<-0.05,AB77>0.05),OR(AD77<-0.05,AD77>0.05)),"Accept","Reject") -> Reject
A78: 13 | B78: 1888 | C78: $30,000 CASH PARTY | D78: 20 | E78: 4 | F78: 160 | G78: 2 | H78: profit | I78: -1 | J78: 4 | K78: 0.3205128528 | L78: 0.2203148074 | M78: 1112 | N78: 278 | O78: 357 | P78: 152 | Q78: 0.3210431655 | R78: 0.1366906475 | S78: -32.08183453 | T78: -30 | U78: 10.95916659 | V78: 2.46534008 | W78: 2.46534008 | X78: -35675 | Y78: count 357.000000 mean 22.997199 std 3.837645 min 20.000000 25% 20.000000 50% 20.000000 75% 25.000000 max 30.000000 Name: Ticket Outcome, dtype: float64 | AA78: =(Q78-K78)/SQRT((K78*(1-K78))/M78) -> 0.03789405184 | AB78: =IF(AA78>0,1-NORMSDIST(AA78),NORMSDIST(AA78)) -> 0.4848860778 | AC78: =(R78-L78)/SQRT((L78*(1-L78))/M78) -> -6.728258593 | AD78: =IF(AC78>0,1-NORMSDIST(AC78),NORMSDIST(AC78)) -> 8.585243627e-12 | AE78: =(M78*D78) -> 22240 | AF78: =IF(OR(AB78<-0.05,AB78>0.05),"Accept","Reject") -> Accept | AG78: =IF(OR(OR(AB78<-0.05,AB78>0.05),OR(AD78<-0.05,AD78>0.05)),"Accept","Reject") -> Accept
A79: 13 | B79: 1888 | C79: $30,000 CASH PARTY | D79: 20 | E79: 2 | F79: 80 | G79: 2 | H79: any | I79: 0 | J79: 3 | K79: 0.3205128528 | L79: 0.2203148074 | M79: 1110 | N79: 370 | O79: 703 | P79: 532 | Q79: 0.6333333333 | R79: 0.4792792793 | S79: 0.6621621622 | T79: 0 | U79: 22.16116859 | V79: 21.97336784 | W79: 21.97336784 | X79: 735 | Y79: count 703.000000 mean 31.621622 std 20.216117 min 20.000000 25% 25.000000 50% 25.000000 75% 30.000000 max 100.000000 Name: Ticket Outcome, dtype: float64 | AA79: =(Q79-K79)/SQRT((K79*(1-K79))/M79) -> 22.33280738 | AB79: =IF(AA79>0,1-NORMSDIST(AA79),NORMSDIST(AA79)) -> 0 | AC79: =(R79-L79)/SQRT((L79*(1-L79))/M79) -> 20.81709809 | AD79: =IF(AC79>0,1-NORMSDIST(AC79),NORMSDIST(AC79)) -> 0 | AE79: =(M79*D79) -> 22200 | AF79: =IF(OR(AB79<-0.05,AB79>0.05),"Accept","Reject") -> Reject | AG79: =IF(OR(OR(AB79<-0.05,AB79>0.05),OR(AD79<-0.05,AD79>0.05)),"Accept","Reject") -> Reject
A80: 13 | B80: 1888 | C80: $30,000 CASH PARTY | D80: 20 | E80: 4 | F80: 160 | G80: 2 | H80: profit | I80: 0 | J80: 5 | K80: 0.3205128528 | L80: 0.2203148074 | M80: 1110 | N80: 222 | O80: 332 | P80: 285 | Q80: 0.2990990991 | R80: 0.2567567568 | S80: -24.22072072 | T80: -25 | U80: 24.71186034 | V80: 30.89165808 | W80: 30.89165808 | X80: -26885 | Y80: count 332.000000 mean 40.572289 std 29.812671 min 20.000000 25% 25.000000 50% 25.000000 75% 30.000000 max 100.000000 Name: Ticket Outcome, dtype: float64 | AA80: =(Q80-K80)/SQRT((K80*(1-K80))/M80) -> -1.528765751 | AB80: =IF(AA80>0,1-NORMSDIST(AA80),NORMSDIST(AA80)) -> 0.06316126287 | AC80: =(R80-L80)/SQRT((L80*(1-L80))/M80) -> 2.929419734 | AD80: =IF(AC80>0,1-NORMSDIST(AC80),NORMSDIST(AC80)) -> 0.001697977536 | AE80: =(M80*D80) -> 22200 | AF80: =IF(OR(AB80<-0.05,AB80>0.05),"Accept","Reject") -> Accept | AG80: =IF(OR(OR(AB80<-0.05,AB80>0.05),OR(AD80<-0.05,AD80>0.05)),"Accept","Reject") -> Accept
A81: 97 | B81: 1888 | C81: $30,000 CASH PARTY | D81: 20 | E81: 2 | F81: 80 | G81: 2 | H81: any | I81: 1 | J81: 4 | K81: 0.3205128528 | L81: 0.2203148074 | M81: 1112 | N81: 278 | O81: 258 | P81: 101 | Q81: 0.2320143885 | R81: 0.09082733813 | S81: -32.86870504 | T81: -40 | U81: 13.9169458 | V81: 17.51731816 | W81: 17.51731816 | X81: -36550 | Y81: count 258.000000 mean 28.197674 std 14.975586 min 20.000000 25% 20.000000 50% 20.000000 75% 25.000000 max 60.000000 Name: Ticket Outcome, dtype: float64 | AA81: =(Q81-K81)/SQRT((K81*(1-K81))/M81) -> -6.323751278 | AB81: =IF(AA81>0,1-NORMSDIST(AA81),NORMSDIST(AA81)) -> 1.276442285e-10 | AC81: =(R81-L81)/SQRT((L81*(1-L81))/M81) -> -10.41834296 | AD81: =IF(AC81>0,1-NORMSDIST(AC81),NORMSDIST(AC81)) -> 0 | AE81: =(M81*D81) -> 22240 | AF81: =IF(OR(AB81<-0.05,AB81>0.05),"Accept","Reject") -> Reject | AG81: =IF(OR(OR(AB81<-0.05,AB81>0.05),OR(AD81<-0.05,AD81>0.05)),"Accept","Reject") -> Reject
A82: 97 | B82: 1888 | C82: $30,000 CASH PARTY | D82: 20 | E82: 4 | F82: 160 | G82: 2 | H82: profit | I82: 1 | J82: 5 | K82: 0.3205128528 | L82: 0.2203148074 | M82: 1110 | N82: 222 | O82: 342 | P82: 167 | Q82: 0.3081081081 | R82: 0.1504504505 | S82: -33.77477477 | T82: -20 | U82: 13.65874164 | V82: 6.966739496 | W82: 6.966739496 | X82: -37490 | Y82: count 342.000000 mean 27.485380 std 9.083746 min 20.000000 25% 20.000000 50% 20.000000 75% 40.000000 max 40.000000 Name: Ticket Outcome, dtype: float64 | AA82: =(Q82-K82)/SQRT((K82*(1-K82))/M82) -> -0.8855966637 | AB82: =IF(AA82>0,1-NORMSDIST(AA82),NORMSDIST(AA82)) -> 0.187917455 | AC82: =(R82-L82)/SQRT((L82*(1-L82))/M82) -> -5.616110817 | AD82: =IF(AC82>0,1-NORMSDIST(AC82),NORMSDIST(AC82)) -> 9.76517156e-09 | AE82: =(M82*D82) -> 22200 | AF82: =IF(OR(AB82<-0.05,AB82>0.05),"Accept","Reject") -> Accept | AG82: =IF(OR(OR(AB82<-0.05,AB82>0.05),OR(AD82<-0.05,AD82>0.05)),"Accept","Reject") -> Accept
A83: 181 | B83: 1888 | C83: $30,000 CASH PARTY | D83: 20 | E83: 2 | F83: 80 | G83: 2 | H83: any | I83: 2 | J83: 4 | K83: 0.3205128528 | L83: 0.2203148074 | M83: 1112 | N83: 278 | O83: 230 | P83: 173 | Q83: 0.2068345324 | R83: 0.1555755396 | S83: -36.64118705 | T83: -40 | U83: 10.15772881 | V83: 2.230575516 | W83: 2.230575516 | X83: -40745 | Y83: count 230.000000 mean 24.782609 std 3.362476 min 20.000000 25% 25.000000 50% 25.000000 75% 25.000000 max 30.000000 Name: Ticket Outcome, dtype: float64 | AA83: =(Q83-K83)/SQRT((K83*(1-K83))/M83) -> -8.123004503 | AB83: =IF(AA83>0,1-NORMSDIST(AA83),NORMSDIST(AA83)) -> 2.220446049e-16 | AC83: =(R83-L83)/SQRT((L83*(1-L83))/M83) -> -5.208812089 | AD83: =IF(AC83>0,1-NORMSDIST(AC83),NORMSDIST(AC83)) -> 9.502673359e-08 | AE83: =(M83*D83) -> 22240 | AF83: =IF(OR(AB83<-0.05,AB83>0.05),"Accept","Reject") -> Reject | AG83: =IF(OR(OR(AB83<-0.05,AB83>0.05),OR(AD83<-0.05,AD83>0.05)),"Accept","Reject") -> Reject
A84: 181 | B84: 1888 | C84: $30,000 CASH PARTY | D84: 20 | E84: 5 | F84: 200 | G84: 2 | H84: profit | I84: 2 | J84: 6 | K84: 0.3205128528 | L84: 0.2203148074 | M84: 1110 | N84: 185 | O84: 223 | P84: 142 | Q84: 0.2009009009 | R84: 0.1279279279 | S84: -52.0990991 | T84: -50 | U84: 9.826123008 | V84: 2.320361505 | W84: 2.320361505 | X84: -57830 | Y84: count 223.000000 mean 24.170404 std 3.658585 min 20.000000 25% 20.000000 50% 25.000000 75% 25.000000 max 30.000000 Name: Ticket Outcome, dtype: float64 | AA84: =(Q84-K84)/SQRT((K84*(1-K84))/M84) -> -8.539308801 | AB84: =IF(AA84>0,1-NORMSDIST(AA84),NORMSDIST(AA84)) -> 0 | AC84: =(R84-L84)/SQRT((L84*(1-L84))/M84) -> -7.426604577 | AD84: =IF(AC84>0,1-NORMSDIST(AC84),NORMSDIST(AC84)) -> 5.573319584e-14 | AE84: =(M84*D84) -> 22200 | AF84: =IF(OR(AB84<-0.05,AB84>0.05),"Accept","Reject") -> Reject | AG84: =IF(OR(OR(AB84<-0.05,AB84>0.05),OR(AD84<-0.05,AD84>0.05)),"Accept","Reject") -> Reject
A85: 265 | B85: 1888 | C85: $30,000 CASH PARTY | D85: 20 | E85: 5 | F85: 200 | G85: 2 | H85: profit | I85: 3 | J85: 8 | K85: 0.3205128528 | L85: 0.2203148074 | M85: 1112 | N85: 139 | O85: 358 | P85: 291 | Q85: 0.321942446 | R85: 0.2616906475 | S85: -2.122302158 | T85: -40 | U85: 59.39009604 | V85: 100.0246444 | W85: 100.0246444 | X85: -2360 | Y85: count 358.000000 mean 60.321229 std 92.209694 min 20.000000 25% 25.000000 50% 25.000000 75% 30.000000 max 300.000000 Name: Ticket Outcome, dtype: float64 | AA85: =(Q85-K85)/SQRT((K85*(1-K85))/M85) -> 0.1021530956 | AB85: =IF(AA85>0,1-NORMSDIST(AA85),NORMSDIST(AA85)) -> 0.4593175786 | AC85: =(R85-L85)/SQRT((L85*(1-L85))/M85) -> 3.329030174 | AD85: =IF(AC85>0,1-NORMSDIST(AC85),NORMSDIST(AC85)) -> 0.0004357448116 | AE85: =(M85*D85) -> 22240 | AF85: =IF(OR(AB85<-0.05,AB85>0.05),"Accept","Reject") -> Accept | AG85: =IF(OR(OR(AB85<-0.05,AB85>0.05),OR(AD85<-0.05,AD85>0.05)),"Accept","Reject") -> Accept
A86: 265 | B86: 1888 | C86: $30,000 CASH PARTY | D86: 20 | E86: 3 | F86: 120 | G86: 2 | H86: any | I86: 3 | J86: 5 | K86: 0.3205128528 | L86: 0.2203148074 | M86: 1110 | N86: 222 | O86: 342 | P86: 234 | Q86: 0.3081081081 | R86: 0.2108108108 | S86: -37.23423423 | T86: -35 | U86: 11.30500554 | V86: 2.053894012 | W86: 2.053894012 | X86: -41330 | Y86: count 342.000000 mean 24.152047 std 3.295822 min 20.000000 25% 20.000000 50% 25.000000 75% 25.000000 max 30.000000 Name: Ticket Outcome, dtype: float64 | AA86: =(Q86-K86)/SQRT((K86*(1-K86))/M86) -> -0.8855966637 | AB86: =IF(AA86>0,1-NORMSDIST(AA86),NORMSDIST(AA86)) -> 0.187917455 | AC86: =(R86-L86)/SQRT((L86*(1-L86))/M86) -> -0.7639875377 | AD86: =IF(AC86>0,1-NORMSDIST(AC86),NORMSDIST(AC86)) -> 0.2224373346 | AE86: =(M86*D86) -> 22200 | AF86: =IF(OR(AB86<-0.05,AB86>0.05),"Accept","Reject") -> Accept | AG86: =IF(OR(OR(AB86<-0.05,AB86>0.05),OR(AD86<-0.05,AD86>0.05)),"Accept","Reject") -> Accept
A87: 213 | B87: 1948 | C87: WEEKLY TWO GRAND | D87: 5 | E87: 8 | F87: 80 | G87: 2 | H87: profit | I87: -3 | J87: 5 | K87: 0.2487562554 | L87: 0.1414168283 | M87: 1110 | N87: 222 | O87: 394 | P87: 194 | Q87: 0.354954955 | R87: 0.1747747748 | S87: 1.373873874 | T87: -5 | U87: 12.11298916 | V87: 19.25929274 | W87: 19.25929274 | X87: 1525 | Y87: count 394.000000 mean 14.568528 std 16.636868 min 5.000000 25% 5.000000 50% 5.000000 75% 10.000000 max 50.000000 Name: Ticket Outcome, dtype: float64 | AA87: =(Q87-K87)/SQRT((K87*(1-K87))/M87) -> 8.184709101 | AB87: =IF(AA87>0,1-NORMSDIST(AA87),NORMSDIST(AA87)) -> 1.110223025e-16 | AC87: =(R87-L87)/SQRT((L87*(1-L87))/M87) -> 3.189473983 | AD87: =IF(AC87>0,1-NORMSDIST(AC87),NORMSDIST(AC87)) -> 0.0007126598417 | AE87: =(M87*D87) -> 5550 | AF87: =IF(OR(AB87<-0.05,AB87>0.05),"Accept","Reject") -> Reject | AG87: =IF(OR(OR(AB87<-0.05,AB87>0.05),OR(AD87<-0.05,AD87>0.05)),"Accept","Reject") -> Reject
A88: 45 | B88: 1948 | C88: WEEKLY TWO GRAND | D88: 5 | E88: 3 | F88: 30 | G88: 2 | H88: any | I88: -3 | J88: 3 | K88: 0.2487562554 | L88: 0.1414168283 | M88: 1110 | N88: 370 | O88: 365 | P88: 231 | Q88: 0.3288288288 | R88: 0.2081081081 | S88: -0.02162162162 | T88: -5 | U88: 10.12355358 | V88: 11.28987694 | W88: 11.28987694 | X88: -24 | Y88: count 365.000000 mean 15.676712 std 12.117993 min 5.000000 25% 5.000000 50% 17.000000 75% 20.000000 max 50.000000 Name: Ticket Outcome, dtype: float64 | AA88: =(Q88-K88)/SQRT((K88*(1-K88))/M88) -> 6.171174631 | AB88: =IF(AA88>0,1-NORMSDIST(AA88),NORMSDIST(AA88)) -> 3.389225567e-10 | AC88: =(R88-L88)/SQRT((L88*(1-L88))/M88) -> 6.376594618 | AD88: =IF(AC88>0,1-NORMSDIST(AC88),NORMSDIST(AC88)) -> 9.053446881e-11 | AE88: =(M88*D88) -> 5550 | AF88: =IF(OR(AB88<-0.05,AB88>0.05),"Accept","Reject") -> Reject | AG88: =IF(OR(OR(AB88<-0.05,AB88>0.05),OR(AD88<-0.05,AD88>0.05)),"Accept","Reject") -> Reject
A89: 45 | B89: 1948 | C89: WEEKLY TWO GRAND | D89: 5 | E89: 3 | F89: 30 | G89: 2 | H89: any | I89: -2 | J89: 3 | K89: 0.2487562554 | L89: 0.1414168283 | M89: 1110 | N89: 370 | O89: 364 | P89: 182 | Q89: 0.3279279279 | R89: 0.163963964 | S89: -2.337837838 | T89: -5 | U89: 8.697487497 | V89: 14.19523209 | W89: 14.19523209 | X89: -2595 | Y89: count 364.000000 mean 11.469780 std 11.935163 min 5.000000 25% 5.000000 50% 6.000000 75% 10.000000 max 50.000000 Name: Ticket Outcome, dtype: float64 | AA89: =(Q89-K89)/SQRT((K89*(1-K89))/M89) -> 6.101742407 | AB89: =IF(AA89>0,1-NORMSDIST(AA89),NORMSDIST(AA89)) -> 5.245918144e-10 | AC89: =(R89-L89)/SQRT((L89*(1-L89))/M89) -> 2.155813236 | AD89: =IF(AC89>0,1-NORMSDIST(AC89),NORMSDIST(AC89)) -> 0.01554912577 | AE89: =(M89*D89) -> 5550 | AF89: =IF(OR(AB89<-0.05,AB89>0.05),"Accept","Reject") -> Reject | AG89: =IF(OR(OR(AB89<-0.05,AB89>0.05),OR(AD89<-0.05,AD89>0.05)),"Accept","Reject") -> Reject
A90: 129 | B90: 1948 | C90: WEEKLY TWO GRAND | D90: 5 | E90: 8 | F90: 80 | G90: 2 | H90: profit | I90: -2 | J90: 6 | K90: 0.2487562554 | L90: 0.1414168283 | M90: 1110 | N90: 185 | O90: 348 | P90: 173 | Q90: 0.3135135135 | R90: 0.1558558559 | S90: -3.864864865 | T90: -10 | U90: 14.141005 | V90: 30.46230915 | W90: 30.46230915 | X90: -4290 | Y90: count 348.000000 mean 12.936782 std 22.888189 min 5.000000 25% 5.000000 50% 5.000000 75% 7.000000 max 100.000000 Name: Ticket Outcome, dtype: float64 | AA90: =(Q90-K90)/SQRT((K90*(1-K90))/M90) -> 4.990826838 | AB90: =IF(AA90>0,1-NORMSDIST(AA90),NORMSDIST(AA90)) -> 3.006068874e-07 | AC90: =(R90-L90)/SQRT((L90*(1-L90))/M90) -> 1.380567676 | AD90: =IF(AC90>0,1-NORMSDIST(AC90),NORMSDIST(AC90)) -> 0.08370596391 | AE90: =(M90*D90) -> 5550 | AF90: =IF(OR(AB90<-0.05,AB90>0.05),"Accept","Reject") -> Reject | AG90: =IF(OR(OR(AB90<-0.05,AB90>0.05),OR(AD90<-0.05,AD90>0.05)),"Accept","Reject") -> Accept
A91: 45 | B91: 1948 | C91: WEEKLY TWO GRAND | D91: 5 | E91: 3 | F91: 30 | G91: 2 | H91: any | I91: -1 | J91: 4 | K91: 0.2487562554 | L91: 0.1414168283 | M91: 1112 | N91: 278 | O91: 239 | P91: 185 | Q91: 0.2149280576 | R91: 0.1663669065 | S91: -2.910971223 | T91: -5 | U91: 10.89959999 | V91: 18.17740944 | W91: 18.17740944 | X91: -3237 | Y91: count 239.000000 mean 17.836820 std 17.428441 min 5.000000 25% 7.000000 50% 10.000000 75% 20.000000 max 50.000000 Name: Ticket Outcome, dtype: float64 | AA91: =(Q91-K91)/SQRT((K91*(1-K91))/M91) -> -2.609479057 | AB91: =IF(AA91>0,1-NORMSDIST(AA91),NORMSDIST(AA91)) -> 0.004534009825 | AC91: =(R91-L91)/SQRT((L91*(1-L91))/M91) -> 2.387715458 | AD91: =IF(AC91>0,1-NORMSDIST(AC91),NORMSDIST(AC91)) -> 0.008476731011 | AE91: =(M91*D91) -> 5560 | AF91: =IF(OR(AB91<-0.05,AB91>0.05),"Accept","Reject") -> Reject | AG91: =IF(OR(OR(AB91<-0.05,AB91>0.05),OR(AD91<-0.05,AD91>0.05)),"Accept","Reject") -> Reject
A92: 45 | B92: 1948 | C92: WEEKLY TWO GRAND | D92: 5 | E92: 8 | F92: 80 | G92: 2 | H92: profit | I92: -1 | J92: 6 | K92: 0.2487562554 | L92: 0.1414168283 | M92: 1110 | N92: 185 | O92: 371 | P92: 166 | Q92: 0.3342342342 | R92: 0.1495495495 | S92: -5.922522523 | T92: -8 | U92: 7.78207832 | V92: 15.18421867 | W92: 15.18421867 | X92: -6574 | Y92: count 371.000000 mean 9.215633 std 11.172450 min 5.000000 25% 5.000000 50% 5.000000 75% 7.000000 max 50.000000 Name: Ticket Outcome, dtype: float64 | AA92: =(Q92-K92)/SQRT((K92*(1-K92))/M92) -> 6.587767969 | AB92: =IF(AA92>0,1-NORMSDIST(AA92),NORMSDIST(AA92)) -> 2.232436458e-11 | AC92: =(R92-L92)/SQRT((L92*(1-L92))/M92) -> 0.777598907 | AD92: =IF(AC92>0,1-NORMSDIST(AC92),NORMSDIST(AC92)) -> 0.2184027528 | AE92: =(M92*D92) -> 5550 | AF92: =IF(OR(AB92<-0.05,AB92>0.05),"Accept","Reject") -> Reject | AG92: =IF(OR(OR(AB92<-0.05,AB92>0.05),OR(AD92<-0.05,AD92>0.05)),"Accept","Reject") -> Accept
A93: 45 | B93: 1948 | C93: WEEKLY TWO GRAND | D93: 5 | E93: 3 | F93: 30 | G93: 2 | H93: any | I93: 0 | J93: 4 | K93: 0.2487562554 | L93: 0.1414168283 | M93: 1112 | N93: 278 | O93: 222 | P93: 86 | Q93: 0.1996402878 | R93: 0.0773381295 | S93: -2.713129496 | T93: -10 | U93: 16.31761346 | V93: 41.97780829 | W93: 41.97780829 | X93: -3017 | Y93: count 222.000000 mean 19.770270 std 32.004757 min 5.000000 25% 5.000000 50% 5.000000 75% 10.000000 max 100.000000 Name: Ticket Outcome, dtype: float64 | AA93: =(Q93-K93)/SQRT((K93*(1-K93))/M93) -> -3.788764908 | AB93: =IF(AA93>0,1-NORMSDIST(AA93),NORMSDIST(AA93)) -> 7.569904844e-05 | AC93: =(R93-L93)/SQRT((L93*(1-L93))/M93) -> -6.132313455 | AD93: =IF(AC93>0,1-NORMSDIST(AC93),NORMSDIST(AC93)) -> 4.330511505e-10 | AE93: =(M93*D93) -> 5560 | AF93: =IF(OR(AB93<-0.05,AB93>0.05),"Accept","Reject") -> Reject | AG93: =IF(OR(OR(AB93<-0.05,AB93>0.05),OR(AD93<-0.05,AD93>0.05)),"Accept","Reject") -> Reject
A94: 45 | B94: 1948 | C94: WEEKLY TWO GRAND | D94: 5 | E94: 9 | F94: 90 | G94: 2 | H94: profit | I94: 0 | J94: 7 | K94: 0.2487562554 | L94: 0.1414168283 | M94: 1113 | N94: 159 | O94: 247 | P94: 98 | Q94: 0.2219227314 | R94: 0.08805031447 | S94: -6.408805031 | T94: -10 | U94: 10.6473615 | V94: 21.53841508 | W94: 21.53841508 | X94: -7133 | Y94: count 247.000000 mean 15.020243 std 18.335724 min 5.000000 25% 5.000000 50% 5.000000 75% 7.000000 max 50.000000 Name: Ticket Outcome, dtype: float64 | AA94: =(Q94-K94)/SQRT((K94*(1-K94))/M94) -> -2.070846243 | AB94: =IF(AA94>0,1-NORMSDIST(AA94),NORMSDIST(AA94)) -> 0.01918658357 | AC94: =(R94-L94)/SQRT((L94*(1-L94))/M94) -> -5.109456236 | AD94: =IF(AC94>0,1-NORMSDIST(AC94),NORMSDIST(AC94)) -> 1.615436581e-07 | AE94: =(M94*D94) -> 5565 | AF94: =IF(OR(AB94<-0.05,AB94>0.05),"Accept","Reject") -> Reject | AG94: =IF(OR(OR(AB94<-0.05,AB94>0.05),OR(AD94<-0.05,AD94>0.05)),"Accept","Reject") -> Reject
A95: 129 | B95: 1948 | C95: WEEKLY TWO GRAND | D95: 5 | E95: 4 | F95: 40 | G95: 2 | H95: any | I95: 1 | J95: 5 | K95: 0.2487562554 | L95: 0.1414168283 | M95: 1110 | N95: 222 | O95: 342 | P95: 274 | Q95: 0.3081081081 | R95: 0.2468468468 | S95: -5.102702703 | T95: -5 | U95: 5.764372584 | V95: 5.091952789 | W95: 5.091952789 | X95: -5664 | Y95: count 342.000000 mean 10.687135 std 5.367307 min 5.000000 25% 7.000000 50% 10.000000 75% 10.000000 max 20.000000 Name: Ticket Outcome, dtype: float64 | AA95: =(Q95-K95)/SQRT((K95*(1-K95))/M95) -> 4.574233499 | AB95: =IF(AA95>0,1-NORMSDIST(AA95),NORMSDIST(AA95)) -> 2.389832802e-06 | AC95: =(R95-L95)/SQRT((L95*(1-L95))/M95) -> 10.08054563 | AD95: =IF(AC95>0,1-NORMSDIST(AC95),NORMSDIST(AC95)) -> 0 | AE95: =(M95*D95) -> 5550 | AF95: =IF(OR(AB95<-0.05,AB95>0.05),"Accept","Reject") -> Reject | AG95: =IF(OR(OR(AB95<-0.05,AB95>0.05),OR(AD95<-0.05,AD95>0.05)),"Accept","Reject") -> Reject
A96: 129 | B96: 1948 | C96: WEEKLY TWO GRAND | D96: 5 | E96: 10 | F96: 100 | G96: 2 | H96: profit | I96: 1 | J96: 8 | K96: 0.2487562554 | L96: 0.1414168283 | M96: 1112 | N96: 139 | O96: 238 | P96: 179 | Q96: 0.214028777 | R96: 0.160971223 | S96: -14.95143885 | T96: -15 | U96: 4.057027642 | V96: 4.803057528 | W96: 4.803057528 | X96: -16626 | Y96: count 238.000000 mean 8.420168 std 4.604155 min 5.000000 25% 7.000000 50% 7.000000 75% 7.000000 max 20.000000 Name: Ticket Outcome, dtype: float64 | AA96: =(Q96-K96)/SQRT((K96*(1-K96))/M96) -> -2.678848813 | AB96: =IF(AA96>0,1-NORMSDIST(AA96),NORMSDIST(AA96)) -> 0.003693787085 | AC96: =(R96-L96)/SQRT((L96*(1-L96))/M96) -> 1.87135007 | AD96: =IF(AC96>0,1-NORMSDIST(AC96),NORMSDIST(AC96)) -> 0.03064828738 | AE96: =(M96*D96) -> 5560 | AF96: =IF(OR(AB96<-0.05,AB96>0.05),"Accept","Reject") -> Reject | AG96: =IF(OR(OR(AB96<-0.05,AB96>0.05),OR(AD96<-0.05,AD96>0.05)),"Accept","Reject") -> Reject
A97: 213 | B97: 1948 | C97: WEEKLY TWO GRAND | D97: 5 | E97: 4 | F97: 40 | G97: 2 | H97: any | I97: 2 | J97: 5 | K97: 0.2487562554 | L97: 0.1414168283 | M97: 1110 | N97: 222 | O97: 204 | P97: 141 | Q97: 0.1837837838 | R97: 0.127027027 | S97: -6.075675676 | T97: -10 | U97: 8.804611413 | V97: 15.47601668 | W97: 15.47601668 | X97: -6744 | Y97: count 204.000000 mean 15.833333 std 14.760541 min 5.000000 25% 5.000000 50% 7.000000 75% 20.000000 max 50.000000 Name: Ticket Outcome, dtype: float64 | AA97: =(Q97-K97)/SQRT((K97*(1-K97))/M97) -> -5.00741329 | AB97: =IF(AA97>0,1-NORMSDIST(AA97),NORMSDIST(AA97)) -> 2.758319496e-07 | AC97: =(R97-L97)/SQRT((L97*(1-L97))/M97) -> -1.375860982 | AD97: =IF(AC97>0,1-NORMSDIST(AC97),NORMSDIST(AC97)) -> 0.08443233856 | AE97: =(M97*D97) -> 5550 | AF97: =IF(OR(AB97<-0.05,AB97>0.05),"Accept","Reject") -> Reject | AG97: =IF(OR(OR(AB97<-0.05,AB97>0.05),OR(AD97<-0.05,AD97>0.05)),"Accept","Reject") -> Accept
A98: 213 | B98: 1948 | C98: WEEKLY TWO GRAND | D98: 5 | E98: 10 | F98: 100 | G98: 2 | H98: profit | I98: 2 | J98: 9 | K98: 0.2487562554 | L98: 0.1414168283 | M98: 1107 | N98: 123 | O98: 384 | P98: 159 | Q98: 0.3468834688 | R98: 0.1436314363 | S98: -8.646793135 | T98: -10 | U98: 7.360345319 | V98: 13.80641116 | W98: 13.80641116 | X98: -9572 | Y98: count 384.000000 mean 9.088542 std 10.116939 min 5.000000 25% 5.000000 50% 5.000000 75% 10.000000 max 100.000000 Name: Ticket Outcome, dtype: float64 | AA98: =(Q98-K98)/SQRT((K98*(1-K98))/M98) -> 7.55241484 | AB98: =IF(AA98>0,1-NORMSDIST(AA98),NORMSDIST(AA98)) -> 2.131628207e-14 | AC98: =(R98-L98)/SQRT((L98*(1-L98))/M98) -> 0.2114603447 | AD98: =IF(AC98>0,1-NORMSDIST(AC98),NORMSDIST(AC98)) -> 0.4162640364 | AE98: =(M98*D98) -> 5535 | AF98: =IF(OR(AB98<-0.05,AB98>0.05),"Accept","Reject") -> Reject | AG98: =IF(OR(OR(AB98<-0.05,AB98>0.05),OR(AD98<-0.05,AD98>0.05)),"Accept","Reject") -> Accept
A99: 297 | B99: 1948 | C99: WEEKLY TWO GRAND | D99: 5 | E99: 11 | F99: 110 | G99: 2 | H99: profit | I99: 3 | J99: 11 | K99: 0.2487562554 | L99: 0.1414168283 | M99: 1111 | N99: 101 | O99: 345 | P99: 195 | Q99: 0.3105310531 | R99: 0.1755175518 | S99: 15.55535554 | T99: -1 | U99: 19.55148611 | V99: 32.01570128 | W99: 32.01570128 | X99: 17282 | Y99: count 345.000000 mean 23.655072 std 29.095270 min 5.000000 25% 5.000000 50% 7.000000 75% 50.000000 max 100.000000 Name: Ticket Outcome, dtype: float64 | AA99: =(Q99-K99)/SQRT((K99*(1-K99))/M99) -> 4.763113405 | AB99: =IF(AA99>0,1-NORMSDIST(AA99),NORMSDIST(AA99)) -> 9.531431804e-07 | AC99: =(R99-L99)/SQRT((L99*(1-L99))/M99) -> 3.261961938 | AD99: =IF(AC99>0,1-NORMSDIST(AC99),NORMSDIST(AC99)) -> 0.0005532199925 | AE99: =(M99*D99) -> 5555 | AF99: =IF(OR(AB99<-0.05,AB99>0.05),"Accept","Reject") -> Reject | AG99: =IF(OR(OR(AB99<-0.05,AB99>0.05),OR(AD99<-0.05,AD99>0.05)),"Accept","Reject") -> Reject
A100: 297 | B100: 1948 | C100: WEEKLY TWO GRAND | D100: 5 | E100: 5 | F100: 50 | G100: 2 | H100: any | I100: 3 | J100: 7 | K100: 0.2487562554 | L100: 0.1414168283 | M100: 1113 | N100: 159 | O100: 215 | P100: 119 | Q100: 0.1931716083 | R100: 0.106918239 | S100: -4.35309973 | T100: -10 | U100: 11.37207828 | V100: 18.35511173 | W100: 18.35511173 | X100: -4845 | Y100: count 215.000000 mean 19.637209 std 18.958354 min 5.000000 25% 5.000000 50% 10.000000 75% 50.000000 max 50.000000 Name: Ticket Outcome, dtype: float64 | AA100: =(Q100-K100)/SQRT((K100*(1-K100))/M100) -> -4.289680981 | AB100: =IF(AA100>0,1-NORMSDIST(AA100),NORMSDIST(AA100)) -> 8.946497667e-06 | AC100: =(R100-L100)/SQRT((L100*(1-L100))/M100) -> -3.302989453 | AD100: =IF(AC100>0,1-NORMSDIST(AC100),NORMSDIST(AC100)) -> 0.0004782999283 | AE100: =(M100*D100) -> 5565 | AF100: =IF(OR(AB100<-0.05,AB100>0.05),"Accept","Reject") -> Reject | AG100: =IF(OR(OR(AB100<-0.05,AB100>0.05),OR(AD100<-0.05,AD100>0.05)),"Accept","Reject") -> Reject
A101: 60 | B101: 1949 | C101: Double Dollar Bingo | D101: 3 | E101: 3 | F101: 18 | G101: 2 | H101: any | I101: -3 | J101: 3 | K101: 0.2481390515 | L101: 0.167712189 | M101: 1110 | N101: 370 | O101: 225 | P101: 161 | Q101: 0.2027027027 | R101: 0.145045045 | S101: -3.478378378 | T101: -3 | U101: 3.101658606 | V101: 3.582068003 | W101: 3.582068003 | X101: -3861 | Y101: count 225.000000 mean 6.480000 std 3.741753 min 3.000000 25% 3.000000 50% 5.000000 75% 8.000000 max 20.000000 Name: Ticket Outcome, dtype: float64 | AA101: =(Q101-K101)/SQRT((K101*(1-K101))/M101) -> -3.50468178 | AB101: =IF(AA101>0,1-NORMSDIST(AA101),NORMSDIST(AA101)) -> 0.000228576678 | AC101: =(R101-L101)/SQRT((L101*(1-L101))/M101) -> -2.021339261 | AD101: =IF(AC101>0,1-NORMSDIST(AC101),NORMSDIST(AC101)) -> 0.02162232878 | AE101: =(M101*D101) -> 3330 | AF101: =IF(OR(AB101<-0.05,AB101>0.05),"Accept","Reject") -> Reject | AG101: =IF(OR(OR(AB101<-0.05,AB101>0.05),OR(AD101<-0.05,AD101>0.05)),"Accept","Reject") -> Reject
A102: 228 | B102: 1949 | C102: Double Dollar Bingo | D102: 3 | E102: 5 | F102: 30 | G102: 2 | H102: profit | I102: -3 | J102: 4 | K102: 0.2481390515 | L102: 0.167712189 | M102: 1112 | N102: 278 | O102: 264 | P102: 201 | Q102: 0.2374100719 | R102: 0.1807553957 | S102: -3.519784173 | T102: -3 | U102: 3.757629567 | V102: 5.408303916 | W102: 5.408303916 | X102: -3914 | Y102: count 264.000000 mean 6.598485 std 5.130035 min 3.000000 25% 5.000000 50% 5.000000 75% 8.000000 max 30.000000 Name: Ticket Outcome, dtype: float64 | AA102: =(Q102-K102)/SQRT((K102*(1-K102))/M102) -> -0.8283130177 | AB102: =IF(AA102>0,1-NORMSDIST(AA102),NORMSDIST(AA102)) -> 0.2037466262 | AC102: =(R102-L102)/SQRT((L102*(1-L102))/M102) -> 1.164173444 | AD102: =IF(AC102>0,1-NORMSDIST(AC102),NORMSDIST(AC102)) -> 0.1221768649 | AE102: =(M102*D102) -> 3336 | AF102: =IF(OR(AB102<-0.05,AB102>0.05),"Accept","Reject") -> Accept | AG102: =IF(OR(OR(AB102<-0.05,AB102>0.05),OR(AD102<-0.05,AD102>0.05)),"Accept","Reject") -> Accept
A103: 144 | B103: 1949 | C103: Double Dollar Bingo | D103: 3 | E103: 6 | F103: 36 | G103: 2 | H103: profit | I103: -2 | J103: 5 | K103: 0.2481390515 | L103: 0.167712189 | M103: 1110 | N103: 222 | O103: 267 | P103: 186 | Q103: 0.2405405405 | R103: 0.1675675676 | S103: -3.084684685 | T103: -4 | U103: 5.642920586 | V103: 9.742373078 | W103: 9.742373078 | X103: -3424 | Y103: count 267.000000 mean 8.411985 std 8.877758 min 3.000000 25% 3.000000 50% 5.000000 75% 10.000000 max 40.000000 Name: Ticket Outcome, dtype: float64 | AA103: =(Q103-K103)/SQRT((K103*(1-K103))/M103) -> -0.5861026139 | AB103: =IF(AA103>0,1-NORMSDIST(AA103),NORMSDIST(AA103)) -> 0.2789032799 | AC103: =(R103-L103)/SQRT((L103*(1-L103))/M103) -> -0.01289659663 | AD103: =IF(AC103>0,1-NORMSDIST(AC103),NORMSDIST(AC103)) -> 0.4948551449 | AE103: =(M103*D103) -> 3330 | AF103: =IF(OR(AB103<-0.05,AB103>0.05),"Accept","Reject") -> Accept | AG103: =IF(OR(OR(AB103<-0.05,AB103>0.05),OR(AD103<-0.05,AD103>0.05)),"Accept","Reject") -> Accept
A104: 60 | B104: 1949 | C104: Double Dollar Bingo | D104: 3 | E104: 3 | F104: 18 | G104: 2 | H104: any | I104: -2 | J104: 3 | K104: 0.2481390515 | L104: 0.167712189 | M104: 1110 | N104: 370 | O104: 251 | P104: 139 | Q104: 0.2261261261 | R104: 0.1252252252 | S104: -3.411711712 | T104: -3 | U104: 3.070916917 | V104: 4.628250956 | W104: 4.628250956 | X104: -3787 | Y104: count 251.000000 mean 5.613546 std 4.165340 min 3.000000 25% 3.000000 50% 5.000000 75% 5.000000 max 20.000000 Name: Ticket Outcome, dtype: float64 | AA104: =(Q104-K104)/SQRT((K104*(1-K104))/M104) -> -1.697942296 | AB104: =IF(AA104>0,1-NORMSDIST(AA104),NORMSDIST(AA104)) -> 0.04475932665 | AC104: =(R104-L104)/SQRT((L104*(1-L104))/M104) -> -3.788768806 | AD104: =IF(AC104>0,1-NORMSDIST(AC104),NORMSDIST(AC104)) -> 7.569786098e-05 | AE104: =(M104*D104) -> 3330 | AF104: =IF(OR(AB104<-0.05,AB104>0.05),"Accept","Reject") -> Reject | AG104: =IF(OR(OR(AB104<-0.05,AB104>0.05),OR(AD104<-0.05,AD104>0.05)),"Accept","Reject") -> Reject
A105: 60 | B105: 1949 | C105: Double Dollar Bingo | D105: 3 | E105: 3 | F105: 18 | G105: 2 | H105: any | I105: -1 | J105: 4 | K105: 0.2481390515 | L105: 0.167712189 | M105: 1112 | N105: 278 | O105: 319 | P105: 192 | Q105: 0.2868705036 | R105: 0.1726618705 | S105: -2.500899281 | T105: -3 | U105: 4.306963238 | V105: 6.092686426 | W105: 6.092686426 | X105: -2781 | Y105: count 319.000000 mean 6.789969 std 5.641526 min 3.000000 25% 3.000000 50% 5.000000 75% 8.000000 max 25.000000 Name: Ticket Outcome, dtype: float64 | AA105: =(Q105-K105)/SQRT((K105*(1-K105))/M105) -> 2.990197339 | AB105: =IF(AA105>0,1-NORMSDIST(AA105),NORMSDIST(AA105)) -> 0.001393986335 | AC105: =(R105-L105)/SQRT((L105*(1-L105))/M105) -> 0.4417845926 | AD105: =IF(AC105>0,1-NORMSDIST(AC105),NORMSDIST(AC105)) -> 0.3293225444 | AE105: =(M105*D105) -> 3336 | AF105: =IF(OR(AB105<-0.05,AB105>0.05),"Accept","Reject") -> Reject | AG105: =IF(OR(OR(AB105<-0.05,AB105>0.05),OR(AD105<-0.05,AD105>0.05)),"Accept","Reject") -> Accept
A106: 60 | B106: 1949 | C106: Double Dollar Bingo | D106: 3 | E106: 6 | F106: 36 | G106: 2 | H106: profit | I106: -1 | J106: 5 | K106: 0.2481390515 | L106: 0.167712189 | M106: 1110 | N106: 222 | O106: 254 | P106: 134 | Q106: 0.2288288288 | R106: 0.1207207207 | S106: -5.554954955 | T106: -6 | U106: 2.451024765 | V106: 2.848038462 | W106: 2.848038462 | X106: -6166 | Y106: count 254.000000 mean 4.921260 std 2.753672 min 3.000000 25% 3.000000 50% 5.000000 75% 5.000000 max 15.000000 Name: Ticket Outcome, dtype: float64 | AA106: =(Q106-K106)/SQRT((K106*(1-K106))/M106) -> -1.489472356 | AB106: =IF(AA106>0,1-NORMSDIST(AA106),NORMSDIST(AA106)) -> 0.0681815138 | AC106: =(R106-L106)/SQRT((L106*(1-L106))/M106) -> -4.190457339 | AD106: =IF(AC106>0,1-NORMSDIST(AC106),NORMSDIST(AC106)) -> 1.391963778e-05 | AE106: =(M106*D106) -> 3330 | AF106: =IF(OR(AB106<-0.05,AB106>0.05),"Accept","Reject") -> Accept | AG106: =IF(OR(OR(AB106<-0.05,AB106>0.05),OR(AD106<-0.05,AD106>0.05)),"Accept","Reject") -> Accept
A107: 60 | B107: 1949 | C107: Double Dollar Bingo | D107: 3 | E107: 3 | F107: 18 | G107: 2 | H107: any | I107: 0 | J107: 4 | K107: 0.2481390515 | L107: 0.167712189 | M107: 1112 | N107: 278 | O107: 285 | P107: 192 | Q107: 0.256294964 | R107: 0.1726618705 | S107: -3.424460432 | T107: -4 | U107: 3.513518375 | V107: 4.104957523 | W107: 4.104957523 | X107: -3808 | Y107: count 285.000000 mean 6.459649 std 4.141335 min 3.000000 25% 3.000000 50% 5.000000 75% 8.000000 max 20.000000 Name: Ticket Outcome, dtype: float64 | AA107: =(Q107-K107)/SQRT((K107*(1-K107))/M107) -> 0.629663664 | AB107: =IF(AA107>0,1-NORMSDIST(AA107),NORMSDIST(AA107)) -> 0.2644573304 | AC107: =(R107-L107)/SQRT((L107*(1-L107))/M107) -> 0.4417845926 | AD107: =IF(AC107>0,1-NORMSDIST(AC107),NORMSDIST(AC107)) -> 0.3293225444 | AE107: =(M107*D107) -> 3336 | AF107: =IF(OR(AB107<-0.05,AB107>0.05),"Accept","Reject") -> Accept | AG107: =IF(OR(OR(AB107<-0.05,AB107>0.05),OR(AD107<-0.05,AD107>0.05)),"Accept","Reject") -> Accept
A108: 60 | B108: 1949 | C108: Double Dollar Bingo | D108: 3 | E108: 7 | F108: 42 | G108: 2 | H108: profit | I108: 0 | J108: 6 | K108: 0.2481390515 | L108: 0.167712189 | M108: 1110 | N108: 185 | O108: 224 | P108: 146 | Q108: 0.2018018018 | R108: 0.1315315315 | S108: -6.006306306 | T108: -6 | U108: 3.443348474 | V108: 6.413171378 | W108: 6.413171378 | X108: -6667 | Y108: count 224.000000 mean 5.883929 std 5.586251 min 3.000000 25% 3.000000 50% 5.000000 75% 8.000000 max 50.000000 Name: Ticket Outcome, dtype: float64 | AA108: =(Q108-K108)/SQRT((K108*(1-K108))/M108) -> -3.57417176 | AB108: =IF(AA108>0,1-NORMSDIST(AA108),NORMSDIST(AA108)) -> 0.0001756691255 | AC108: =(R108-L108)/SQRT((L108*(1-L108))/M108) -> -3.22640486 | AD108: =IF(AC108>0,1-NORMSDIST(AC108),NORMSDIST(AC108)) -> 0.0006267794993 | AE108: =(M108*D108) -> 3330 | AF108: =IF(OR(AB108<-0.05,AB108>0.05),"Accept","Reject") -> Reject | AG108: =IF(OR(OR(AB108<-0.05,AB108>0.05),OR(AD108<-0.05,AD108>0.05)),"Accept","Reject") -> Reject
A109: 144 | B109: 1949 | C109: Double Dollar Bingo | D109: 3 | E109: 4 | F109: 24 | G109: 2 | H109: any | I109: 1 | J109: 5 | K109: 0.2481390515 | L109: 0.167712189 | M109: 1110 | N109: 222 | O109: 317 | P109: 206 | Q109: 0.2855855856 | R109: 0.1855855856 | S109: -1.681081081 | T109: -3 | U109: 6.108544451 | V109: 9.138422967 | W109: 9.138422967 | X109: -1866 | Y109: count 317.000000 mean 8.962145 std 8.566853 min 3.000000 25% 3.000000 50% 5.000000 75% 8.000000 max 30.000000 Name: Ticket Outcome, dtype: float64 | AA109: =(Q109-K109)/SQRT((K109*(1-K109))/M109) -> 2.888396393 | AB109: =IF(AA109>0,1-NORMSDIST(AA109),NORMSDIST(AA109)) -> 0.001936057834 | AC109: =(R109-L109)/SQRT((L109*(1-L109))/M109) -> 1.593857535 | AD109: =IF(AC109>0,1-NORMSDIST(AC109),NORMSDIST(AC109)) -> 0.05548397374 | AE109: =(M109*D109) -> 3330 | AF109: =IF(OR(AB109<-0.05,AB109>0.05),"Accept","Reject") -> Reject | AG109: =IF(OR(OR(AB109<-0.05,AB109>0.05),OR(AD109<-0.05,AD109>0.05)),"Accept","Reject") -> Accept
A110: 144 | B110: 1949 | C110: Double Dollar Bingo | D110: 3 | E110: 7 | F110: 42 | G110: 2 | H110: profit | I110: 1 | J110: 7 | K110: 0.2481390515 | L110: 0.167712189 | M110: 1113 | N110: 159 | O110: 228 | P110: 172 | Q110: 0.204851752 | R110: 0.1545372866 | S110: -5.203054807 | T110: -6 | U110: 4.539648461 | V110: 6.609300306 | W110: 6.609300306 | X110: -5791 | Y110: count 228.000000 mean 8.526316 std 6.549319 min 3.000000 25% 5.000000 50% 8.000000 75% 10.000000 max 30.000000 Name: Ticket Outcome, dtype: float64 | AA110: =(Q110-K110)/SQRT((K110*(1-K110))/M110) -> -3.343426278 | AB110: =IF(AA110>0,1-NORMSDIST(AA110),NORMSDIST(AA110)) -> 0.0004137533895 | AC110: =(R110-L110)/SQRT((L110*(1-L110))/M110) -> -1.176456593 | AD110: =IF(AC110>0,1-NORMSDIST(AC110),NORMSDIST(AC110)) -> 0.1197062341 | AE110: =(M110*D110) -> 3339 | AF110: =IF(OR(AB110<-0.05,AB110>0.05),"Accept","Reject") -> Reject | AG110: =IF(OR(OR(AB110<-0.05,AB110>0.05),OR(AD110<-0.05,AD110>0.05)),"Accept","Reject") -> Accept
A111: 228 | B111: 1949 | C111: Double Dollar Bingo | D111: 3 | E111: 4 | F111: 24 | G111: 2 | H111: any | I111: 2 | J111: 5 | K111: 0.2481390515 | L111: 0.167712189 | M111: 1110 | N111: 222 | O111: 233 | P111: 149 | Q111: 0.2099099099 | R111: 0.1342342342 | S111: -5.096396396 | T111: -6 | U111: 3.348923606 | V111: 4.007701637 | W111: 4.007701637 | X111: -5657 | Y111: count 233.000000 mean 6.699571 std 4.242117 min 3.000000 25% 3.000000 50% 5.000000 75% 8.000000 max 20.000000 Name: Ticket Outcome, dtype: float64 | AA111: =(Q111-K111)/SQRT((K111*(1-K111))/M111) -> -2.948761939 | AB111: =IF(AA111>0,1-NORMSDIST(AA111),NORMSDIST(AA111)) -> 0.001595248191 | AC111: =(R111-L111)/SQRT((L111*(1-L111))/M111) -> -2.98539174 | AD111: =IF(AC111>0,1-NORMSDIST(AC111),NORMSDIST(AC111)) -> 0.001416076841 | AE111: =(M111*D111) -> 3330 | AF111: =IF(OR(AB111<-0.05,AB111>0.05),"Accept","Reject") -> Reject | AG111: =IF(OR(OR(AB111<-0.05,AB111>0.05),OR(AD111<-0.05,AD111>0.05)),"Accept","Reject") -> Reject
A112: 228 | B112: 1949 | C112: Double Dollar Bingo | D112: 3 | E112: 8 | F112: 48 | G112: 2 | H112: profit | I112: 2 | J112: 8 | K112: 0.2481390515 | L112: 0.167712189 | M112: 1112 | N112: 139 | O112: 247 | P112: 147 | Q112: 0.2221223022 | R112: 0.1321942446 | S112: -6.587230216 | T112: -7 | U112: 3.743648825 | V112: 5.885220595 | W112: 5.885220595 | X112: -7325 | Y112: count 247.000000 mean 6.591093 std 5.418915 min 3.000000 25% 3.000000 50% 5.000000 75% 8.000000 max 30.000000 Name: Ticket Outcome, dtype: float64 | AA112: =(Q112-K112)/SQRT((K112*(1-K112))/M112) -> -2.008579855 | AB112: =IF(AA112>0,1-NORMSDIST(AA112),NORMSDIST(AA112)) -> 0.02229085473 | AC112: =(R112-L112)/SQRT((L112*(1-L112))/M112) -> -3.170159664 | AD112: =IF(AC112>0,1-NORMSDIST(AC112),NORMSDIST(AC112)) -> 0.0007617759744 | AE112: =(M112*D112) -> 3336 | AF112: =IF(OR(AB112<-0.05,AB112>0.05),"Accept","Reject") -> Reject | AG112: =IF(OR(OR(AB112<-0.05,AB112>0.05),OR(AD112<-0.05,AD112>0.05)),"Accept","Reject") -> Reject
A113: 312 | B113: 1949 | C113: Double Dollar Bingo | D113: 3 | E113: 4 | F113: 24 | G113: 2 | H113: any | I113: 3 | J113: 6 | K113: 0.2481390515 | L113: 0.167712189 | M113: 1110 | N113: 185 | O113: 343 | P113: 239 | Q113: 0.309009009 | R113: 0.2153153153 | S113: 0.3756756757 | T113: -4 | U113: 8.127589862 | V113: 13.2308694 | W113: 13.2308694 | X113: 417 | Y113: count 343.000000 mean 10.084548 std 11.988609 min 3.000000 25% 3.000000 50% 5.000000 75% 8.000000 max 50.000000 Name: Ticket Outcome, dtype: float64 | AA113: =(Q113-K113)/SQRT((K113*(1-K113))/M113) -> 4.695135877 | AB113: =IF(AA113>0,1-NORMSDIST(AA113),NORMSDIST(AA113)) -> 1.33214782e-06 | AC113: =(R113-L113)/SQRT((L113*(1-L113))/M113) -> 4.245001852 | AD113: =IF(AC113>0,1-NORMSDIST(AC113),NORMSDIST(AC113)) -> 1.092958076e-05 | AE113: =(M113*D113) -> 3330 | AF113: =IF(OR(AB113<-0.05,AB113>0.05),"Accept","Reject") -> Reject | AG113: =IF(OR(OR(AB113<-0.05,AB113>0.05),OR(AD113<-0.05,AD113>0.05)),"Accept","Reject") -> Reject
A114: 312 | B114: 1949 | C114: Double Dollar Bingo | D114: 3 | E114: 9 | F114: 54 | G114: 2 | H114: profit | I114: 3 | J114: 10 | K114: 0.2481390515 | L114: 0.167712189 | M114: 1110 | N114: 111 | O114: 293 | P114: 191 | Q114: 0.263963964 | R114: 0.1720720721 | S114: -6.225225225 | T114: -7 | U114: 5.234348685 | V114: 9.613744524 | W114: 9.613744524 | X114: -6910 | Y114: count 293.000000 mean 6.941980 std 8.274406 min 3.000000 25% 3.000000 50% 5.000000 75% 8.000000 max 50.000000 Name: Ticket Outcome, dtype: float64 | AA114: =(Q114-K114)/SQRT((K114*(1-K114))/M114) -> 1.22063687 | AB114: =IF(AA114>0,1-NORMSDIST(AA114),NORMSDIST(AA114)) -> 0.11111177 | AC114: =(R114-L114)/SQRT((L114*(1-L114))/M114) -> 0.3887919363 | AD114: =IF(AC114>0,1-NORMSDIST(AC114),NORMSDIST(AC114)) -> 0.3487150332 | AE114: =(M114*D114) -> 3330 | AF114: =IF(OR(AB114<-0.05,AB114>0.05),"Accept","Reject") -> Accept | AG114: =IF(OR(OR(AB114<-0.05,AB114>0.05),OR(AD114<-0.05,AD114>0.05)),"Accept","Reject") -> Accept
A115: 23 | B115: 1950 | C115: DOUBLE CASH DOUBLER | D115: 10 | E115: 1 | F115: 20 | G115: 2 | H115: any | I115: -3 | J115: 2 | K115: 0.2873564475 | L115: 0.1345203743 | M115: 1110 | N115: 555 | O115: 272 | P115: 154 | Q115: 0.245045045 | R115: 0.1387387387 | S115: -0.4684684685 | T115: -10 | U115: 25.32413012 | V115: 39.7972671 | W115: 39.7972671 | X115: -520 | Y115: count 272.000000 mean 38.327206 std 38.875517 min 10.000000 25% 10.000000 50% 15.000000 75% 100.000000 max 100.000000 Name: Ticket Outcome, dtype: float64 | AA115: =(Q115-K115)/SQRT((K115*(1-K115))/M115) -> -3.115101893 | AB115: =IF(AA115>0,1-NORMSDIST(AA115),NORMSDIST(AA115)) -> 0.0009194068933 | AC115: =(R115-L115)/SQRT((L115*(1-L115))/M115) -> 0.4118917879 | AD115: =IF(AC115>0,1-NORMSDIST(AC115),NORMSDIST(AC115)) -> 0.3402093701 | AE115: =(M115*D115) -> 11100 | AF115: =IF(OR(AB115<-0.05,AB115>0.05),"Accept","Reject") -> Reject | AG115: =IF(OR(OR(AB115<-0.05,AB115>0.05),OR(AD115<-0.05,AD115>0.05)),"Accept","Reject") -> Accept
A116: 191 | B116: 1950 | C116: DOUBLE CASH DOUBLER | D116: 10 | E116: 8 | F116: 160 | G116: 2 | H116: profit | I116: -3 | J116: 5 | K116: 0.2873564475 | L116: 0.1345203743 | M116: 1110 | N116: 222 | O116: 176 | P116: 26 | Q116: 0.1585585586 | R116: 0.02342342342 | S116: -24.92792793 | T116: -20 | U116: 3.987343807 | V116: 0 | W116: 0 | X116: -27670 | Y116: count 176.000000 mean 10.738636 std 1.779209 min 10.000000 25% 10.000000 50% 10.000000 75% 10.000000 max 15.000000 Name: Ticket Outcome, dtype: float64 | AA116: =(Q116-K116)/SQRT((K116*(1-K116))/M116) -> -9.48251593 | AB116: =IF(AA116>0,1-NORMSDIST(AA116),NORMSDIST(AA116)) -> 0 | AC116: =(R116-L116)/SQRT((L116*(1-L116))/M116) -> -10.84778755 | AD116: =IF(AC116>0,1-NORMSDIST(AC116),NORMSDIST(AC116)) -> 0 | AE116: =(M116*D116) -> 11100 | AF116: =IF(OR(AB116<-0.05,AB116>0.05),"Accept","Reject") -> Reject | AG116: =IF(OR(OR(AB116<-0.05,AB116>0.05),OR(AD116<-0.05,AD116>0.05)),"Accept","Reject") -> Reject
A117: 107 | B117: 1950 | C117: DOUBLE CASH DOUBLER | D117: 10 | E117: 8 | F117: 160 | G117: 2 | H117: profit | I117: -2 | J117: 6 | K117: 0.2873564475 | L117: 0.1345203743 | M117: 1110 | N117: 185 | O117: 387 | P117: 159 | Q117: 0.3486486486 | R117: 0.1432432432 | S117: 1.112612613 | T117: -10 | U117: 25.73418646 | V117: 41.2648084 | W117: 41.2648084 | X117: 1235 | Y117: count 387.000000 mean 30.439276 std 36.022277 min 10.000000 25% 10.000000 50% 10.000000 75% 20.000000 max 100.000000 Name: Ticket Outcome, dtype: float64 | AA117: =(Q117-K117)/SQRT((K117*(1-K117))/M117) -> 4.512529506 | AB117: =IF(AA117>0,1-NORMSDIST(AA117),NORMSDIST(AA117)) -> 3.202950984e-06 | AC117: =(R117-L117)/SQRT((L117*(1-L117))/M117) -> 0.851723012 | AD117: =IF(AC117>0,1-NORMSDIST(AC117),NORMSDIST(AC117)) -> 0.1971839226 | AE117: =(M117*D117) -> 11100 | AF117: =IF(OR(AB117<-0.05,AB117>0.05),"Accept","Reject") -> Reject | AG117: =IF(OR(OR(AB117<-0.05,AB117>0.05),OR(AD117<-0.05,AD117>0.05)),"Accept","Reject") -> Accept
A118: 23 | B118: 1950 | C118: DOUBLE CASH DOUBLER | D118: 10 | E118: 2 | F118: 40 | G118: 2 | H118: any | I118: -2 | J118: 3 | K118: 0.2873564475 | L118: 0.1345203743 | M118: 1110 | N118: 370 | O118: 349 | P118: 96 | Q118: 0.3144144144 | R118: 0.08648648649 | S118: -11.74774775 | T118: -10 | U118: 7.047742303 | V118: 7.433919417 | W118: 7.433919417 | X118: -13040 | Y118: count 349.000000 mean 13.094556 std 6.355801 min 10.000000 25% 10.000000 50% 10.000000 75% 15.000000 max 30.000000 Name: Ticket Outcome, dtype: float64 | AA118: =(Q118-K118)/SQRT((K118*(1-K118))/M118) -> 1.992094783 | AB118: =IF(AA118>0,1-NORMSDIST(AA118),NORMSDIST(AA118)) -> 0.02318032965 | AC118: =(R118-L118)/SQRT((L118*(1-L118))/M118) -> -4.690150412 | AD118: =IF(AC118>0,1-NORMSDIST(AC118),NORMSDIST(AC118)) -> 1.365021446e-06 | AE118: =(M118*D118) -> 11100 | AF118: =IF(OR(AB118<-0.05,AB118>0.05),"Accept","Reject") -> Reject | AG118: =IF(OR(OR(AB118<-0.05,AB118>0.05),OR(AD118<-0.05,AD118>0.05)),"Accept","Reject") -> Reject
A119: 23 | B119: 1950 | C119: DOUBLE CASH DOUBLER | D119: 10 | E119: 2 | F119: 40 | G119: 2 | H119: any | I119: -1 | J119: 3 | K119: 0.2873564475 | L119: 0.1345203743 | M119: 1110 | N119: 370 | O119: 233 | P119: 92 | Q119: 0.2099099099 | R119: 0.08288288288 | S119: -9.045045045 | T119: -10 | U119: 16.71629019 | V119: 37.79091648 | W119: 37.79091648 | X119: -10040 | Y119: count 233.000000 mean 24.206009 std 29.509504 min 10.000000 25% 10.000000 50% 10.000000 75% 20.000000 max 100.000000 Name: Ticket Outcome, dtype: float64 | AA119: =(Q119-K119)/SQRT((K119*(1-K119))/M119) -> -5.701863846 | AB119: =IF(AA119>0,1-NORMSDIST(AA119),NORMSDIST(AA119)) -> 5.925223423e-09 | AC119: =(R119-L119)/SQRT((L119*(1-L119))/M119) -> -5.042015391 | AD119: =IF(AC119>0,1-NORMSDIST(AC119),NORMSDIST(AC119)) -> 2.303271132e-07 | AE119: =(M119*D119) -> 11100 | AF119: =IF(OR(AB119<-0.05,AB119>0.05),"Accept","Reject") -> Reject | AG119: =IF(OR(OR(AB119<-0.05,AB119>0.05),OR(AD119<-0.05,AD119>0.05)),"Accept","Reject") -> Reject
A120: 23 | B120: 1950 | C120: DOUBLE CASH DOUBLER | D120: 10 | E120: 9 | F120: 180 | G120: 2 | H120: profit | I120: -1 | J120: 7 | K120: 0.2873564475 | L120: 0.1345203743 | M120: 1113 | N120: 159 | O120: 245 | P120: 191 | Q120: 0.2201257862 | R120: 0.1716082659 | S120: -12.1967655 | T120: -20 | U120: 22.95082628 | V120: 43.82343265 | W120: 43.82343265 | X120: -13575 | Y120: count 245.000000 mean 31.448980 std 40.324535 min 10.000000 25% 15.000000 50% 20.000000 75% 30.000000 max 500.000000 Name: Ticket Outcome, dtype: float64 | AA120: =(Q120-K120)/SQRT((K120*(1-K120))/M120) -> -4.956422414 | AB120: =IF(AA120>0,1-NORMSDIST(AA120),NORMSDIST(AA120)) -> 3.590151041e-07 | AC120: =(R120-L120)/SQRT((L120*(1-L120))/M120) -> 3.626246064 | AD120: =IF(AC120>0,1-NORMSDIST(AC120),NORMSDIST(AC120)) -> 0.0001437856706 | AE120: =(M120*D120) -> 11130 | AF120: =IF(OR(AB120<-0.05,AB120>0.05),"Accept","Reject") -> Reject | AG120: =IF(OR(OR(AB120<-0.05,AB120>0.05),OR(AD120<-0.05,AD120>0.05)),"Accept","Reject") -> Reject
A121: 23 | B121: 1950 | C121: DOUBLE CASH DOUBLER | D121: 10 | E121: 2 | F121: 40 | G121: 2 | H121: any | I121: 0 | J121: 3 | K121: 0.2873564475 | L121: 0.1345203743 | M121: 1110 | N121: 370 | O121: 151 | P121: 104 | Q121: 0.136036036 | R121: 0.09369369369 | S121: -13.09009009 | T121: -20 | U121: 9.987477842 | V121: 10.67372028 | W121: 10.67372028 | X121: -14530 | Y121: count 151.000000 mean 25.231788 std 13.556521 min 10.000000 25% 10.000000 50% 30.000000 75% 30.000000 max 50.000000 Name: Ticket Outcome, dtype: float64 | AA121: =(Q121-K121)/SQRT((K121*(1-K121))/M121) -> -11.14069667 | AB121: =IF(AA121>0,1-NORMSDIST(AA121),NORMSDIST(AA121)) -> 0 | AC121: =(R121-L121)/SQRT((L121*(1-L121))/M121) -> -3.986420453 | AD121: =IF(AC121>0,1-NORMSDIST(AC121),NORMSDIST(AC121)) -> 3.353880108e-05 | AE121: =(M121*D121) -> 11100 | AF121: =IF(OR(AB121<-0.05,AB121>0.05),"Accept","Reject") -> Reject | AG121: =IF(OR(OR(AB121<-0.05,AB121>0.05),OR(AD121<-0.05,AD121>0.05)),"Accept","Reject") -> Reject
A122: 23 | B122: 1950 | C122: DOUBLE CASH DOUBLER | D122: 10 | E122: 9 | F122: 180 | G122: 2 | H122: profit | I122: 0 | J122: 7 | K122: 0.2873564475 | L122: 0.1345203743 | M122: 1113 | N122: 159 | O122: 253 | P122: 87 | Q122: 0.2273135669 | R122: 0.0781671159 | S122: -17.33153639 | T122: -20 | U122: 17.11080293 | V122: 29.26845758 | W122: 29.26845758 | X122: -19290 | Y122: count 253.000000 mean 25.849802 std 27.813316 min 10.000000 25% 10.000000 50% 10.000000 75% 30.000000 max 100.000000 Name: Ticket Outcome, dtype: float64 | AA122: =(Q122-K122)/SQRT((K122*(1-K122))/M122) -> -4.426520178 | AB122: =IF(AA122>0,1-NORMSDIST(AA122),NORMSDIST(AA122)) -> 4.788271401e-06 | AC122: =(R122-L122)/SQRT((L122*(1-L122))/M122) -> -5.509905578 | AD122: =IF(AC122>0,1-NORMSDIST(AC122),NORMSDIST(AC122)) -> 1.795131177e-08 | AE122: =(M122*D122) -> 11130 | AF122: =IF(OR(AB122<-0.05,AB122>0.05),"Accept","Reject") -> Reject | AG122: =IF(OR(OR(AB122<-0.05,AB122>0.05),OR(AD122<-0.05,AD122>0.05)),"Accept","Reject") -> Reject
A123: 107 | B123: 1950 | C123: DOUBLE CASH DOUBLER | D123: 10 | E123: 3 | F123: 60 | G123: 2 | H123: any | I123: 1 | J123: 4 | K123: 0.2873564475 | L123: 0.1345203743 | M123: 1112 | N123: 278 | O123: 258 | P123: 119 | Q123: 0.2320143885 | R123: 0.1070143885 | S123: -14.55485612 | T123: -15 | U123: 9.310475885 | V123: 13.57534483 | W123: 13.57534483 | X123: -16185 | Y123: count 258.000000 mean 17.228682 std 12.078457 min 10.000000 25% 10.000000 50% 10.000000 75% 15.000000 max 50.000000 Name: Ticket Outcome, dtype: float64 | AA123: =(Q123-K123)/SQRT((K123*(1-K123))/M123) -> -4.078129883 | AB123: =IF(AA123>0,1-NORMSDIST(AA123),NORMSDIST(AA123)) -> 2.269970175e-05 | AC123: =(R123-L123)/SQRT((L123*(1-L123))/M123) -> -2.688172598 | AD123: =IF(AC123>0,1-NORMSDIST(AC123),NORMSDIST(AC123)) -> 0.003592212534 | AE123: =(M123*D123) -> 11120 | AF123: =IF(OR(AB123<-0.05,AB123>0.05),"Accept","Reject") -> Reject | AG123: =IF(OR(OR(AB123<-0.05,AB123>0.05),OR(AD123<-0.05,AD123>0.05)),"Accept","Reject") -> Reject
A124: 107 | B124: 1950 | C124: DOUBLE CASH DOUBLER | D124: 10 | E124: 10 | F124: 200 | G124: 2 | H124: profit | I124: 1 | J124: 9 | K124: 0.2873564475 | L124: 0.1345203743 | M124: 1107 | N124: 123 | O124: 292 | P124: 117 | Q124: 0.2637759711 | R124: 0.1056910569 | S124: -33.00813008 | T124: -30 | U124: 6.449247262 | V124: 1.995611159 | W124: 1.995611159 | X124: -36540 | Y124: count 292.000000 mean 13.613014 std 4.602133 min 10.000000 25% 10.000000 50% 10.000000 75% 20.000000 max 20.000000 Name: Ticket Outcome, dtype: float64 | AA124: =(Q124-K124)/SQRT((K124*(1-K124))/M124) -> -1.733723085 | AB124: =IF(AA124>0,1-NORMSDIST(AA124),NORMSDIST(AA124)) -> 0.04148361424 | AC124: =(R124-L124)/SQRT((L124*(1-L124))/M124) -> -2.811160951 | AD124: =IF(AC124>0,1-NORMSDIST(AC124),NORMSDIST(AC124)) -> 0.002468154294 | AE124: =(M124*D124) -> 11070 | AF124: =IF(OR(AB124<-0.05,AB124>0.05),"Accept","Reject") -> Reject | AG124: =IF(OR(OR(AB124<-0.05,AB124>0.05),OR(AD124<-0.05,AD124>0.05)),"Accept","Reject") -> Reject
A125: 191 | B125: 1950 | C125: DOUBLE CASH DOUBLER | D125: 10 | E125: 11 | F125: 220 | G125: 2 | H125: profit | I125: 2 | J125: 10 | K125: 0.2873564475 | L125: 0.1345203743 | M125: 1110 | N125: 111 | O125: 220 | P125: 163 | Q125: 0.1981981982 | R125: 0.1468468468 | S125: -9.747747748 | T125: -20 | U125: 23.1854123 | V125: 32.07468043 | W125: 32.07468043 | X125: -10820 | Y125: count 220.000000 mean 43.954545 std 34.147113 min 10.000000 25% 10.000000 50% 50.000000 75% 50.000000 max 100.000000 Name: Ticket Outcome, dtype: float64 | AA125: =(Q125-K125)/SQRT((K125*(1-K125))/M125) -> -6.56411783 | AB125: =IF(AA125>0,1-NORMSDIST(AA125),NORMSDIST(AA125)) -> 2.617095429e-11 | AC125: =(R125-L125)/SQRT((L125*(1-L125))/M125) -> 1.203587991 | AD125: =IF(AC125>0,1-NORMSDIST(AC125),NORMSDIST(AC125)) -> 0.1143744316 | AE125: =(M125*D125) -> 11100 | AF125: =IF(OR(AB125<-0.05,AB125>0.05),"Accept","Reject") -> Reject | AG125: =IF(OR(OR(AB125<-0.05,AB125>0.05),OR(AD125<-0.05,AD125>0.05)),"Accept","Reject") -> Accept
A126: 191 | B126: 1950 | C126: DOUBLE CASH DOUBLER | D126: 10 | E126: 3 | F126: 60 | G126: 2 | H126: any | I126: 2 | J126: 5 | K126: 0.2873564475 | L126: 0.1345203743 | M126: 1110 | N126: 222 | O126: 358 | P126: 203 | Q126: 0.3225225225 | R126: 0.1828828829 | S126: -13.59009009 | T126: -15 | U126: 9.710410592 | V126: 11.3986204 | W126: 11.3986204 | X126: -15085 | Y126: count 358.000000 mean 16.564246 std 10.320362 min 10.000000 25% 10.000000 50% 15.000000 75% 20.000000 max 50.000000 Name: Ticket Outcome, dtype: float64 | AA126: =(Q126-K126)/SQRT((K126*(1-K126))/M126) -> 2.589039849 | AB126: =IF(AA126>0,1-NORMSDIST(AA126),NORMSDIST(AA126)) -> 0.004812197818 | AC126: =(R126-L126)/SQRT((L126*(1-L126))/M126) -> 4.722237784 | AD126: =IF(AC126>0,1-NORMSDIST(AC126),NORMSDIST(AC126)) -> 1.166318655e-06 | AE126: =(M126*D126) -> 11100 | AF126: =IF(OR(AB126<-0.05,AB126>0.05),"Accept","Reject") -> Reject | AG126: =IF(OR(OR(AB126<-0.05,AB126>0.05),OR(AD126<-0.05,AD126>0.05)),"Accept","Reject") -> Reject
A127: 275 | B127: 1950 | C127: DOUBLE CASH DOUBLER | D127: 10 | E127: 3 | F127: 60 | G127: 2 | H127: any | I127: 3 | J127: 6 | K127: 0.2873564475 | L127: 0.1345203743 | M127: 1110 | N127: 185 | O127: 328 | P127: 210 | Q127: 0.2954954955 | R127: 0.1891891892 | S127: -11.3018018 | T127: -20 | U127: 16.02841884 | V127: 25.96986353 | W127: 25.96986353 | X127: -12545 | Y127: count 328.000000 mean 22.378049 std 22.746786 min 10.000000 25% 10.000000 50% 15.000000 75% 20.000000 max 100.000000 Name: Ticket Outcome, dtype: float64 | AA127: =(Q127-K127)/SQRT((K127*(1-K127))/M127) -> 0.5992229621 | AB127: =IF(AA127>0,1-NORMSDIST(AA127),NORMSDIST(AA127)) -> 0.2745121063 | AC127: =(R127-L127)/SQRT((L127*(1-L127))/M127) -> 5.338001498 | AD127: =IF(AC127>0,1-NORMSDIST(AC127),NORMSDIST(AC127)) -> 4.698834144e-08 | AE127: =(M127*D127) -> 11100 | AF127: =IF(OR(AB127<-0.05,AB127>0.05),"Accept","Reject") -> Accept | AG127: =IF(OR(OR(AB127<-0.05,AB127>0.05),OR(AD127<-0.05,AD127>0.05)),"Accept","Reject") -> Accept
A128: 275 | B128: 1950 | C128: DOUBLE CASH DOUBLER | D128: 10 | E128: 12 | F128: 240 | G128: 2 | H128: profit | I128: 3 | J128: 13 | K128: 0.2873564475 | L128: 0.1345203743 | M128: 1105 | N128: 85 | O128: 268 | P128: 143 | Q128: 0.2425339367 | R128: 0.1294117647 | S128: -39.85067873 | T128: -40 | U128: 8.749467162 | V128: 10.13853125 | W128: 10.13853125 | X128: -44035 | Y128: count 268.000000 mean 16.977612 std 9.868397 min 10.000000 25% 10.000000 50% 15.000000 75% 20.000000 max 50.000000 Name: Ticket Outcome, dtype: float64 | AA128: =(Q128-K128)/SQRT((K128*(1-K128))/M128) -> -3.29253702 | AB128: =IF(AA128>0,1-NORMSDIST(AA128),NORMSDIST(AA128)) -> 0.000496439128 | AC128: =(R128-L128)/SQRT((L128*(1-L128))/M128) -> -0.4976928393 | AD128: =IF(AC128>0,1-NORMSDIST(AC128),NORMSDIST(AC128)) -> 0.309350278 | AE128: =(M128*D128) -> 11050 | AF128: =IF(OR(AB128<-0.05,AB128>0.05),"Accept","Reject") -> Reject | AG128: =IF(OR(OR(AB128<-0.05,AB128>0.05),OR(AD128<-0.05,AD128>0.05)),"Accept","Reject") -> Accept
A129: 211 | B129: 2002 | C129: PAY RAISE | D129: 5 | E129: 7 | F129: 70 | G129: 2 | H129: profit | I129: -3 | J129: 5 | K129: 0.23529427 | L129: 0.1380289823 | M129: 1110 | N129: 222 | O129: 335 | P129: 228 | Q129: 0.3018018018 | R129: 0.2054054054 | S129: -3.292792793 | T129: -5 | U129: 8.502541692 | V129: 11.40964836 | W129: 11.40964836 | X129: -3655 | Y129: count 335.000000 mean 13.119403 std 10.931910 min 5.000000 25% 5.000000 50% 10.000000 75% 15.000000 max 50.000000 Name: Ticket Outcome, dtype: float64 | AA129: =(Q129-K129)/SQRT((K129*(1-K129))/M129) -> 5.223714981 | AB129: =IF(AA129>0,1-NORMSDIST(AA129),NORMSDIST(AA129)) -> 8.768432325e-08 | AC129: =(R129-L129)/SQRT((L129*(1-L129))/M129) -> 6.507856471 | AD129: =IF(AC129>0,1-NORMSDIST(AC129),NORMSDIST(AC129)) -> 3.811539973e-11 | AE129: =(M129*D129) -> 5550 | AF129: =IF(OR(AB129<-0.05,AB129>0.05),"Accept","Reject") -> Reject | AG129: =IF(OR(OR(AB129<-0.05,AB129>0.05),OR(AD129<-0.05,AD129>0.05)),"Accept","Reject") -> Reject
A130: 43 | B130: 2002 | C130: PAY RAISE | D130: 5 | E130: 3 | F130: 30 | G130: 2 | H130: any | I130: -3 | J130: 3 | K130: 0.23529427 | L130: 0.1380289823 | M130: 1110 | N130: 370 | O130: 176 | P130: 147 | Q130: 0.1585585586 | R130: 0.1324324324 | S130: -4.792792793 | T130: -5 | U130: 8.613002226 | V130: 15.92004882 | W130: 15.92004882 | X130: -5320 | Y130: count 176.00000 mean 16.56250 std 15.42638 min 5.00000 25% 10.00000 50% 10.00000 75% 15.00000 max 50.00000 Name: Ticket Outcome, dtype: float64 | AA130: =(Q130-K130)/SQRT((K130*(1-K130))/M130) -> -6.027069027 | AB130: =IF(AA130>0,1-NORMSDIST(AA130),NORMSDIST(AA130)) -> 8.347985636e-10 | AC130: =(R130-L130)/SQRT((L130*(1-L130))/M130) -> -0.5405680719 | AD130: =IF(AC130>0,1-NORMSDIST(AC130),NORMSDIST(AC130)) -> 0.2944026649 | AE130: =(M130*D130) -> 5550 | AF130: =IF(OR(AB130<-0.05,AB130>0.05),"Accept","Reject") -> Reject | AG130: =IF(OR(OR(AB130<-0.05,AB130>0.05),OR(AD130<-0.05,AD130>0.05)),"Accept","Reject") -> Accept
A131: 43 | B131: 2002 | C131: PAY RAISE | D131: 5 | E131: 3 | F131: 30 | G131: 2 | H131: any | I131: -2 | J131: 3 | K131: 0.23529427 | L131: 0.1380289823 | M131: 1110 | N131: 370 | O131: 253 | P131: 153 | Q131: 0.2279279279 | R131: 0.1378378378 | S131: -4.382882883 | T131: -5 | U131: 6.375649661 | V131: 2.352914302 | W131: 2.352914302 | X131: -4865 | Y131: count 253.000000 mean 13.083004 std 6.797892 min 5.000000 25% 5.000000 50% 15.000000 75% 20.000000 max 20.000000 Name: Ticket Outcome, dtype: float64 | AA131: =(Q131-K131)/SQRT((K131*(1-K131))/M131) -> -0.5785761426 | AB131: =IF(AA131>0,1-NORMSDIST(AA131),NORMSDIST(AA131)) -> 0.2814376032 | AC131: =(R131-L131)/SQRT((L131*(1-L131))/M131) -> -0.01846255021 | AD131: =IF(AC131>0,1-NORMSDIST(AC131),NORMSDIST(AC131)) -> 0.4926349265 | AE131: =(M131*D131) -> 5550 | AF131: =IF(OR(AB131<-0.05,AB131>0.05),"Accept","Reject") -> Accept | AG131: =IF(OR(OR(AB131<-0.05,AB131>0.05),OR(AD131<-0.05,AD131>0.05)),"Accept","Reject") -> Accept
A132: 127 | B132: 2002 | C132: PAY RAISE | D132: 5 | E132: 8 | F132: 80 | G132: 2 | H132: profit | I132: -2 | J132: 6 | K132: 0.23529427 | L132: 0.1380289823 | M132: 1110 | N132: 185 | O132: 281 | P132: 137 | Q132: 0.2531531532 | R132: 0.1234234234 | S132: -9.108108108 | T132: -10 | U132: 5.315650418 | V132: 4.568370452 | W132: 4.568370452 | X132: -10110 | Y132: count 281.000000 mean 10.017794 std 6.057731 min 5.000000 25% 5.000000 50% 5.000000 75% 15.000000 max 20.000000 Name: Ticket Outcome, dtype: float64 | AA132: =(Q132-K132)/SQRT((K132*(1-K132))/M132) -> 1.402693997 | AB132: =IF(AA132>0,1-NORMSDIST(AA132),NORMSDIST(AA132)) -> 0.08035405408 | AC132: =(R132-L132)/SQRT((L132*(1-L132))/M132) -> -1.410743941 | AD132: =IF(AC132>0,1-NORMSDIST(AC132),NORMSDIST(AC132)) -> 0.07916006467 | AE132: =(M132*D132) -> 5550 | AF132: =IF(OR(AB132<-0.05,AB132>0.05),"Accept","Reject") -> Accept | AG132: =IF(OR(OR(AB132<-0.05,AB132>0.05),OR(AD132<-0.05,AD132>0.05)),"Accept","Reject") -> Accept
A133: 43 | B133: 2002 | C133: PAY RAISE | D133: 5 | E133: 3 | F133: 30 | G133: 2 | H133: any | I133: -1 | J133: 4 | K133: 0.23529427 | L133: 0.1380289823 | M133: 1112 | N133: 278 | O133: 215 | P133: 112 | Q133: 0.1933453237 | R133: 0.1007194245 | S133: -7.544964029 | T133: -10 | U133: 4.955507822 | V133: 5.009643211 | W133: 5.009643211 | X133: -8390 | Y133: count 215.000000 mean 10.395349 std 6.317679 min 5.000000 25% 5.000000 50% 10.000000 75% 20.000000 max 20.000000 Name: Ticket Outcome, dtype: float64 | AA133: =(Q133-K133)/SQRT((K133*(1-K133))/M133) -> -3.297771812 | AB133: =IF(AA133>0,1-NORMSDIST(AA133),NORMSDIST(AA133)) -> 0.0004872764933 | AC133: =(R133-L133)/SQRT((L133*(1-L133))/M133) -> -3.606957464 | AD133: =IF(AC133>0,1-NORMSDIST(AC133),NORMSDIST(AC133)) -> 0.0001549042117 | AE133: =(M133*D133) -> 5560 | AF133: =IF(OR(AB133<-0.05,AB133>0.05),"Accept","Reject") -> Reject | AG133: =IF(OR(OR(AB133<-0.05,AB133>0.05),OR(AD133<-0.05,AD133>0.05)),"Accept","Reject") -> Reject
A134: 43 | B134: 2002 | C134: PAY RAISE | D134: 5 | E134: 8 | F134: 80 | G134: 2 | H134: profit | I134: -1 | J134: 6 | K134: 0.23529427 | L134: 0.1380289823 | M134: 1110 | N134: 185 | O134: 234 | P134: 116 | Q134: 0.2108108108 | R134: 0.1045045045 | S134: -8.513513514 | T134: -10 | U134: 6.766822939 | V134: 9.681200193 | W134: 9.681200193 | X134: -9450 | Y134: count 234.000000 mean 12.222222 std 9.977323 min 5.000000 25% 5.000000 50% 5.000000 75% 20.000000 max 50.000000 Name: Ticket Outcome, dtype: float64 | AA134: =(Q134-K134)/SQRT((K134*(1-K134))/M134) -> -1.923009452 | AB134: =IF(AA134>0,1-NORMSDIST(AA134),NORMSDIST(AA134)) -> 0.02723943143 | AC134: =(R134-L134)/SQRT((L134*(1-L134))/M134) -> -3.238113267 | AD134: =IF(AC134>0,1-NORMSDIST(AC134),NORMSDIST(AC134)) -> 0.0006016151439 | AE134: =(M134*D134) -> 5550 | AF134: =IF(OR(AB134<-0.05,AB134>0.05),"Accept","Reject") -> Reject | AG134: =IF(OR(OR(AB134<-0.05,AB134>0.05),OR(AD134<-0.05,AD134>0.05)),"Accept","Reject") -> Reject
A135: 43 | B135: 2002 | C135: PAY RAISE | D135: 5 | E135: 3 | F135: 30 | G135: 2 | H135: any | I135: 0 | J135: 4 | K135: 0.23529427 | L135: 0.1380289823 | M135: 1112 | N135: 278 | O135: 341 | P135: 252 | Q135: 0.3066546763 | R135: 0.226618705 | S135: 3.588129496 | T135: -5 | U135: 16.42048486 | V135: 26.73614165 | W135: 26.73614165 | X135: 3990 | Y135: count 341.000000 mean 19.882698 std 24.620371 min 5.000000 25% 5.000000 50% 10.000000 75% 15.000000 max 100.000000 Name: Ticket Outcome, dtype: float64 | AA135: =(Q135-K135)/SQRT((K135*(1-K135))/M135) -> 5.609922479 | AB135: =IF(AA135>0,1-NORMSDIST(AA135),NORMSDIST(AA135)) -> 1.012086337e-08 | AC135: =(R135-L135)/SQRT((L135*(1-L135))/M135) -> 8.564544326 | AD135: =IF(AC135>0,1-NORMSDIST(AC135),NORMSDIST(AC135)) -> 0 | AE135: =(M135*D135) -> 5560 | AF135: =IF(OR(AB135<-0.05,AB135>0.05),"Accept","Reject") -> Reject | AG135: =IF(OR(OR(AB135<-0.05,AB135>0.05),OR(AD135<-0.05,AD135>0.05)),"Accept","Reject") -> Reject
A136: 43 | B136: 2002 | C136: PAY RAISE | D136: 5 | E136: 9 | F136: 90 | G136: 2 | H136: profit | I136: 0 | J136: 7 | K136: 0.23529427 | L136: 0.1380289823 | M136: 1113 | N136: 159 | O136: 241 | P136: 155 | Q136: 0.2165318958 | R136: 0.1392632525 | S136: -8.683737646 | T136: -10 | U136: 5.856244178 | V136: 4.683086003 | W136: 4.683086003 | X136: -9665 | Y136: count 241.000000 mean 12.157676 std 6.528147 min 5.000000 25% 5.000000 50% 10.000000 75% 20.000000 max 20.000000 Name: Ticket Outcome, dtype: float64 | AA136: =(Q136-K136)/SQRT((K136*(1-K136))/M136) -> -1.475647164 | AB136: =IF(AA136>0,1-NORMSDIST(AA136),NORMSDIST(AA136)) -> 0.07001931846 | AC136: =(R136-L136)/SQRT((L136*(1-L136))/M136) -> 0.1193785633 | AD136: =IF(AC136>0,1-NORMSDIST(AC136),NORMSDIST(AC136)) -> 0.4524877219 | AE136: =(M136*D136) -> 5565 | AF136: =IF(OR(AB136<-0.05,AB136>0.05),"Accept","Reject") -> Accept | AG136: =IF(OR(OR(AB136<-0.05,AB136>0.05),OR(AD136<-0.05,AD136>0.05)),"Accept","Reject") -> Accept
A137: 127 | B137: 2002 | C137: PAY RAISE | D137: 5 | E137: 10 | F137: 100 | G137: 2 | H137: profit | I137: 1 | J137: 9 | K137: 0.23529427 | L137: 0.1380289823 | M137: 1107 | N137: 123 | O137: 223 | P137: 175 | Q137: 0.2014453478 | R137: 0.1580849142 | S137: -0.6729900632 | T137: -10 | U137: 15.94568219 | V137: 29.57901111 | W137: 29.57901111 | X137: -745 | Y137: count 223.000000 mean 24.394619 std 28.095980 min 5.000000 25% 10.000000 50% 15.000000 75% 20.000000 max 100.000000 Name: Ticket Outcome, dtype: float64 | AA137: =(Q137-K137)/SQRT((K137*(1-K137))/M137) -> -2.655007835 | AB137: =IF(AA137>0,1-NORMSDIST(AA137),NORMSDIST(AA137)) -> 0.003965328327 | AC137: =(R137-L137)/SQRT((L137*(1-L137))/M137) -> 1.934573266 | AD137: =IF(AC137>0,1-NORMSDIST(AC137),NORMSDIST(AC137)) -> 0.02652134161 | AE137: =(M137*D137) -> 5535 | AF137: =IF(OR(AB137<-0.05,AB137>0.05),"Accept","Reject") -> Reject | AG137: =IF(OR(OR(AB137<-0.05,AB137>0.05),OR(AD137<-0.05,AD137>0.05)),"Accept","Reject") -> Reject
A138: 127 | B138: 2002 | C138: PAY RAISE | D138: 5 | E138: 4 | F138: 40 | G138: 2 | H138: any | I138: 1 | J138: 5 | K138: 0.23529427 | L138: 0.1380289823 | M138: 1110 | N138: 222 | O138: 233 | P138: 151 | Q138: 0.2099099099 | R138: 0.136036036 | S138: -6.581081081 | T138: -5 | U138: 7.085866649 | V138: 8.800963222 | W138: 8.800963222 | X138: -7305 | Y138: count 233.000000 mean 13.690987 std 9.553784 min 5.000000 25% 5.000000 50% 15.000000 75% 20.000000 max 50.000000 Name: Ticket Outcome, dtype: float64 | AA138: =(Q138-K138)/SQRT((K138*(1-K138))/M138) -> -1.993769099 | AB138: =IF(AA138>0,1-NORMSDIST(AA138),NORMSDIST(AA138)) -> 0.02308864698 | AC138: =(R138-L138)/SQRT((L138*(1-L138))/M138) -> -0.1924977241 | AD138: =IF(AC138>0,1-NORMSDIST(AC138),NORMSDIST(AC138)) -> 0.4236761752 | AE138: =(M138*D138) -> 5550 | AF138: =IF(OR(AB138<-0.05,AB138>0.05),"Accept","Reject") -> Reject | AG138: =IF(OR(OR(AB138<-0.05,AB138>0.05),OR(AD138<-0.05,AD138>0.05)),"Accept","Reject") -> Accept
A139: 211 | B139: 2002 | C139: PAY RAISE | D139: 5 | E139: 10 | F139: 100 | G139: 2 | H139: profit | I139: 2 | J139: 10 | K139: 0.23529427 | L139: 0.1380289823 | M139: 1110 | N139: 111 | O139: 225 | P139: 131 | Q139: 0.2027027027 | R139: 0.118018018 | S139: -1.833333333 | T139: -10 | U139: 16.42312724 | V139: 30.60066126 | W139: 30.60066126 | X139: -2035 | Y139: count 225.000000 mean 25.044444 std 28.862324 min 5.000000 25% 5.000000 50% 20.000000 75% 20.000000 max 100.000000 Name: Ticket Outcome, dtype: float64 | AA139: =(Q139-K139)/SQRT((K139*(1-K139))/M139) -> -2.559846282 | AB139: =IF(AA139>0,1-NORMSDIST(AA139),NORMSDIST(AA139)) -> 0.00523592355 | AC139: =(R139-L139)/SQRT((L139*(1-L139))/M139) -> -1.932849463 | AD139: =IF(AC139>0,1-NORMSDIST(AC139),NORMSDIST(AC139)) -> 0.0266273725 | AE139: =(M139*D139) -> 5550 | AF139: =IF(OR(AB139<-0.05,AB139>0.05),"Accept","Reject") -> Reject | AG139: =IF(OR(OR(AB139<-0.05,AB139>0.05),OR(AD139<-0.05,AD139>0.05)),"Accept","Reject") -> Reject
A140: 211 | B140: 2002 | C140: PAY RAISE | D140: 5 | E140: 4 | F140: 40 | G140: 2 | H140: any | I140: 2 | J140: 6 | K140: 0.23529427 | L140: 0.1380289823 | M140: 1110 | N140: 185 | O140: 190 | P140: 138 | Q140: 0.1711711712 | R140: 0.1243243243 | S140: -6.144144144 | T140: -10 | U140: 9.245784375 | V140: 14.71942177 | W140: 14.71942177 | X140: -6820 | Y140: count 190.000000 mean 18.263158 std 14.956169 min 5.000000 25% 5.000000 50% 15.000000 75% 20.000000 max 100.000000 Name: Ticket Outcome, dtype: float64 | AA140: =(Q140-K140)/SQRT((K140*(1-K140))/M140) -> -5.036433957 | AB140: =IF(AA140>0,1-NORMSDIST(AA140),NORMSDIST(AA140)) -> 2.371423229e-07 | AC140: =(R140-L140)/SQRT((L140*(1-L140))/M140) -> -1.323726354 | AD140: =IF(AC140>0,1-NORMSDIST(AC140),NORMSDIST(AC140)) -> 0.09279697125 | AE140: =(M140*D140) -> 5550 | AF140: =IF(OR(AB140<-0.05,AB140>0.05),"Accept","Reject") -> Reject | AG140: =IF(OR(OR(AB140<-0.05,AB140>0.05),OR(AD140<-0.05,AD140>0.05)),"Accept","Reject") -> Accept
A141: 295 | B141: 2002 | C141: PAY RAISE | D141: 5 | E141: 5 | F141: 50 | G141: 2 | H141: any | I141: 3 | J141: 7 | K141: 0.23529427 | L141: 0.1380289823 | M141: 1113 | N141: 159 | O141: 170 | P141: 26 | Q141: 0.1527403414 | R141: 0.02336028751 | S141: -16.23090746 | T141: -15 | U141: 2.819171044 | V141: 1.629062968 | W141: 1.629062968 | X141: -18065 | Y141: count 170.000000 mean 6.617647 std 3.869274 min 5.000000 25% 5.000000 50% 5.000000 75% 5.000000 max 20.000000 Name: Ticket Outcome, dtype: float64 | AA141: =(Q141-K141)/SQRT((K141*(1-K141))/M141) -> -6.49280679 | AB141: =IF(AA141>0,1-NORMSDIST(AA141),NORMSDIST(AA141)) -> 4.212585836e-11 | AC141: =(R141-L141)/SQRT((L141*(1-L141))/M141) -> -11.09075155 | AD141: =IF(AC141>0,1-NORMSDIST(AC141),NORMSDIST(AC141)) -> 0 | AE141: =(M141*D141) -> 5565 | AF141: =IF(OR(AB141<-0.05,AB141>0.05),"Accept","Reject") -> Reject | AG141: =IF(OR(OR(AB141<-0.05,AB141>0.05),OR(AD141<-0.05,AD141>0.05)),"Accept","Reject") -> Reject
A142: 295 | B142: 2002 | C142: PAY RAISE | D142: 5 | E142: 11 | F142: 110 | G142: 2 | H142: profit | I142: 3 | J142: 13 | K142: 0.23529427 | L142: 0.1380289823 | M142: 1105 | N142: 85 | O142: 142 | P142: 54 | Q142: 0.1285067873 | R142: 0.04886877828 | S142: -28.42533937 | T142: -25 | U142: 3.021606674 | V142: 2.516542058 | W142: 2.516542058 | X142: -31410 | Y142: count 142.000000 mean 7.922535 std 4.049471 min 5.000000 25% 5.000000 50% 5.000000 75% 10.000000 max 15.000000 Name: Ticket Outcome, dtype: float64 | AA142: =(Q142-K142)/SQRT((K142*(1-K142))/M142) -> -8.368519645 | AB142: =IF(AA142>0,1-NORMSDIST(AA142),NORMSDIST(AA142)) -> 0 | AC142: =(R142-L142)/SQRT((L142*(1-L142))/M142) -> -8.592523285 | AD142: =IF(AC142>0,1-NORMSDIST(AC142),NORMSDIST(AC142)) -> 0 | AE142: =(M142*D142) -> 5525 | AF142: =IF(OR(AB142<-0.05,AB142>0.05),"Accept","Reject") -> Reject | AG142: =IF(OR(OR(AB142<-0.05,AB142>0.05),OR(AD142<-0.05,AD142>0.05)),"Accept","Reject") -> Reject
A143: 42 | B143: 2007 | C143: JAMES BOND 007 | D143: 5 | E143: 3 | F143: 30 | G143: 2 | H143: any | I143: -3 | J143: 3 | K143: 0.2352948425 | L143: 0.1218799929 | M143: 1107 | N143: 369 | O143: 351 | P143: 204 | Q143: 0.3170731707 | R143: 0.1842818428 | S143: -3.726287263 | T143: -5 | U143: 6.074807958 | V143: 6.633926658 | W143: 6.633926658 | X143: -4125 | Y143: count 351.000000 mean 10.213675 std 6.720751 min 5.000000 25% 5.000000 50% 10.000000 75% 10.000000 max 25.000000 Name: Ticket Outcome, dtype: float64 | AA143: =(Q143-K143)/SQRT((K143*(1-K143))/M143) -> 6.414441154 | AB143: =IF(AA143>0,1-NORMSDIST(AA143),NORMSDIST(AA143)) -> 7.067013641e-11 | AC143: =(R143-L143)/SQRT((L143*(1-L143))/M143) -> 6.346410043 | AD143: =IF(AC143>0,1-NORMSDIST(AC143),NORMSDIST(AC143)) -> 1.10198628e-10 | AE143: =(M143*D143) -> 5535 | AF143: =IF(OR(AB143<-0.05,AB143>0.05),"Accept","Reject") -> Reject | AG143: =IF(OR(OR(AB143<-0.05,AB143>0.05),OR(AD143<-0.05,AD143>0.05)),"Accept","Reject") -> Reject
A144: 210 | B144: 2007 | C144: JAMES BOND 007 | D144: 5 | E144: 8 | F144: 80 | G144: 2 | H144: profit | I144: -3 | J144: 5 | K144: 0.2352948425 | L144: 0.1218799929 | M144: 1105 | N144: 221 | O144: 209 | P144: 45 | Q144: 0.1891402715 | R144: 0.0407239819 | S144: -11.12217195 | T144: -10 | U144: 3.037887572 | V144: 2.477168472 | W144: 2.477168472 | X144: -12290 | Y144: count 209.000000 mean 6.722488 std 3.487549 min 5.000000 25% 5.000000 50% 5.000000 75% 5.000000 max 15.000000 Name: Ticket Outcome, dtype: float64 | AA144: =(Q144-K144)/SQRT((K144*(1-K144))/M144) -> -3.616951154 | AB144: =IF(AA144>0,1-NORMSDIST(AA144),NORMSDIST(AA144)) -> 0.0001490467646 | AC144: =(R144-L144)/SQRT((L144*(1-L144))/M144) -> -8.246291548 | AD144: =IF(AC144>0,1-NORMSDIST(AC144),NORMSDIST(AC144)) -> 1.110223025e-16 | AE144: =(M144*D144) -> 5525 | AF144: =IF(OR(AB144<-0.05,AB144>0.05),"Accept","Reject") -> Reject | AG144: =IF(OR(OR(AB144<-0.05,AB144>0.05),OR(AD144<-0.05,AD144>0.05)),"Accept","Reject") -> Reject
A145: 42 | B145: 2007 | C145: JAMES BOND 007 | D145: 5 | E145: 3 | F145: 30 | G145: 2 | H145: any | I145: -2 | J145: 3 | K145: 0.2352948425 | L145: 0.1218799929 | M145: 1107 | N145: 369 | O145: 250 | P145: 131 | Q145: 0.2258355917 | R145: 0.11833785 | S145: -6.300813008 | T145: -5 | U145: 5.592230592 | V145: 11.13376206 | W145: 11.13376206 | X145: -6975 | Y145: count 250.000000 mean 8.840000 std 8.841214 min 5.000000 25% 5.000000 50% 10.000000 75% 10.000000 max 100.000000 Name: Ticket Outcome, dtype: float64 | AA145: =(Q145-K145)/SQRT((K145*(1-K145))/M145) -> -0.7419546076 | AB145: =IF(AA145>0,1-NORMSDIST(AA145),NORMSDIST(AA145)) -> 0.2290574192 | AC145: =(R145-L145)/SQRT((L145*(1-L145))/M145) -> -0.3602439872 | AD145: =IF(AC145>0,1-NORMSDIST(AC145),NORMSDIST(AC145)) -> 0.3593323414 | AE145: =(M145*D145) -> 5535 | AF145: =IF(OR(AB145<-0.05,AB145>0.05),"Accept","Reject") -> Accept | AG145: =IF(OR(OR(AB145<-0.05,AB145>0.05),OR(AD145<-0.05,AD145>0.05)),"Accept","Reject") -> Accept
A146: 126 | B146: 2007 | C146: JAMES BOND 007 | D146: 5 | E146: 8 | F146: 80 | G146: 2 | H146: profit | I146: -2 | J146: 6 | K146: 0.2352948425 | L146: 0.1218799929 | M146: 1104 | N146: 184 | O146: 195 | P146: 72 | Q146: 0.1766304348 | R146: 0.0652173913 | S146: -13.22463768 | T146: -15 | U146: 2.80212744 | V146: 0 | W146: 0 | X146: -14600 | Y146: count 195.000000 mean 6.846154 std 2.419194 min 5.000000 25% 5.000000 50% 5.000000 75% 10.000000 max 10.000000 Name: Ticket Outcome, dtype: float64 | AA146: =(Q146-K146)/SQRT((K146*(1-K146))/M146) -> -4.595216877 | AB146: =IF(AA146>0,1-NORMSDIST(AA146),NORMSDIST(AA146)) -> 2.161497008e-06 | AC146: =(R146-L146)/SQRT((L146*(1-L146))/M146) -> -5.754901589 | AD146: =IF(AC146>0,1-NORMSDIST(AC146),NORMSDIST(AC146)) -> 4.334614112e-09 | AE146: =(M146*D146) -> 5520 | AF146: =IF(OR(AB146<-0.05,AB146>0.05),"Accept","Reject") -> Reject | AG146: =IF(OR(OR(AB146<-0.05,AB146>0.05),OR(AD146<-0.05,AD146>0.05)),"Accept","Reject") -> Reject
A147: 42 | B147: 2007 | C147: JAMES BOND 007 | D147: 5 | E147: 3 | F147: 30 | G147: 2 | H147: any | I147: -1 | J147: 4 | K147: 0.2352948425 | L147: 0.1218799929 | M147: 1104 | N147: 276 | O147: 145 | P147: 30 | Q147: 0.1313405797 | R147: 0.02717391304 | S147: -10.21286232 | T147: -10 | U147: 3.322802101 | V147: 12.20514307 | W147: 12.20514307 | X147: -11275 | Y147: count 145.000000 mean 6.862069 std 6.586624 min 5.000000 25% 5.000000 50% 5.000000 75% 5.000000 max 50.000000 Name: Ticket Outcome, dtype: float64 | AA147: =(Q147-K147)/SQRT((K147*(1-K147))/M147) -> -8.142797336 | AB147: =IF(AA147>0,1-NORMSDIST(AA147),NORMSDIST(AA147)) -> 2.220446049e-16 | AC147: =(R147-L147)/SQRT((L147*(1-L147))/M147) -> -9.618763593 | AD147: =IF(AC147>0,1-NORMSDIST(AC147),NORMSDIST(AC147)) -> 0 | AE147: =(M147*D147) -> 5520 | AF147: =IF(OR(AB147<-0.05,AB147>0.05),"Accept","Reject") -> Reject | AG147: =IF(OR(OR(AB147<-0.05,AB147>0.05),OR(AD147<-0.05,AD147>0.05)),"Accept","Reject") -> Reject
A148: 42 | B148: 2007 | C148: JAMES BOND 007 | D148: 5 | E148: 9 | F148: 90 | G148: 2 | H148: profit | I148: -1 | J148: 7 | K148: 0.2352948425 | L148: 0.1218799929 | M148: 1106 | N148: 158 | O148: 235 | P148: 91 | Q148: 0.212477396 | R148: 0.08227848101 | S148: -12.56781193 | T148: -15 | U148: 5.419467456 | V148: 13.24328567 | W148: 13.24328567 | X148: -13900 | Y148: count 235.000000 mean 8.276596 std 9.193323 min 5.000000 25% 5.000000 50% 5.000000 75% 10.000000 max 100.000000 Name: Ticket Outcome, dtype: float64 | AA148: =(Q148-K148)/SQRT((K148*(1-K148))/M148) -> -1.788921937 | AB148: =IF(AA148>0,1-NORMSDIST(AA148),NORMSDIST(AA148)) -> 0.03681369415 | AC148: =(R148-L148)/SQRT((L148*(1-L148))/M148) -> -4.025744276 | AD148: =IF(AC148>0,1-NORMSDIST(AC148),NORMSDIST(AC148)) -> 2.839769293e-05 | AE148: =(M148*D148) -> 5530 | AF148: =IF(OR(AB148<-0.05,AB148>0.05),"Accept","Reject") -> Reject | AG148: =IF(OR(OR(AB148<-0.05,AB148>0.05),OR(AD148<-0.05,AD148>0.05)),"Accept","Reject") -> Reject
A149: 42 | B149: 2007 | C149: JAMES BOND 007 | D149: 5 | E149: 3 | F149: 30 | G149: 2 | H149: any | I149: 0 | J149: 4 | K149: 0.2352948425 | L149: 0.1218799929 | M149: 1104 | N149: 276 | O149: 301 | P149: 109 | Q149: 0.2726449275 | R149: 0.09873188406 | S149: -4.836956522 | T149: -5 | U149: 7.56200255 | V149: 15.70140595 | W149: 15.70140595 | X149: -5340 | Y149: count 301.000000 mean 10.132890 std 11.632524 min 5.000000 25% 5.000000 50% 5.000000 75% 10.000000 max 50.000000 Name: Ticket Outcome, dtype: float64 | AA149: =(Q149-K149)/SQRT((K149*(1-K149))/M149) -> 2.925653698 | AB149: =IF(AA149>0,1-NORMSDIST(AA149),NORMSDIST(AA149)) -> 0.001718666671 | AC149: =(R149-L149)/SQRT((L149*(1-L149))/M149) -> -2.351023157 | AD149: =IF(AC149>0,1-NORMSDIST(AC149),NORMSDIST(AC149)) -> 0.009360934341 | AE149: =(M149*D149) -> 5520 | AF149: =IF(OR(AB149<-0.05,AB149>0.05),"Accept","Reject") -> Reject | AG149: =IF(OR(OR(AB149<-0.05,AB149>0.05),OR(AD149<-0.05,AD149>0.05)),"Accept","Reject") -> Reject
A150: 42 | B150: 2007 | C150: JAMES BOND 007 | D150: 5 | E150: 10 | F150: 100 | G150: 2 | H150: profit | I150: 0 | J150: 8 | K150: 0.2352948425 | L150: 0.1218799929 | M150: 1104 | N150: 138 | O150: 302 | P150: 197 | Q150: 0.2735507246 | R150: 0.178442029 | S150: -10.57065217 | T150: -10 | U150: 4.873535348 | V150: 4.640834613 | W150: 4.640834613 | X150: -11670 | Y150: count 302.000000 mean 9.304636 std 4.892184 min 5.000000 25% 5.000000 50% 10.000000 75% 10.000000 max 25.000000 Name: Ticket Outcome, dtype: float64 | AA150: =(Q150-K150)/SQRT((K150*(1-K150))/M150) -> 2.996605307 | AB150: =IF(AA150>0,1-NORMSDIST(AA150),NORMSDIST(AA150)) -> 0.001365019636 | AC150: =(R150-L150)/SQRT((L150*(1-L150))/M150) -> 5.744687709 | AD150: =IF(AC150>0,1-NORMSDIST(AC150),NORMSDIST(AC150)) -> 4.604539305e-09 | AE150: =(M150*D150) -> 5520 | AF150: =IF(OR(AB150<-0.05,AB150>0.05),"Accept","Reject") -> Reject | AG150: =IF(OR(OR(AB150<-0.05,AB150>0.05),OR(AD150<-0.05,AD150>0.05)),"Accept","Reject") -> Reject
A151: 126 | B151: 2007 | C151: JAMES BOND 007 | D151: 5 | E151: 4 | F151: 40 | G151: 2 | H151: any | I151: 1 | J151: 5 | K151: 0.2352948425 | L151: 0.1218799929 | M151: 1105 | N151: 221 | O151: 174 | P151: 61 | Q151: 0.1574660633 | R151: 0.05520361991 | S151: -11.80995475 | T151: -10 | U151: 2.636760338 | V151: 0 | W151: 0 | X151: -13050 | Y151: count 174.000000 mean 6.752874 std 2.392635 min 5.000000 25% 5.000000 50% 5.000000 75% 10.000000 max 10.000000 Name: Ticket Outcome, dtype: float64 | AA151: =(Q151-K151)/SQRT((K151*(1-K151))/M151) -> -6.099133554 | AB151: =IF(AA151>0,1-NORMSDIST(AA151),NORMSDIST(AA151)) -> 5.332246866e-10 | AC151: =(R151-L151)/SQRT((L151*(1-L151))/M151) -> -6.775010308 | AD151: =IF(AC151>0,1-NORMSDIST(AC151),NORMSDIST(AC151)) -> 6.219913473e-12 | AE151: =(M151*D151) -> 5525 | AF151: =IF(OR(AB151<-0.05,AB151>0.05),"Accept","Reject") -> Reject | AG151: =IF(OR(OR(AB151<-0.05,AB151>0.05),OR(AD151<-0.05,AD151>0.05)),"Accept","Reject") -> Reject
A152: 126 | B152: 2007 | C152: JAMES BOND 007 | D152: 5 | E152: 11 | F152: 110 | G152: 2 | H152: profit | I152: 1 | J152: 10 | K152: 0.2352948425 | L152: 0.1218799929 | M152: 1110 | N152: 111 | O152: 163 | P152: 16 | Q152: 0.1468468468 | R152: 0.01441441441 | S152: -23.13963964 | T152: -22.5 | U152: 2.026282638 | V152: 0 | W152: 0 | X152: -25685 | Y152: count 163.000000 mean 5.490798 std 1.492235 min 5.000000 25% 5.000000 50% 5.000000 75% 5.000000 max 10.000000 Name: Ticket Outcome, dtype: float64 | AA152: =(Q152-K152)/SQRT((K152*(1-K152))/M152) -> -6.946983564 | AB152: =IF(AA152>0,1-NORMSDIST(AA152),NORMSDIST(AA152)) -> 1.865840815e-12 | AC152: =(R152-L152)/SQRT((L152*(1-L152))/M152) -> -10.94429332 | AD152: =IF(AC152>0,1-NORMSDIST(AC152),NORMSDIST(AC152)) -> 0 | AE152: =(M152*D152) -> 5550 | AF152: =IF(OR(AB152<-0.05,AB152>0.05),"Accept","Reject") -> Reject | AG152: =IF(OR(OR(AB152<-0.05,AB152>0.05),OR(AD152<-0.05,AD152>0.05)),"Accept","Reject") -> Reject
A153: 210 | B153: 2007 | C153: JAMES BOND 007 | D153: 5 | E153: 4 | F153: 40 | G153: 2 | H153: any | I153: 2 | J153: 6 | K153: 0.2352948425 | L153: 0.1218799929 | M153: 1104 | N153: 184 | O153: 242 | P153: 57 | Q153: 0.2192028986 | R153: 0.05163043478 | S153: -11.69384058 | T153: -10 | U153: 3.635733861 | V153: 0 | W153: 0 | X153: -12910 | Y153: count 242.000000 mean 7.355372 std 4.252135 min 5.000000 25% 5.000000 50% 5.000000 75% 5.000000 max 15.000000 Name: Ticket Outcome, dtype: float64 | AA153: =(Q153-K153)/SQRT((K153*(1-K153))/M153) -> -1.260491245 | AB153: =IF(AA153>0,1-NORMSDIST(AA153),NORMSDIST(AA153)) -> 0.1037461022 | AC153: =(R153-L153)/SQRT((L153*(1-L153))/M153) -> -7.134852305 | AD153: =IF(AC153>0,1-NORMSDIST(AC153),NORMSDIST(AC153)) -> 4.845013279e-13 | AE153: =(M153*D153) -> 5520 | AF153: =IF(OR(AB153<-0.05,AB153>0.05),"Accept","Reject") -> Accept | AG153: =IF(OR(OR(AB153<-0.05,AB153>0.05),OR(AD153<-0.05,AD153>0.05)),"Accept","Reject") -> Accept
A154: 210 | B154: 2007 | C154: JAMES BOND 007 | D154: 5 | E154: 12 | F154: 120 | G154: 2 | H154: profit | I154: 2 | J154: 13 | K154: 0.2352948425 | L154: 0.1218799929 | M154: 1105 | N154: 85 | O154: 245 | P154: 80 | Q154: 0.221719457 | R154: 0.07239819005 | S154: -23.41176471 | T154: -20 | U154: 3.656559302 | V154: 2.487309563 | W154: 2.487309563 | X154: -25870 | Y154: count 245.000000 mean 7.571429 std 3.961909 min 5.000000 25% 5.000000 50% 5.000000 75% 10.000000 max 15.000000 Name: Ticket Outcome, dtype: float64 | AA154: =(Q154-K154)/SQRT((K154*(1-K154))/M154) -> -1.063849258 | AB154: =IF(AA154>0,1-NORMSDIST(AA154),NORMSDIST(AA154)) -> 0.1436984964 | AC154: =(R154-L154)/SQRT((L154*(1-L154))/M154) -> -5.027863836 | AD154: =IF(AC154>0,1-NORMSDIST(AC154),NORMSDIST(AC154)) -> 2.479869203e-07 | AE154: =(M154*D154) -> 5525 | AF154: =IF(OR(AB154<-0.05,AB154>0.05),"Accept","Reject") -> Accept | AG154: =IF(OR(OR(AB154<-0.05,AB154>0.05),OR(AD154<-0.05,AD154>0.05)),"Accept","Reject") -> Accept
A155: 294 | B155: 2007 | C155: JAMES BOND 007 | D155: 5 | E155: 5 | F155: 50 | G155: 2 | H155: any | I155: 3 | J155: 8 | K155: 0.2352948425 | L155: 0.1218799929 | M155: 1104 | N155: 138 | O155: 186 | P155: 72 | Q155: 0.1684782609 | R155: 0.0652173913 | S155: -16.38134058 | T155: -15 | U155: 3.731947363 | V155: 5.978246952 | W155: 5.978246952 | X155: -18085 | Y155: count 186.000000 mean 8.064516 std 5.354072 min 5.000000 25% 5.000000 50% 5.000000 75% 10.000000 max 25.000000 Name: Ticket Outcome, dtype: float64 | AA155: =(Q155-K155)/SQRT((K155*(1-K155))/M155) -> -5.233781359 | AB155: =IF(AA155>0,1-NORMSDIST(AA155),NORMSDIST(AA155)) -> 8.303844445e-08 | AC155: =(R155-L155)/SQRT((L155*(1-L155))/M155) -> -5.754901589 | AD155: =IF(AC155>0,1-NORMSDIST(AC155),NORMSDIST(AC155)) -> 4.334614112e-09 | AE155: =(M155*D155) -> 5520 | AF155: =IF(OR(AB155<-0.05,AB155>0.05),"Accept","Reject") -> Reject | AG155: =IF(OR(OR(AB155<-0.05,AB155>0.05),OR(AD155<-0.05,AD155>0.05)),"Accept","Reject") -> Reject
A156: 294 | B156: 2007 | C156: JAMES BOND 007 | D156: 5 | E156: 14 | F156: 140 | G156: 2 | H156: profit | I156: 3 | J156: 19 | K156: 0.2352948425 | L156: 0.1218799929 | M156: 1102 | N156: 58 | O156: 158 | P156: 84 | Q156: 0.1433756806 | R156: 0.07622504537 | S156: -21.35208711 | T156: -25 | U156: 13.09292852 | V156: 36.03417411 | W156: 36.03417411 | X156: -23530 | Y156: count 158.000000 mean 19.525316 std 29.555023 min 5.000000 25% 5.000000 50% 10.000000 75% 10.000000 max 100.000000 Name: Ticket Outcome, dtype: float64 | AA156: =(Q156-K156)/SQRT((K156*(1-K156))/M156) -> -7.193556177 | AB156: =IF(AA156>0,1-NORMSDIST(AA156),NORMSDIST(AA156)) -> 3.156364059e-13 | AC156: =(R156-L156)/SQRT((L156*(1-L156))/M156) -> -4.6327141 | AD156: =IF(AC156>0,1-NORMSDIST(AC156),NORMSDIST(AC156)) -> 1.804513927e-06 | AE156: =(M156*D156) -> 5510 | AF156: =IF(OR(AB156<-0.05,AB156>0.05),"Accept","Reject") -> Reject | AG156: =IF(OR(OR(AB156<-0.05,AB156>0.05),OR(AD156<-0.05,AD156>0.05)),"Accept","Reject") -> Reject
A157: 7 | B157: 2010 | C157: 50X THE MONEY | D157: 20 | E157: 1 | F157: 40 | G157: 2 | H157: any | I157: -3 | J157: 2 | K157: 0.3300330244 | L157: 0.2289842028 | M157: 1110 | N157: 555 | O157: 467 | P157: 372 | Q157: 0.4207207207 | R157: 0.3351351351 | S157: -7.761261261 | T157: -20 | U157: 22.62832071 | V157: 22.45530571 | W157: 22.45530571 | X157: -8615 | Y157: count 467.000000 mean 35.985011 std 21.606453 min 20.000000 25% 25.000000 50% 30.000000 75% 40.000000 max 100.000000 Name: Ticket Outcome, dtype: float64 | AA157: =(Q157-K157)/SQRT((K157*(1-K157))/M157) -> 6.425463516 | AB157: =IF(AA157>0,1-NORMSDIST(AA157),NORMSDIST(AA157)) -> 6.573419586e-11 | AC157: =(R157-L157)/SQRT((L157*(1-L157))/M157) -> 8.416875499 | AD157: =IF(AC157>0,1-NORMSDIST(AC157),NORMSDIST(AC157)) -> 0 | AE157: =(M157*D157) -> 22200 | AF157: =IF(OR(AB157<-0.05,AB157>0.05),"Accept","Reject") -> Reject | AG157: =IF(OR(OR(AB157<-0.05,AB157>0.05),OR(AD157<-0.05,AD157>0.05)),"Accept","Reject") -> Reject
A158: 175 | B158: 2010 | C158: 50X THE MONEY | D158: 20 | E158: 3 | F158: 120 | G158: 2 | H158: profit | I158: -3 | J158: 3 | K158: 0.3300330244 | L158: 0.2289842028 | M158: 1110 | N158: 370 | O158: 263 | P158: 176 | Q158: 0.2369369369 | R158: 0.1585585586 | S158: -28.4954955 | T158: -20 | U158: 10.60836409 | V158: 2.412090757 | W158: 2.412090757 | X158: -31630 | Y158: count 263.000000 mean 24.562738 std 3.770473 min 20.000000 25% 20.000000 50% 25.000000 75% 25.000000 max 30.000000 Name: Ticket Outcome, dtype: float64 | AA158: =(Q158-K158)/SQRT((K158*(1-K158))/M158) -> -6.596104404 | AB158: =IF(AA158>0,1-NORMSDIST(AA158),NORMSDIST(AA158)) -> 2.110511765e-11 | AC158: =(R158-L158)/SQRT((L158*(1-L158))/M158) -> -5.584160837 | AD158: =IF(AC158>0,1-NORMSDIST(AC158),NORMSDIST(AC158)) -> 1.174156539e-08 | AE158: =(M158*D158) -> 22200 | AF158: =IF(OR(AB158<-0.05,AB158>0.05),"Accept","Reject") -> Reject | AG158: =IF(OR(OR(AB158<-0.05,AB158>0.05),OR(AD158<-0.05,AD158>0.05)),"Accept","Reject") -> Reject
A159: 91 | B159: 2010 | C159: 50X THE MONEY | D159: 20 | E159: 3 | F159: 120 | G159: 2 | H159: profit | I159: -2 | J159: 3 | K159: 0.3300330244 | L159: 0.2289842028 | M159: 1110 | N159: 370 | O159: 333 | P159: 275 | Q159: 0.3 | R159: 0.2477477477 | S159: -8.481981982 | T159: -20 | U159: 41.51421472 | V159: 65.43815368 | W159: 65.43815368 | X159: -9415 | Y159: count 333.000000 mean 53.228228 std 61.381060 min 20.000000 25% 25.000000 50% 25.000000 75% 40.000000 max 200.000000 Name: Ticket Outcome, dtype: float64 | AA159: =(Q159-K159)/SQRT((K159*(1-K159))/M159) -> -2.127919333 | AB159: =IF(AA159>0,1-NORMSDIST(AA159),NORMSDIST(AA159)) -> 0.01667188617 | AC159: =(R159-L159)/SQRT((L159*(1-L159))/M159) -> 1.48779119 | AD159: =IF(AC159>0,1-NORMSDIST(AC159),NORMSDIST(AC159)) -> 0.06840298492 | AE159: =(M159*D159) -> 22200 | AF159: =IF(OR(AB159<-0.05,AB159>0.05),"Accept","Reject") -> Reject | AG159: =IF(OR(OR(AB159<-0.05,AB159>0.05),OR(AD159<-0.05,AD159>0.05)),"Accept","Reject") -> Accept
A160: 7 | B160: 2010 | C160: 50X THE MONEY | D160: 20 | E160: 1 | F160: 40 | G160: 2 | H160: any | I160: -2 | J160: 2 | K160: 0.3300330244 | L160: 0.2289842028 | M160: 1110 | N160: 555 | O160: 429 | P160: 132 | Q160: 0.3864864865 | R160: 0.1189189189 | S160: -12.73873874 | T160: -20 | U160: 20.9875912 | V160: 30.59238085 | W160: 30.59238085 | X160: -14140 | Y160: count 429.000000 mean 30.897436 std 23.543035 min 20.000000 25% 20.000000 50% 20.000000 75% 30.000000 max 100.000000 Name: Ticket Outcome, dtype: float64 | AA160: =(Q160-K160)/SQRT((K160*(1-K160))/M160) -> 3.999877335 | AB160: =IF(AA160>0,1-NORMSDIST(AA160),NORMSDIST(AA160)) -> 3.168766215e-05 | AC160: =(R160-L160)/SQRT((L160*(1-L160))/M160) -> -8.727250627 | AD160: =IF(AC160>0,1-NORMSDIST(AC160),NORMSDIST(AC160)) -> 0 | AE160: =(M160*D160) -> 22200 | AF160: =IF(OR(AB160<-0.05,AB160>0.05),"Accept","Reject") -> Reject | AG160: =IF(OR(OR(AB160<-0.05,AB160>0.05),OR(AD160<-0.05,AD160>0.05)),"Accept","Reject") -> Reject
A161: 7 | B161: 2010 | C161: 50X THE MONEY | D161: 20 | E161: 2 | F161: 80 | G161: 2 | H161: any | I161: -1 | J161: 3 | K161: 0.3300330244 | L161: 0.2289842028 | M161: 1110 | N161: 370 | O161: 426 | P161: 204 | Q161: 0.3837837838 | R161: 0.1837837838 | S161: -4.765765766 | T161: -20 | U161: 29.86396205 | V161: 31.75031021 | W161: 31.75031021 | X161: -5290 | Y161: count 426.000000 mean 44.201878 std 33.472680 min 20.000000 25% 20.000000 50% 20.000000 75% 87.500000 max 100.000000 Name: Ticket Outcome, dtype: float64 | AA161: =(Q161-K161)/SQRT((K161*(1-K161))/M161) -> 3.808383689 | AB161: =IF(AA161>0,1-NORMSDIST(AA161),NORMSDIST(AA161)) -> 6.993905664e-05 | AC161: =(R161-L161)/SQRT((L161*(1-L161))/M161) -> -3.584012789 | AD161: =IF(AC161>0,1-NORMSDIST(AC161),NORMSDIST(AC161)) -> 0.0001691777533 | AE161: =(M161*D161) -> 22200 | AF161: =IF(OR(AB161<-0.05,AB161>0.05),"Accept","Reject") -> Reject | AG161: =IF(OR(OR(AB161<-0.05,AB161>0.05),OR(AD161<-0.05,AD161>0.05)),"Accept","Reject") -> Reject
A162: 7 | B162: 2010 | C162: 50X THE MONEY | D162: 20 | E162: 4 | F162: 160 | G162: 2 | H162: profit | I162: -1 | J162: 4 | K162: 0.3300330244 | L162: 0.2289842028 | M162: 1112 | N162: 278 | O162: 335 | P162: 222 | Q162: 0.3012589928 | R162: 0.1996402878 | S162: -26.7176259 | T162: -20 | U162: 15.2171639 | V162: 8.865120138 | W162: 8.865120138 | X162: -29710 | Y162: count 335.000000 mean 30.686567 std 10.502650 min 20.000000 25% 20.000000 50% 25.000000 75% 40.000000 max 50.000000 Name: Ticket Outcome, dtype: float64 | AA162: =(Q162-K162)/SQRT((K162*(1-K162))/M162) -> -2.040552213 | AB162: =IF(AA162>0,1-NORMSDIST(AA162),NORMSDIST(AA162)) -> 0.02064767811 | AC162: =(R162-L162)/SQRT((L162*(1-L162))/M162) -> -2.328820688 | AD162: =IF(AC162>0,1-NORMSDIST(AC162),NORMSDIST(AC162)) -> 0.009934283485 | AE162: =(M162*D162) -> 22240 | AF162: =IF(OR(AB162<-0.05,AB162>0.05),"Accept","Reject") -> Reject | AG162: =IF(OR(OR(AB162<-0.05,AB162>0.05),OR(AD162<-0.05,AD162>0.05)),"Accept","Reject") -> Reject
A163: 7 | B163: 2010 | C163: 50X THE MONEY | D163: 20 | E163: 2 | F163: 80 | G163: 2 | H163: any | I163: 0 | J163: 3 | K163: 0.3300330244 | L163: 0.2289842028 | M163: 1110 | N163: 370 | O163: 378 | P163: 257 | Q163: 0.3405405405 | R163: 0.2315315315 | S163: -7.009009009 | T163: -20 | U163: 30.35223006 | V163: 36.56366917 | W163: 36.56366917 | X163: -7780 | Y163: count 378.000000 mean 46.970899 std 35.372466 min 20.000000 25% 20.000000 50% 25.000000 75% 100.000000 max 100.000000 Name: Ticket Outcome, dtype: float64 | AA163: =(Q163-K163)/SQRT((K163*(1-K163))/M163) -> 0.744485355 | AB163: =IF(AA163>0,1-NORMSDIST(AA163),NORMSDIST(AA163)) -> 0.228291449 | AC163: =(R163-L163)/SQRT((L163*(1-L163))/M163) -> 0.2019817303 | AD163: =IF(AC163>0,1-NORMSDIST(AC163),NORMSDIST(AC163)) -> 0.4199655035 | AE163: =(M163*D163) -> 22200 | AF163: =IF(OR(AB163<-0.05,AB163>0.05),"Accept","Reject") -> Accept | AG163: =IF(OR(OR(AB163<-0.05,AB163>0.05),OR(AD163<-0.05,AD163>0.05)),"Accept","Reject") -> Accept
A164: 7 | B164: 2010 | C164: 50X THE MONEY | D164: 20 | E164: 4 | F164: 160 | G164: 2 | H164: profit | I164: 0 | J164: 4 | K164: 0.3300330244 | L164: 0.2289842028 | M164: 1112 | N164: 278 | O164: 339 | P164: 128 | Q164: 0.3048561151 | R164: 0.1151079137 | S164: -33.08902878 | T164: -35 | U164: 10.16908575 | V164: 0 | W164: 0 | X164: -36795 | Y164: count 339.000000 mean 21.887906 std 2.427493 min 20.000000 25% 20.000000 50% 20.000000 75% 25.000000 max 25.000000 Name: Ticket Outcome, dtype: float64 | AA164: =(Q164-K164)/SQRT((K164*(1-K164))/M164) -> -1.785457064 | AB164: =IF(AA164>0,1-NORMSDIST(AA164),NORMSDIST(AA164)) -> 0.03709360491 | AC164: =(R164-L164)/SQRT((L164*(1-L164))/M164) -> -9.037562229 | AD164: =IF(AC164>0,1-NORMSDIST(AC164),NORMSDIST(AC164)) -> 0 | AE164: =(M164*D164) -> 22240 | AF164: =IF(OR(AB164<-0.05,AB164>0.05),"Accept","Reject") -> Reject | AG164: =IF(OR(OR(AB164<-0.05,AB164>0.05),OR(AD164<-0.05,AD164>0.05)),"Accept","Reject") -> Reject
A165: 91 | B165: 2010 | C165: 50X THE MONEY | D165: 20 | E165: 4 | F165: 160 | G165: 2 | H165: profit | I165: 1 | J165: 5 | K165: 0.3300330244 | L165: 0.2289842028 | M165: 1110 | N165: 222 | O165: 570 | P165: 397 | Q165: 0.5135135135 | R165: 0.3576576577 | S165: 11.61261261 | T165: -10 | U165: 32.51985834 | V165: 34.11775949 | W165: 34.11775949 | X165: 12890 | Y165: count 570.000000 mean 44.868421 std 32.864560 min 20.000000 25% 20.000000 50% 30.000000 75% 100.000000 max 100.000000 Name: Ticket Outcome, dtype: float64 | AA165: =(Q165-K165)/SQRT((K165*(1-K165))/M165) -> 13.00007869 | AB165: =IF(AA165>0,1-NORMSDIST(AA165),NORMSDIST(AA165)) -> 0 | AC165: =(R165-L165)/SQRT((L165*(1-L165))/M165) -> 10.20272197 | AD165: =IF(AC165>0,1-NORMSDIST(AC165),NORMSDIST(AC165)) -> 0 | AE165: =(M165*D165) -> 22200 | AF165: =IF(OR(AB165<-0.05,AB165>0.05),"Accept","Reject") -> Reject | AG165: =IF(OR(OR(AB165<-0.05,AB165>0.05),OR(AD165<-0.05,AD165>0.05)),"Accept","Reject") -> Reject
A166: 91 | B166: 2010 | C166: 50X THE MONEY | D166: 20 | E166: 2 | F166: 80 | G166: 2 | H166: any | I166: 1 | J166: 3 | K166: 0.3300330244 | L166: 0.2289842028 | M166: 1110 | N166: 370 | O166: 316 | P166: 233 | Q166: 0.2846846847 | R166: 0.2099099099 | S166: -17.12162162 | T166: -20 | U166: 22.70882079 | V166: 28.07528226 | W166: 28.07528226 | X166: -19005 | Y166: count 316.000000 mean 39.208861 std 26.690597 min 20.000000 25% 20.000000 50% 30.000000 75% 40.000000 max 100.000000 Name: Ticket Outcome, dtype: float64 | AA166: =(Q166-K166)/SQRT((K166*(1-K166))/M166) -> -3.213049993 | AB166: =IF(AA166>0,1-NORMSDIST(AA166),NORMSDIST(AA166)) -> 0.0006566671349 | AC166: =(R166-L166)/SQRT((L166*(1-L166))/M166) -> -1.512430882 | AD166: =IF(AC166>0,1-NORMSDIST(AC166),NORMSDIST(AC166)) -> 0.06521214176 | AE166: =(M166*D166) -> 22200 | AF166: =IF(OR(AB166<-0.05,AB166>0.05),"Accept","Reject") -> Reject | AG166: =IF(OR(OR(AB166<-0.05,AB166>0.05),OR(AD166<-0.05,AD166>0.05)),"Accept","Reject") -> Accept
A167: 175 | B167: 2010 | C167: 50X THE MONEY | D167: 20 | E167: 5 | F167: 200 | G167: 2 | H167: profit | I167: 2 | J167: 6 | K167: 0.3300330244 | L167: 0.2289842028 | M167: 1110 | N167: 185 | O167: 447 | P167: 398 | Q167: 0.4027027027 | R167: 0.3585585586 | S167: -7.162162162 | T167: -20 | U167: 28.36831382 | V167: 30.24573787 | W167: 30.24573787 | X167: -7950 | Y167: count 447.000000 mean 43.255034 std 29.682132 min 20.000000 25% 25.000000 50% 25.000000 75% 50.000000 max 100.000000 Name: Ticket Outcome, dtype: float64 | AA167: =(Q167-K167)/SQRT((K167*(1-K167))/M167) -> 5.14883921 | AB167: =IF(AA167>0,1-NORMSDIST(AA167),NORMSDIST(AA167)) -> 1.310517195e-07 | AC167: =(R167-L167)/SQRT((L167*(1-L167))/M167) -> 10.27415583 | AD167: =IF(AC167>0,1-NORMSDIST(AC167),NORMSDIST(AC167)) -> 0 | AE167: =(M167*D167) -> 22200 | AF167: =IF(OR(AB167<-0.05,AB167>0.05),"Accept","Reject") -> Reject | AG167: =IF(OR(OR(AB167<-0.05,AB167>0.05),OR(AD167<-0.05,AD167>0.05)),"Accept","Reject") -> Reject
A168: 175 | B168: 2010 | C168: 50X THE MONEY | D168: 20 | E168: 2 | F168: 80 | G168: 2 | H168: any | I168: 2 | J168: 4 | K168: 0.3300330244 | L168: 0.2289842028 | M168: 1112 | N168: 278 | O168: 270 | P168: 224 | Q168: 0.2428057554 | R168: 0.2014388489 | S168: -24.86510791 | T168: -35 | U168: 22.56843022 | V168: 31.62890881 | W168: 31.62890881 | X168: -27650 | Y168: count 270.000000 mean 39.648148 std 30.147813 min 20.000000 25% 25.000000 50% 25.000000 75% 25.000000 max 100.000000 Name: Ticket Outcome, dtype: float64 | AA168: =(Q168-K168)/SQRT((K168*(1-K168))/M168) -> -6.185848386 | AB168: =IF(AA168>0,1-NORMSDIST(AA168),NORMSDIST(AA168)) -> 3.08846726e-10 | AC168: =(R168-L168)/SQRT((L168*(1-L168))/M168) -> -2.186081506 | AD168: =IF(AC168>0,1-NORMSDIST(AC168),NORMSDIST(AC168)) -> 0.01440482139 | AE168: =(M168*D168) -> 22240 | AF168: =IF(OR(AB168<-0.05,AB168>0.05),"Accept","Reject") -> Reject | AG168: =IF(OR(OR(AB168<-0.05,AB168>0.05),OR(AD168<-0.05,AD168>0.05)),"Accept","Reject") -> Reject
A169: 259 | B169: 2010 | C169: 50X THE MONEY | D169: 20 | E169: 3 | F169: 120 | G169: 2 | H169: any | I169: 3 | J169: 5 | K169: 0.3300330244 | L169: 0.2289842028 | M169: 1110 | N169: 222 | O169: 423 | P169: 327 | Q169: 0.3810810811 | R169: 0.2945945946 | S169: -20.68468468 | T169: -20 | U169: 21.63035791 | V169: 23.56777165 | W169: 23.56777165 | X169: -22960 | Y169: count 423.000000 mean 34.503546 std 22.158185 min 20.000000 25% 25.000000 50% 25.000000 75% 40.000000 max 100.000000 Name: Ticket Outcome, dtype: float64 | AA169: =(Q169-K169)/SQRT((K169*(1-K169))/M169) -> 3.616890043 | AB169: =IF(AA169>0,1-NORMSDIST(AA169),NORMSDIST(AA169)) -> 0.0001490819439 | AC169: =(R169-L169)/SQRT((L169*(1-L169))/M169) -> 5.20235185 | AD169: =IF(AC169>0,1-NORMSDIST(AC169),NORMSDIST(AC169)) -> 9.839110737e-08 | AE169: =(M169*D169) -> 22200 | AF169: =IF(OR(AB169<-0.05,AB169>0.05),"Accept","Reject") -> Reject | AG169: =IF(OR(OR(AB169<-0.05,AB169>0.05),OR(AD169<-0.05,AD169>0.05)),"Accept","Reject") -> Reject
A170: 259 | B170: 2010 | C170: 50X THE MONEY | D170: 20 | E170: 5 | F170: 200 | G170: 2 | H170: profit | I170: 3 | J170: 7 | K170: 0.3300330244 | L170: 0.2289842028 | M170: 1113 | N170: 159 | O170: 409 | P170: 317 | Q170: 0.367475292 | R170: 0.2848158131 | S170: -26.42407907 | T170: -30 | U170: 23.61903998 | V170: 24.31165118 | W170: 24.31165118 | X170: -29410 | Y170: count 409.000000 mean 38.887531 std 23.697379 min 20.000000 25% 25.000000 50% 25.000000 75% 50.000000 max 100.000000 Name: Ticket Outcome, dtype: float64 | AA170: =(Q170-K170)/SQRT((K170*(1-K170))/M170) -> 2.656466405 | AB170: =IF(AA170>0,1-NORMSDIST(AA170),NORMSDIST(AA170)) -> 0.003948215917 | AC170: =(R170-L170)/SQRT((L170*(1-L170))/M170) -> 4.432955148 | AD170: =IF(AC170>0,1-NORMSDIST(AC170),NORMSDIST(AC170)) -> 4.647510387e-06 | AE170: =(M170*D170) -> 22260 | AF170: =IF(OR(AB170<-0.05,AB170>0.05),"Accept","Reject") -> Reject | AG170: =IF(OR(OR(AB170<-0.05,AB170>0.05),OR(AD170<-0.05,AD170>0.05)),"Accept","Reject") -> Reject
A171: 8 | B171: 2017 | C171: $1 MILLION ROYALE | D171: 20 | E171: 2 | F171: 80 | G171: 2 | H171: any | I171: -3 | J171: 3 | K171: 0.2688173385 | L171: 0.2688173385 | M171: 1110 | N171: 370 | O171: 424 | P171: 424 | Q171: 0.381981982 | R171: 0.381981982 | S171: -3.306306306 | T171: -10 | U171: 23.9942817 | V171: 11.6867694 | W171: 11.6867694 | X171: -3670 | Y171: count 424.000000 mean 47.075472 std 11.686769 min 30.000000 25% 30.000000 50% 50.000000 75% 60.000000 max 60.000000 Name: Ticket Outcome, dtype: float64 | AA171: =(Q171-K171)/SQRT((K171*(1-K171))/M171) -> 8.504145229 | AB171: =IF(AA171>0,1-NORMSDIST(AA171),NORMSDIST(AA171)) -> 0 | AC171: =(R171-L171)/SQRT((L171*(1-L171))/M171) -> 8.504145229 | AD171: =IF(AC171>0,1-NORMSDIST(AC171),NORMSDIST(AC171)) -> 0 | AE171: =(M171*D171) -> 22200 | AF171: =IF(OR(AB171<-0.05,AB171>0.05),"Accept","Reject") -> Reject | AG171: =IF(OR(OR(AB171<-0.05,AB171>0.05),OR(AD171<-0.05,AD171>0.05)),"Accept","Reject") -> Reject
A172: 176 | B172: 2017 | C172: $1 MILLION ROYALE | D172: 20 | E172: 2 | F172: 80 | G172: 2 | H172: profit | I172: -3 | J172: 3 | K172: 0.2688173385 | L172: 0.2688173385 | M172: 1110 | N172: 370 | O172: 354 | P172: 354 | Q172: 0.3189189189 | R172: 0.3189189189 | S172: -11.64864865 | T172: -20 | U172: 25.77125902 | V172: 25.6845897 | W172: 25.6845897 | X172: -12930 | Y172: count 354.000000 mean 45.706215 std 25.684590 min 30.000000 25% 30.000000 50% 40.000000 75% 40.000000 max 100.000000 Name: Ticket Outcome, dtype: float64 | AA172: =(Q172-K172)/SQRT((K172*(1-K172))/M172) -> 3.765055082 | AB172: =IF(AA172>0,1-NORMSDIST(AA172),NORMSDIST(AA172)) -> 8.325618566e-05 | AC172: =(R172-L172)/SQRT((L172*(1-L172))/M172) -> 3.765055082 | AD172: =IF(AC172>0,1-NORMSDIST(AC172),NORMSDIST(AC172)) -> 8.325618566e-05 | AE172: =(M172*D172) -> 22200 | AF172: =IF(OR(AB172<-0.05,AB172>0.05),"Accept","Reject") -> Reject | AG172: =IF(OR(OR(AB172<-0.05,AB172>0.05),OR(AD172<-0.05,AD172>0.05)),"Accept","Reject") -> Reject
A173: 92 | B173: 2017 | C173: $1 MILLION ROYALE | D173: 20 | E173: 2 | F173: 80 | G173: 2 | H173: profit | I173: -2 | J173: 3 | K173: 0.2688173385 | L173: 0.2688173385 | M173: 1110 | N173: 370 | O173: 371 | P173: 371 | Q173: 0.3342342342 | R173: 0.3342342342 | S173: 7.675675676 | T173: -10 | U173: 36.34972306 | V173: 27.05460457 | W173: 27.05460457 | X173: 8520 | Y173: count 371.000000 mean 69.541779 std 27.054605 min 30.000000 25% 50.000000 50% 60.000000 75% 100.000000 max 100.000000 Name: Ticket Outcome, dtype: float64 | AA173: =(Q173-K173)/SQRT((K173*(1-K173))/M173) -> 4.915976975 | AB173: =IF(AA173>0,1-NORMSDIST(AA173),NORMSDIST(AA173)) -> 4.417039045e-07 | AC173: =(R173-L173)/SQRT((L173*(1-L173))/M173) -> 4.915976975 | AD173: =IF(AC173>0,1-NORMSDIST(AC173),NORMSDIST(AC173)) -> 4.417039045e-07 | AE173: =(M173*D173) -> 22200 | AF173: =IF(OR(AB173<-0.05,AB173>0.05),"Accept","Reject") -> Reject | AG173: =IF(OR(OR(AB173<-0.05,AB173>0.05),OR(AD173<-0.05,AD173>0.05)),"Accept","Reject") -> Reject
A174: 8 | B174: 2017 | C174: $1 MILLION ROYALE | D174: 20 | E174: 2 | F174: 80 | G174: 2 | H174: any | I174: -2 | J174: 3 | K174: 0.2688173385 | L174: 0.2688173385 | M174: 1110 | N174: 370 | O174: 321 | P174: 321 | Q174: 0.2891891892 | R174: 0.2891891892 | S174: -15.63963964 | T174: -20 | U174: 21.2565108 | V174: 12.44239061 | W174: 12.44239061 | X174: -17360 | Y174: count 321.000000 mean 44.485981 std 12.442391 min 30.000000 25% 30.000000 50% 40.000000 75% 60.000000 max 60.000000 Name: Ticket Outcome, dtype: float64 | AA174: =(Q174-K174)/SQRT((K174*(1-K174))/M174) -> 1.530912584 | AB174: =IF(AA174>0,1-NORMSDIST(AA174),NORMSDIST(AA174)) -> 0.06289549931 | AC174: =(R174-L174)/SQRT((L174*(1-L174))/M174) -> 1.530912584 | AD174: =IF(AC174>0,1-NORMSDIST(AC174),NORMSDIST(AC174)) -> 0.06289549931 | AE174: =(M174*D174) -> 22200 | AF174: =IF(OR(AB174<-0.05,AB174>0.05),"Accept","Reject") -> Accept | AG174: =IF(OR(OR(AB174<-0.05,AB174>0.05),OR(AD174<-0.05,AD174>0.05)),"Accept","Reject") -> Accept
A175: 8 | B175: 2017 | C175: $1 MILLION ROYALE | D175: 20 | E175: 2 | F175: 80 | G175: 2 | H175: profit | I175: -1 | J175: 3 | K175: 0.2688173385 | L175: 0.2688173385 | M175: 1110 | N175: 370 | O175: 465 | P175: 465 | Q175: 0.4189189189 | R175: 0.4189189189 | S175: 3.504504505 | T175: 0 | U175: 27.46315961 | V175: 10.80415196 | W175: 10.80415196 | X175: 3890 | Y175: count 465.000000 mean 53.806452 std 10.804152 min 30.000000 25% 50.000000 50% 60.000000 75% 60.000000 max 60.000000 Name: Ticket Outcome, dtype: float64 | AA175: =(Q175-K175)/SQRT((K175*(1-K175))/M175) -> 11.27989803 | AB175: =IF(AA175>0,1-NORMSDIST(AA175),NORMSDIST(AA175)) -> 0 | AC175: =(R175-L175)/SQRT((L175*(1-L175))/M175) -> 11.27989803 | AD175: =IF(AC175>0,1-NORMSDIST(AC175),NORMSDIST(AC175)) -> 0 | AE175: =(M175*D175) -> 22200 | AF175: =IF(OR(AB175<-0.05,AB175>0.05),"Accept","Reject") -> Reject | AG175: =IF(OR(OR(AB175<-0.05,AB175>0.05),OR(AD175<-0.05,AD175>0.05)),"Accept","Reject") -> Reject
A176: 8 | B176: 2017 | C176: $1 MILLION ROYALE | D176: 20 | E176: 2 | F176: 80 | G176: 2 | H176: any | I176: -1 | J176: 3 | K176: 0.2688173385 | L176: 0.2688173385 | M176: 1110 | N176: 370 | O176: 178 | P176: 178 | Q176: 0.1603603604 | R176: 0.1603603604 | S176: -26.01801802 | T176: -20 | U176: 17.41016471 | V176: 11.73364979 | W176: 11.73364979 | X176: -28880 | Y176: count 178.000000 mean 45.674157 std 11.733650 min 30.000000 25% 30.000000 50% 50.000000 75% 50.000000 max 60.000000 Name: Ticket Outcome, dtype: float64 | AA176: =(Q176-K176)/SQRT((K176*(1-K176))/M176) -> -8.150371573 | AB176: =IF(AA176>0,1-NORMSDIST(AA176),NORMSDIST(AA176)) -> 2.220446049e-16 | AC176: =(R176-L176)/SQRT((L176*(1-L176))/M176) -> -8.150371573 | AD176: =IF(AC176>0,1-NORMSDIST(AC176),NORMSDIST(AC176)) -> 2.220446049e-16 | AE176: =(M176*D176) -> 22200 | AF176: =IF(OR(AB176<-0.05,AB176>0.05),"Accept","Reject") -> Reject | AG176: =IF(OR(OR(AB176<-0.05,AB176>0.05),OR(AD176<-0.05,AD176>0.05)),"Accept","Reject") -> Reject
A177: 8 | B177: 2017 | C177: $1 MILLION ROYALE | D177: 20 | E177: 3 | F177: 120 | G177: 2 | H177: profit | I177: 0 | J177: 4 | K177: 0.2688173385 | L177: 0.2688173385 | M177: 1112 | N177: 278 | O177: 293 | P177: 293 | Q177: 0.2634892086 | R177: 0.2634892086 | S177: -21.57374101 | T177: -20 | U177: 19.88646838 | V177: 10.47149262 | W177: 10.47149262 | X177: -23990 | Y177: count 293.000000 mean 43.447099 std 10.471493 min 30.000000 25% 40.000000 50% 40.000000 75% 50.000000 max 60.000000 Name: Ticket Outcome, dtype: float64 | AA177: =(Q177-K177)/SQRT((K177*(1-K177))/M177) -> -0.4007611509 | AB177: =IF(AA177>0,1-NORMSDIST(AA177),NORMSDIST(AA177)) -> 0.3442979919 | AC177: =(R177-L177)/SQRT((L177*(1-L177))/M177) -> -0.4007611509 | AD177: =IF(AC177>0,1-NORMSDIST(AC177),NORMSDIST(AC177)) -> 0.3442979919 | AE177: =(M177*D177) -> 22240 | AF177: =IF(OR(AB177<-0.05,AB177>0.05),"Accept","Reject") -> Accept | AG177: =IF(OR(OR(AB177<-0.05,AB177>0.05),OR(AD177<-0.05,AD177>0.05)),"Accept","Reject") -> Accept
A178: 8 | B178: 2017 | C178: $1 MILLION ROYALE | D178: 20 | E178: 3 | F178: 120 | G178: 2 | H178: any | I178: 0 | J178: 4 | K178: 0.2688173385 | L178: 0.2688173385 | M178: 1112 | N178: 278 | O178: 289 | P178: 289 | Q178: 0.2598920863 | R178: 0.2598920863 | S178: -24.92805755 | T178: -20 | U178: 18.81731119 | V178: 9.912874979 | W178: 9.912874979 | X178: -27720 | Y178: count 289.000000 mean 41.314879 std 9.912875 min 30.000000 25% 30.000000 50% 40.000000 75% 50.000000 max 60.000000 Name: Ticket Outcome, dtype: float64 | AA178: =(Q178-K178)/SQRT((K178*(1-K178))/M178) -> -0.6713226628 | AB178: =IF(AA178>0,1-NORMSDIST(AA178),NORMSDIST(AA178)) -> 0.2510075002 | AC178: =(R178-L178)/SQRT((L178*(1-L178))/M178) -> -0.6713226628 | AD178: =IF(AC178>0,1-NORMSDIST(AC178),NORMSDIST(AC178)) -> 0.2510075002 | AE178: =(M178*D178) -> 22240 | AF178: =IF(OR(AB178<-0.05,AB178>0.05),"Accept","Reject") -> Accept | AG178: =IF(OR(OR(AB178<-0.05,AB178>0.05),OR(AD178<-0.05,AD178>0.05)),"Accept","Reject") -> Accept
A179: 92 | B179: 2017 | C179: $1 MILLION ROYALE | D179: 20 | E179: 3 | F179: 120 | G179: 2 | H179: any | I179: 1 | J179: 4 | K179: 0.2688173385 | L179: 0.2688173385 | M179: 1112 | N179: 278 | O179: 435 | P179: 435 | Q179: 0.3911870504 | R179: 0.3911870504 | S179: -14.70323741 | T179: -20 | U179: 18.85667854 | V179: 8.917226226 | W179: 8.917226226 | X179: -16350 | Y179: count 435.000000 mean 36.896552 std 8.917226 min 30.000000 25% 30.000000 50% 30.000000 75% 40.000000 max 60.000000 Name: Ticket Outcome, dtype: float64 | AA179: =(Q179-K179)/SQRT((K179*(1-K179))/M179) -> 9.20417252 | AB179: =IF(AA179>0,1-NORMSDIST(AA179),NORMSDIST(AA179)) -> 0 | AC179: =(R179-L179)/SQRT((L179*(1-L179))/M179) -> 9.20417252 | AD179: =IF(AC179>0,1-NORMSDIST(AC179),NORMSDIST(AC179)) -> 0 | AE179: =(M179*D179) -> 22240 | AF179: =IF(OR(AB179<-0.05,AB179>0.05),"Accept","Reject") -> Reject | AG179: =IF(OR(OR(AB179<-0.05,AB179>0.05),OR(AD179<-0.05,AD179>0.05)),"Accept","Reject") -> Reject
A180: 92 | B180: 2017 | C180: $1 MILLION ROYALE | D180: 20 | E180: 3 | F180: 120 | G180: 2 | H180: profit | I180: 1 | J180: 4 | K180: 0.2688173385 | L180: 0.2688173385 | M180: 1112 | N180: 278 | O180: 242 | P180: 242 | Q180: 0.2176258993 | R180: 0.2176258993 | S180: -27.29316547 | T180: -20 | U180: 19.17478661 | V180: 13.38399694 | W180: 13.38399694 | X180: -30350 | Y180: count 242.000000 mean 43.925620 std 13.383997 min 30.000000 25% 30.000000 50% 40.000000 75% 60.000000 max 60.000000 Name: Ticket Outcome, dtype: float64 | AA180: =(Q180-K180)/SQRT((K180*(1-K180))/M180) -> -3.850420427 | AB180: =IF(AA180>0,1-NORMSDIST(AA180),NORMSDIST(AA180)) -> 5.89576183e-05 | AC180: =(R180-L180)/SQRT((L180*(1-L180))/M180) -> -3.850420427 | AD180: =IF(AC180>0,1-NORMSDIST(AC180),NORMSDIST(AC180)) -> 5.89576183e-05 | AE180: =(M180*D180) -> 22240 | AF180: =IF(OR(AB180<-0.05,AB180>0.05),"Accept","Reject") -> Reject | AG180: =IF(OR(OR(AB180<-0.05,AB180>0.05),OR(AD180<-0.05,AD180>0.05)),"Accept","Reject") -> Reject
A181: 176 | B181: 2017 | C181: $1 MILLION ROYALE | D181: 20 | E181: 3 | F181: 120 | G181: 2 | H181: any | I181: 2 | J181: 5 | K181: 0.2688173385 | L181: 0.2688173385 | M181: 1110 | N181: 222 | O181: 259 | P181: 259 | Q181: 0.2333333333 | R181: 0.2333333333 | S181: -30.11711712 | T181: -30 | U181: 19.19242386 | V181: 12.73017699 | W181: 12.73017699 | X181: -33430 | Y181: count 259.000000 mean 42.972973 std 12.730177 min 30.000000 25% 30.000000 50% 40.000000 75% 60.000000 max 60.000000 Name: Ticket Outcome, dtype: float64 | AA181: =(Q181-K181)/SQRT((K181*(1-K181))/M181) -> -2.66656726 | AB181: =IF(AA181>0,1-NORMSDIST(AA181),NORMSDIST(AA181)) -> 0.003831513552 | AC181: =(R181-L181)/SQRT((L181*(1-L181))/M181) -> -2.66656726 | AD181: =IF(AC181>0,1-NORMSDIST(AC181),NORMSDIST(AC181)) -> 0.003831513552 | AE181: =(M181*D181) -> 22200 | AF181: =IF(OR(AB181<-0.05,AB181>0.05),"Accept","Reject") -> Reject | AG181: =IF(OR(OR(AB181<-0.05,AB181>0.05),OR(AD181<-0.05,AD181>0.05)),"Accept","Reject") -> Reject
A182: 176 | B182: 2017 | C182: $1 MILLION ROYALE | D182: 20 | E182: 3 | F182: 120 | G182: 2 | H182: profit | I182: 2 | J182: 5 | K182: 0.2688173385 | L182: 0.2688173385 | M182: 1110 | N182: 222 | O182: 233 | P182: 233 | Q182: 0.2099099099 | R182: 0.2099099099 | S182: -33.01801802 | T182: -40 | U182: 18.93393502 | V182: 17.27559133 | W182: 17.27559133 | X182: -36650 | Y182: count 233.000000 mean 42.231760 std 17.275591 min 30.000000 25% 40.000000 50% 40.000000 75% 40.000000 max 100.000000 Name: Ticket Outcome, dtype: float64 | AA182: =(Q182-K182)/SQRT((K182*(1-K182))/M182) -> -4.426800743 | AB182: =IF(AA182>0,1-NORMSDIST(AA182),NORMSDIST(AA182)) -> 4.782050205e-06 | AC182: =(R182-L182)/SQRT((L182*(1-L182))/M182) -> -4.426800743 | AD182: =IF(AC182>0,1-NORMSDIST(AC182),NORMSDIST(AC182)) -> 4.782050205e-06 | AE182: =(M182*D182) -> 22200 | AF182: =IF(OR(AB182<-0.05,AB182>0.05),"Accept","Reject") -> Reject | AG182: =IF(OR(OR(AB182<-0.05,AB182>0.05),OR(AD182<-0.05,AD182>0.05)),"Accept","Reject") -> Reject
A183: 260 | B183: 2017 | C183: $1 MILLION ROYALE | D183: 20 | E183: 4 | F183: 160 | G183: 2 | H183: profit | I183: 3 | J183: 6 | K183: 0.2688173385 | L183: 0.2688173385 | M183: 1110 | N183: 185 | O183: 446 | P183: 446 | Q183: 0.4018018018 | R183: 0.4018018018 | S183: 9.387387387 | T183: 0 | U183: 42.65774754 | V183: 50.2389965 | W183: 50.2389965 | X183: 10420 | Y183: count 446.000000 mean 57.914798 std 50.238996 min 30.000000 25% 30.000000 50% 40.000000 75% 60.000000 max 200.000000 Name: Ticket Outcome, dtype: float64 | AA183: =(Q183-K183)/SQRT((K183*(1-K183))/M183) -> 9.993573561 | AB183: =IF(AA183>0,1-NORMSDIST(AA183),NORMSDIST(AA183)) -> 0 | AC183: =(R183-L183)/SQRT((L183*(1-L183))/M183) -> 9.993573561 | AD183: =IF(AC183>0,1-NORMSDIST(AC183),NORMSDIST(AC183)) -> 0 | AE183: =(M183*D183) -> 22200 | AF183: =IF(OR(AB183<-0.05,AB183>0.05),"Accept","Reject") -> Reject | AG183: =IF(OR(OR(AB183<-0.05,AB183>0.05),OR(AD183<-0.05,AD183>0.05)),"Accept","Reject") -> Reject
A184: 260 | B184: 2017 | C184: $1 MILLION ROYALE | D184: 20 | E184: 4 | F184: 160 | G184: 2 | H184: any | I184: 3 | J184: 6 | K184: 0.2688173385 | L184: 0.2688173385 | M184: 1110 | N184: 185 | O184: 280 | P184: 280 | Q184: 0.2522522523 | R184: 0.2522522523 | S184: -30.11711712 | T184: -30 | U184: 20.24267271 | V184: 12.33991189 | W184: 12.33991189 | X184: -33430 | Y184: count 280.000000 mean 44.357143 std 12.339912 min 30.000000 25% 30.000000 50% 40.000000 75% 60.000000 max 60.000000 Name: Ticket Outcome, dtype: float64 | AA184: =(Q184-K184)/SQRT((K184*(1-K184))/M184) -> -1.244840216 | AB184: =IF(AA184>0,1-NORMSDIST(AA184),NORMSDIST(AA184)) -> 0.106595245 | AC184: =(R184-L184)/SQRT((L184*(1-L184))/M184) -> -1.244840216 | AD184: =IF(AC184>0,1-NORMSDIST(AC184),NORMSDIST(AC184)) -> 0.106595245 | AE184: =(M184*D184) -> 22200 | AF184: =IF(OR(AB184<-0.05,AB184>0.05),"Accept","Reject") -> Accept | AG184: =IF(OR(OR(AB184<-0.05,AB184>0.05),OR(AD184<-0.05,AD184>0.05)),"Accept","Reject") -> Accept
A185: 0 | B185: 2021 | C185: 100X THE MONEY | D185: 30 | E185: 1 | F185: 60 | G185: 2 | H185: any | I185: -3 | J185: 2 | K185: 0.3610108902 | L185: 0.2109427111 | M185: 1112 | N185: 556 | O185: 542 | P185: 111 | Q185: 0.4874100719 | R185: 0.09982014388 | S185: -13.61510791 | T185: -30 | U185: 25.23845028 | V185: 20.08336434 | W185: 20.08336434 | X185: -15140 | Y185: count 542.000000 mean 40.129151 std 21.934660 min 30.000000 25% 30.000000 50% 30.000000 75% 30.000000 max 100.000000 Name: Ticket Outcome, dtype: float64 | AA185: =(Q185-K185)/SQRT((K185*(1-K185))/M185) -> 8.775861821 | AB185: =IF(AA185>0,1-NORMSDIST(AA185),NORMSDIST(AA185)) -> 0 | AC185: =(R185-L185)/SQRT((L185*(1-L185))/M185) -> -9.082766094 | AD185: =IF(AC185>0,1-NORMSDIST(AC185),NORMSDIST(AC185)) -> 0 | AE185: =(M185*D185) -> 33360 | AF185: =IF(OR(AB185<-0.05,AB185>0.05),"Accept","Reject") -> Reject | AG185: =IF(OR(OR(AB185<-0.05,AB185>0.05),OR(AD185<-0.05,AD185>0.05)),"Accept","Reject") -> Reject
A186: 168 | B186: 2021 | C186: 100X THE MONEY | D186: 30 | E186: 3 | F186: 180 | G186: 2 | H186: profit | I186: -3 | J186: 3 | K186: 0.3610108902 | L186: 0.2109427111 | M186: 1110 | N186: 370 | O186: 175 | P186: 175 | Q186: 0.1576576577 | R186: 0.1576576577 | S186: -40.12612613 | T186: -60 | U186: 26.30060272 | V186: 24.2794351 | W186: 24.2794351 | X186: -44540 | Y186: count 175.000000 mean 67.142857 std 24.279435 min 40.000000 25% 50.000000 50% 60.000000 75% 100.000000 max 100.000000 Name: Ticket Outcome, dtype: float64 | AA186: =(Q186-K186)/SQRT((K186*(1-K186))/M186) -> -14.1060588 | AB186: =IF(AA186>0,1-NORMSDIST(AA186),NORMSDIST(AA186)) -> 0 | AC186: =(R186-L186)/SQRT((L186*(1-L186))/M186) -> -4.351413605 | AD186: =IF(AC186>0,1-NORMSDIST(AC186),NORMSDIST(AC186)) -> 6.763130956e-06 | AE186: =(M186*D186) -> 33300 | AF186: =IF(OR(AB186<-0.05,AB186>0.05),"Accept","Reject") -> Reject | AG186: =IF(OR(OR(AB186<-0.05,AB186>0.05),OR(AD186<-0.05,AD186>0.05)),"Accept","Reject") -> Reject
A187: 0 | B187: 2021 | C187: 100X THE MONEY | D187: 30 | E187: 1 | F187: 60 | G187: 2 | H187: any | I187: -2 | J187: 2 | K187: 0.3610108902 | L187: 0.2109427111 | M187: 1112 | N187: 556 | O187: 313 | P187: 30 | Q187: 0.2814748201 | R187: 0.02697841727 | S187: -31.45683453 | T187: -30 | U187: 15.51633052 | V187: 0 | W187: 0 | X187: -34980 | Y187: count 313.000000 mean 32.875399 std 8.845566 min 30.000000 25% 30.000000 50% 30.000000 75% 30.000000 max 60.000000 Name: Ticket Outcome, dtype: float64 | AA187: =(Q187-K187)/SQRT((K187*(1-K187))/M187) -> -5.522168343 | AB187: =IF(AA187>0,1-NORMSDIST(AA187),NORMSDIST(AA187)) -> 1.674207195e-08 | AC187: =(R187-L187)/SQRT((L187*(1-L187))/M187) -> -15.03659151 | AD187: =IF(AC187>0,1-NORMSDIST(AC187),NORMSDIST(AC187)) -> 0 | AE187: =(M187*D187) -> 33360 | AF187: =IF(OR(AB187<-0.05,AB187>0.05),"Accept","Reject") -> Reject | AG187: =IF(OR(OR(AB187<-0.05,AB187>0.05),OR(AD187<-0.05,AD187>0.05)),"Accept","Reject") -> Reject
A188: 84 | B188: 2021 | C188: 100X THE MONEY | D188: 30 | E188: 4 | F188: 240 | G188: 2 | H188: profit | I188: -2 | J188: 4 | K188: 0.3610108902 | L188: 0.2109427111 | M188: 1112 | N188: 278 | O188: 387 | P188: 103 | Q188: 0.3480215827 | R188: 0.09262589928 | S188: -43.34532374 | T188: -30 | U188: 17.17824913 | V188: 8.917200613 | W188: 8.917200613 | X188: -48200 | Y188: count 387.000000 mean 34.418605 std 8.659384 min 30.000000 25% 30.000000 50% 30.000000 75% 40.000000 max 60.000000 Name: Ticket Outcome, dtype: float64 | AA188: =(Q188-K188)/SQRT((K188*(1-K188))/M188) -> -0.9018441851 | AB188: =IF(AA188>0,1-NORMSDIST(AA188),NORMSDIST(AA188)) -> 0.1835698222 | AC188: =(R188-L188)/SQRT((L188*(1-L188))/M188) -> -9.670798233 | AD188: =IF(AC188>0,1-NORMSDIST(AC188),NORMSDIST(AC188)) -> 0 | AE188: =(M188*D188) -> 33360 | AF188: =IF(OR(AB188<-0.05,AB188>0.05),"Accept","Reject") -> Accept | AG188: =IF(OR(OR(AB188<-0.05,AB188>0.05),OR(AD188<-0.05,AD188>0.05)),"Accept","Reject") -> Accept
A189: 0 | B189: 2021 | C189: 100X THE MONEY | D189: 30 | E189: 4 | F189: 240 | G189: 2 | H189: profit | I189: -1 | J189: 4 | K189: 0.3610108902 | L189: 0.2109427111 | M189: 1112 | N189: 278 | O189: 331 | P189: 331 | Q189: 0.2976618705 | R189: 0.2976618705 | S189: -16.81654676 | T189: -30 | U189: 38.09089496 | V189: 26.02754194 | W189: 26.02754194 | X189: -18700 | Y189: count 331.000000 mean 77.280967 std 26.027542 min 40.000000 25% 60.000000 50% 100.000000 75% 100.000000 max 100.000000 Name: Ticket Outcome, dtype: float64 | AA189: =(Q189-K189)/SQRT((K189*(1-K189))/M189) -> -4.39830571 | AB189: =IF(AA189>0,1-NORMSDIST(AA189),NORMSDIST(AA189)) -> 5.454961582e-06 | AC189: =(R189-L189)/SQRT((L189*(1-L189))/M189) -> 7.088117749 | AD189: =IF(AC189>0,1-NORMSDIST(AC189),NORMSDIST(AC189)) -> 6.79789558e-13 | AE189: =(M189*D189) -> 33360 | AF189: =IF(OR(AB189<-0.05,AB189>0.05),"Accept","Reject") -> Reject | AG189: =IF(OR(OR(AB189<-0.05,AB189>0.05),OR(AD189<-0.05,AD189>0.05)),"Accept","Reject") -> Reject
A190: 0 | B190: 2021 | C190: 100X THE MONEY | D190: 30 | E190: 1 | F190: 60 | G190: 2 | H190: any | I190: -1 | J190: 2 | K190: 0.3610108902 | L190: 0.2109427111 | M190: 1112 | N190: 556 | O190: 317 | P190: 204 | Q190: 0.2850719424 | R190: 0.1834532374 | S190: -22.36510791 | T190: -30 | U190: 27.43356608 | V190: 21.34489765 | W190: 21.34489765 | X190: -24870 | Y190: count 317.000000 mean 53.438486 std 24.453006 min 30.000000 25% 30.000000 50% 50.000000 75% 60.000000 max 100.000000 Name: Ticket Outcome, dtype: float64 | AA190: =(Q190-K190)/SQRT((K190*(1-K190))/M190) -> -5.272421091 | AB190: =IF(AA190>0,1-NORMSDIST(AA190),NORMSDIST(AA190)) -> 6.731786506e-08 | AC190: =(R190-L190)/SQRT((L190*(1-L190))/M190) -> -2.246892469 | AD190: =IF(AC190>0,1-NORMSDIST(AC190),NORMSDIST(AC190)) -> 0.01232345005 | AE190: =(M190*D190) -> 33360 | AF190: =IF(OR(AB190<-0.05,AB190>0.05),"Accept","Reject") -> Reject | AG190: =IF(OR(OR(AB190<-0.05,AB190>0.05),OR(AD190<-0.05,AD190>0.05)),"Accept","Reject") -> Reject
A191: 0 | B191: 2021 | C191: 100X THE MONEY | D191: 30 | E191: 2 | F191: 120 | G191: 2 | H191: any | I191: 0 | J191: 3 | K191: 0.3610108902 | L191: 0.2109427111 | M191: 1110 | N191: 370 | O191: 307 | P191: 189 | Q191: 0.2765765766 | R191: 0.1702702703 | S191: -32.98198198 | T191: -30 | U191: 23.35216655 | V191: 15.19119026 | W191: 15.19119026 | X191: -36610 | Y191: count 307.000000 mean 47.557003 std 18.299233 min 30.000000 25% 30.000000 50% 40.000000 75% 60.000000 max 100.000000 Name: Ticket Outcome, dtype: float64 | AA191: =(Q191-K191)/SQRT((K191*(1-K191))/M191) -> -5.856977919 | AB191: =IF(AA191>0,1-NORMSDIST(AA191),NORMSDIST(AA191)) -> 2.356828843e-09 | AC191: =(R191-L191)/SQRT((L191*(1-L191))/M191) -> -3.3214307 | AD191: =IF(AC191>0,1-NORMSDIST(AC191),NORMSDIST(AC191)) -> 0.0004477860965 | AE191: =(M191*D191) -> 33300 | AF191: =IF(OR(AB191<-0.05,AB191>0.05),"Accept","Reject") -> Reject | AG191: =IF(OR(OR(AB191<-0.05,AB191>0.05),OR(AD191<-0.05,AD191>0.05)),"Accept","Reject") -> Reject
A192: 0 | B192: 2021 | C192: 100X THE MONEY | D192: 30 | E192: 5 | F192: 300 | G192: 2 | H192: profit | I192: 0 | J192: 5 | K192: 0.3610108902 | L192: 0.2109427111 | M192: 1110 | N192: 222 | O192: 478 | P192: 260 | Q192: 0.4306306306 | R192: 0.2342342342 | S192: -35.37837838 | T192: -30 | U192: 22.74728315 | V192: 11.17794883 | W192: 11.17794883 | X192: -39270 | Y192: count 478.000000 mean 42.112971 std 13.824742 min 30.000000 25% 30.000000 50% 40.000000 75% 50.000000 max 100.000000 Name: Ticket Outcome, dtype: float64 | AA192: =(Q192-K192)/SQRT((K192*(1-K192))/M192) -> 4.82933141 | AB192: =IF(AA192>0,1-NORMSDIST(AA192),NORMSDIST(AA192)) -> 6.849612164e-07 | AC192: =(R192-L192)/SQRT((L192*(1-L192))/M192) -> 1.902054032 | AD192: =IF(AC192>0,1-NORMSDIST(AC192),NORMSDIST(AC192)) -> 0.02858204557 | AE192: =(M192*D192) -> 33300 | AF192: =IF(OR(AB192<-0.05,AB192>0.05),"Accept","Reject") -> Reject | AG192: =IF(OR(OR(AB192<-0.05,AB192>0.05),OR(AD192<-0.05,AD192>0.05)),"Accept","Reject") -> Reject
A193: 84 | B193: 2021 | C193: 100X THE MONEY | D193: 30 | E193: 5 | F193: 300 | G193: 2 | H193: profit | I193: 1 | J193: 5 | K193: 0.3610108902 | L193: 0.2109427111 | M193: 1110 | N193: 222 | O193: 535 | P193: 325 | Q193: 0.481981982 | R193: 0.2927927928 | S193: 0 | T193: 0 | U193: 35.91992745 | V193: 20.19374345 | W193: 20.19374345 | X193: 0 | Y193: count 535.000000 mean 59.813084 std 28.684690 min 30.000000 25% 30.000000 50% 60.000000 75% 100.000000 max 100.000000 Name: Ticket Outcome, dtype: float64 | AA193: =(Q193-K193)/SQRT((K193*(1-K193))/M193) -> 8.39143452 | AB193: =IF(AA193>0,1-NORMSDIST(AA193),NORMSDIST(AA193)) -> 0 | AC193: =(R193-L193)/SQRT((L193*(1-L193))/M193) -> 6.68411752 | AD193: =IF(AC193>0,1-NORMSDIST(AC193),NORMSDIST(AC193)) -> 1.161604146e-11 | AE193: =(M193*D193) -> 33300 | AF193: =IF(OR(AB193<-0.05,AB193>0.05),"Accept","Reject") -> Reject | AG193: =IF(OR(OR(AB193<-0.05,AB193>0.05),OR(AD193<-0.05,AD193>0.05)),"Accept","Reject") -> Reject
A194: 84 | B194: 2021 | C194: 100X THE MONEY | D194: 30 | E194: 2 | F194: 120 | G194: 2 | H194: any | I194: 1 | J194: 3 | K194: 0.3610108902 | L194: 0.2109427111 | M194: 1110 | N194: 370 | O194: 531 | P194: 288 | Q194: 0.4783783784 | R194: 0.2594594595 | S194: -7.828828829 | T194: -10 | U194: 32.80750126 | V194: 21.45940806 | W194: 21.45940806 | X194: -8690 | Y194: count 531.000000 mean 53.917137 std 27.072661 min 30.000000 25% 30.000000 50% 50.000000 75% 60.000000 max 100.000000 Name: Ticket Outcome, dtype: float64 | AA194: =(Q194-K194)/SQRT((K194*(1-K194))/M194) -> 8.141462372 | AB194: =IF(AA194>0,1-NORMSDIST(AA194),NORMSDIST(AA194)) -> 2.220446049e-16 | AC194: =(R194-L194)/SQRT((L194*(1-L194))/M194) -> 3.962019842 | AD194: =IF(AC194>0,1-NORMSDIST(AC194),NORMSDIST(AC194)) -> 3.715918117e-05 | AE194: =(M194*D194) -> 33300 | AF194: =IF(OR(AB194<-0.05,AB194>0.05),"Accept","Reject") -> Reject | AG194: =IF(OR(OR(AB194<-0.05,AB194>0.05),OR(AD194<-0.05,AD194>0.05)),"Accept","Reject") -> Reject
A195: 168 | B195: 2021 | C195: 100X THE MONEY | D195: 30 | E195: 2 | F195: 120 | G195: 2 | H195: any | I195: 2 | J195: 4 | K195: 0.3610108902 | L195: 0.2109427111 | M195: 1112 | N195: 278 | O195: 416 | P195: 311 | Q195: 0.3741007194 | R195: 0.279676259 | S195: -14.23561151 | T195: -30 | U195: 35.01133601 | V195: 21.75926029 | W195: 21.75926029 | X195: -15830 | Y195: count 416.000000 mean 63.677885 std 27.157410 min 30.000000 25% 30.000000 50% 60.000000 75% 100.000000 max 100.000000 Name: Ticket Outcome, dtype: float64 | AA195: =(Q195-K195)/SQRT((K195*(1-K195))/M195) -> 0.9088233903 | AB195: =IF(AA195>0,1-NORMSDIST(AA195),NORMSDIST(AA195)) -> 0.1817216789 | AC195: =(R195-L195)/SQRT((L195*(1-L195))/M195) -> 5.618037399 | AD195: =IF(AC195>0,1-NORMSDIST(AC195),NORMSDIST(AC195)) -> 9.656935029e-09 | AE195: =(M195*D195) -> 33360 | AF195: =IF(OR(AB195<-0.05,AB195>0.05),"Accept","Reject") -> Accept | AG195: =IF(OR(OR(AB195<-0.05,AB195>0.05),OR(AD195<-0.05,AD195>0.05)),"Accept","Reject") -> Accept
A196: 168 | B196: 2021 | C196: 100X THE MONEY | D196: 30 | E196: 5 | F196: 300 | G196: 2 | H196: profit | I196: 2 | J196: 6 | K196: 0.3610108902 | L196: 0.2109427111 | M196: 1110 | N196: 185 | O196: 453 | P196: 337 | Q196: 0.4081081081 | R196: 0.3036036036 | S196: -23.66666667 | T196: -20 | U196: 32.62639665 | V196: 24.55866631 | W196: 24.55866631 | X196: -26270 | Y196: count 453.000000 mean 56.821192 std 26.391476 min 30.000000 25% 30.000000 50% 50.000000 75% 60.000000 max 100.000000 Name: Ticket Outcome, dtype: float64 | AA196: =(Q196-K196)/SQRT((K196*(1-K196))/M196) -> 3.267005485 | AB196: =IF(AA196>0,1-NORMSDIST(AA196),NORMSDIST(AA196)) -> 0.0005434578727 | AC196: =(R196-L196)/SQRT((L196*(1-L196))/M196) -> 7.566960009 | AD196: =IF(AC196>0,1-NORMSDIST(AC196),NORMSDIST(AC196)) -> 1.909583602e-14 | AE196: =(M196*D196) -> 33300 | AF196: =IF(OR(AB196<-0.05,AB196>0.05),"Accept","Reject") -> Reject | AG196: =IF(OR(OR(AB196<-0.05,AB196>0.05),OR(AD196<-0.05,AD196>0.05)),"Accept","Reject") -> Reject
A197: 252 | B197: 2021 | C197: 100X THE MONEY | D197: 30 | E197: 2 | F197: 120 | G197: 2 | H197: any | I197: 3 | J197: 4 | K197: 0.3610108902 | L197: 0.2109427111 | M197: 1112 | N197: 278 | O197: 526 | P197: 129 | Q197: 0.4730215827 | R197: 0.1160071942 | S197: -32.57194245 | T197: -30 | U197: 18.87202462 | V197: 9.223090967 | W197: 9.223090967 | X197: -36220 | Y197: count 526.000000 mean 35.133080 std 10.098626 min 30.000000 25% 30.000000 50% 30.000000 75% 30.000000 max 100.000000 Name: Ticket Outcome, dtype: float64 | AA197: =(Q197-K197)/SQRT((K197*(1-K197))/M197) -> 7.776872814 | AB197: =IF(AA197>0,1-NORMSDIST(AA197),NORMSDIST(AA197)) -> 3.663735981e-15 | AC197: =(R197-L197)/SQRT((L197*(1-L197))/M197) -> -7.759693779 | AD197: =IF(AC197>0,1-NORMSDIST(AC197),NORMSDIST(AC197)) -> 4.218847494e-15 | AE197: =(M197*D197) -> 33360 | AF197: =IF(OR(AB197<-0.05,AB197>0.05),"Accept","Reject") -> Reject | AG197: =IF(OR(OR(AB197<-0.05,AB197>0.05),OR(AD197<-0.05,AD197>0.05)),"Accept","Reject") -> Reject
A198: 252 | B198: 2021 | C198: 100X THE MONEY | D198: 30 | E198: 6 | F198: 360 | G198: 2 | H198: profit | I198: 3 | J198: 7 | K198: 0.3610108902 | L198: 0.2109427111 | M198: 1113 | N198: 159 | O198: 282 | P198: 79 | Q198: 0.2533692722 | R198: 0.07097933513 | S198: -83.97124888 | T198: -80 | U198: 16.10739026 | V198: 9.965861885 | W198: 9.965861885 | X198: -93460 | Y198: count 282.000000 mean 35.212766 std 9.881366 min 30.000000 25% 30.000000 50% 30.000000 75% 40.000000 max 60.000000 Name: Ticket Outcome, dtype: float64 | AA198: =(Q198-K198)/SQRT((K198*(1-K198))/M198) -> -7.476888759 | AB198: =IF(AA198>0,1-NORMSDIST(AA198),NORMSDIST(AA198)) -> 3.808064974e-14 | AC198: =(R198-L198)/SQRT((L198*(1-L198))/M198) -> -11.4452547 | AD198: =IF(AC198>0,1-NORMSDIST(AC198),NORMSDIST(AC198)) -> 0 | AE198: =(M198*D198) -> 33390 | AF198: =IF(OR(AB198<-0.05,AB198>0.05),"Accept","Reject") -> Reject | AG198: =IF(OR(OR(AB198<-0.05,AB198>0.05),OR(AD198<-0.05,AD198>0.05)),"Accept","Reject") -> Reject
A199: 203 | B199: 2025 | C199: $15 MILLION UP FOR GRABS | D199: 5 | E199: 7 | F199: 70 | G199: 2 | H199: profit | I199: -3 | J199: 5 | K199: 0.2392345483 | L199: 0.1353718689 | M199: 1110 | N199: 222 | O199: 262 | P199: 179 | Q199: 0.236036036 | R199: 0.1612612613 | S199: -3.022522523 | T199: -10 | U199: 10.76490461 | V199: 17.21736806 | W199: 17.21736806 | X199: -3355 | Y199: count 262.000000 mean 17.041985 std 16.421477 min 5.000000 25% 5.000000 50% 10.000000 75% 15.000000 max 50.000000 Name: Ticket Outcome, dtype: float64 | AA199: =(Q199-K199)/SQRT((K199*(1-K199))/M199) -> -0.2497883486 | AB199: =IF(AA199>0,1-NORMSDIST(AA199),NORMSDIST(AA199)) -> 0.4013755153 | AC199: =(R199-L199)/SQRT((L199*(1-L199))/M199) -> 2.521183488 | AD199: =IF(AC199>0,1-NORMSDIST(AC199),NORMSDIST(AC199)) -> 0.005848042241 | AE199: =(M199*D199) -> 5550 | AF199: =IF(OR(AB199<-0.05,AB199>0.05),"Accept","Reject") -> Accept | AG199: =IF(OR(OR(AB199<-0.05,AB199>0.05),OR(AD199<-0.05,AD199>0.05)),"Accept","Reject") -> Accept
A200: 35 | B200: 2025 | C200: $15 MILLION UP FOR GRABS | D200: 5 | E200: 3 | F200: 30 | G200: 2 | H200: any | I200: -3 | J200: 3 | K200: 0.2392345483 | L200: 0.1353718689 | M200: 1110 | N200: 370 | O200: 122 | P200: 92 | Q200: 0.1099099099 | R200: 0.08288288288 | S200: -6.130630631 | T200: -10 | U200: 5.830211026 | V200: 7.123869891 | W200: 7.123869891 | X200: -6805 | Y200: count 122.000000 mean 16.106557 std 8.872660 min 5.000000 25% 10.000000 50% 12.500000 75% 25.000000 max 25.000000 Name: Ticket Outcome, dtype: float64 | AA200: =(Q200-K200)/SQRT((K200*(1-K200))/M200) -> -10.09962905 | AB200: =IF(AA200>0,1-NORMSDIST(AA200),NORMSDIST(AA200)) -> 0 | AC200: =(R200-L200)/SQRT((L200*(1-L200))/M200) -> -5.111528414 | AD200: =IF(AC200>0,1-NORMSDIST(AC200),NORMSDIST(AC200)) -> 1.597813732e-07 | AE200: =(M200*D200) -> 5550 | AF200: =IF(OR(AB200<-0.05,AB200>0.05),"Accept","Reject") -> Reject | AG200: =IF(OR(OR(AB200<-0.05,AB200>0.05),OR(AD200<-0.05,AD200>0.05)),"Accept","Reject") -> Reject
... 978 more rows

Sheet Pivottable - simOutcomes_0-3StD
A1: simOutcomes_0-3StDevs Pivot
A3: Prize Types | B3: Accept/Reject Null Hypothesis Any Prize | C3: Standard Deviations | D3: Game Name | E3: Cluster Size | F3: Game Name (Count All) | G3: Final Tally (Sum) | H3: Average Cluster Outcome (Average) | I3: Z-Score Any Prize (Average) | J3: Any Prize Probability (Average) | K3: Observed Prize Frequency (Average) | L3: P-value any prize (Average) | M3: Profit Prize Probability (Average) | N3: Observed Profit Prize Frequency (Average) | O3: P-value Profit prize (Sum)
A4: any | B4: Accept | F4: 144 | G4: -1012502 | H4: -6.339465813 | I4: 0.09726198715 | J4: 0.2437241948 | K4: 0.2449597202 | L4: 0.2197007611 | M4: 0.1513481077 | N4: 0.1498118768 | O4: 18.74729741
B5: Reject | F5: 443 | G5: -3906503 | H5: -8.34771888 | I5: 0.2057578984 | J5: 0.2520071362 | K5: 0.2544671505 | L5: 0.004857343048 | M5: 0.1560191002 | N5: 0.1583710272 | O5: 26.84090192
B6: (blank) | F6: 1 | G6: 0 | H6: 0 | I6: 0 | J6: 0.1069519586 | K6: 0 | L6: 0 | M6: 0.1069519586 | N6: 0 | O6: 0
A7: profit | B7: Accept | F7: 171 | G7: -1696358 | H7: -9.611200197 | I7: -0.09452929611 | J7: 0.2411692669 | K7: 0.2398947666 | L7: 0.253064896 | M7: 0.1480075353 | N7: 0.1505409331 | O7: 20.46124086
B8: Reject | C8: -3 | F8: 59 | G8: -750418 | H8: -11.4679192 | I8: -1.101418157 | J8: 0.2508339886 | K8: 0.2366804018 | L8: 0.003523087379 | M8: 0.1567322083 | N8: 0.14625133 | O8: 1.239877538
C9: -2 | F9: 59 | G9: -438288 | H9: -6.687192965 | I9: 0.4243225905 | J9: 0.2509967853 | K9: 0.2581124931 | L9: 0.005651089489 | M9: 0.157055162 | N9: 0.1632047714 | O9: 3.704025468
C10: -1 | F10: 61 | G10: -571580 | H10: -8.448415877 | I10: 0.3378256788 | J10: 0.2526302268 | K10: 0.2566021079 | L10: 0.006800983999 | M10: 0.1565013685 | N10: 0.1586691962 | O10: 4.96805337
C11: 0 | F11: 55 | G11: -809643 | H11: -13.2691993 | I11: -0.4552267876 | J11: 0.2571091802 | K11: 0.2518010483 | L11: 0.008764834305 | M11: 0.1585650602 | N11: 0.1536006995 | O11: 1.686549236
C12: 1 | F12: 61 | G12: 229172 | H12: 3.427576035 | I12: -1.141347165 | J12: 0.2579668495 | K12: 0.2440612671 | L12: 0.003809073666 | M12: 0.1595902267 | N12: 0.1534474719 | O12: 2.288160661
C13: 2 | F13: 64 | G13: -964775 | H13: -13.62873449 | I13: -0.302610412 | J13: 0.2555159821 | K13: 0.2518691569 | L13: 0.002895178478 | M13: 0.1635100308 | N13: 0.162961559 | O13: 2.846766581
C14: 3 | F14: 57 | G14: -953286 | H14: -15.1005003 | I14: -0.3358886605 | J14: 0.249947994 | K14: 0.24517571 | L14: 0.004019679281 | M14: 0.1512375077 | N14: 0.1496647727 | O14: 2.853930799
B15: (blank) | F15: 1 | G15: 0 | H15: 0 | I15: 0 | J15: 0.1069519586 | K15: 0 | L15: 0 | M15: 0.1069519586 | N15: 0 | O15: 0
A16: Grand Total | F16: 1176 | G16: -10874181 | H16: -8.598495834 | I16: -0.05410705013 | J16: 0.2497319683 | K16: 0.2493203563 | L16: 0.06741718804 | M16: 0.1547917362 | N16: 0.1551782554 | O16: 85.63680386
